Local authority department which incurred the expenditure,Service Division,Cost Centre,Summary of the Purpose of Expenditure,Expense Type,Expense Code,Detailed Expense Type,Date of Transaction,Transaction Number,Beneficiary,Merchant Category Number,Merchant Category,Gross Amount,VAT,Net Amount
Regeneration Economy and Growth,Business Durham CL0850,030689,Inward Investment and Aftercare,Supplies and Services,336005,Advertising E336,01-Oct-2022,000008517907596,Google ADS6853017821,7311,Advertising other than for staff,39.26,0.00,39.26
Regeneration Economy and Growth,Business Durham CL0850,030689,Inward Investment and Aftercare,Supplies and Services,336005,Advertising E336,01-Oct-2022,000008517907598,LINKEDIN-831 1183554,7311,Advertising other than for staff,7.37,0.00,7.37
Children and Young Peoples Services,Head of Education and Skills,075033,DurhamWorks 3,Supplies and Services,364301,Grants to Voluntary Organisations,01-Oct-2022,000008517907660,AMZNMktplace,5999,Hardship,17.88,2.98,14.90
Children and Young Peoples Services,Head of Education and Skills,075033,DurhamWorks 3,Supplies and Services,364301,Grants to Voluntary Organisations,01-Oct-2022,000008517907660 - 1,AMZNMktplace,5999,Hardship,23.66,,23.66
Children and Young Peoples Services,Head of Childrens Social Care,085342,16 Hickstead Rise (previously 9 Cedar Ave),Supplies and Services,324117,Provisions E324,01-Oct-2022,000008517907696,STARBUCKS THINFORD,5499,Catering costs - provisions,11.85,0.00,11.85
Children and Young Peoples Services,Head of Childrens Social Care,085342,16 Hickstead Rise (previously 9 Cedar Ave),Supplies and Services,304999,Equipment and Materials,01-Oct-2022,000008517907836,HOME BARGAINS,5251,Misc equipment tools and materials,5.97,0.00,5.97
Children and Young Peoples Services,Head of Childrens Social Care,085342,16 Hickstead Rise (previously 9 Cedar Ave),Supplies and Services,332047,Printing Stationery and Gen Off Exps,01-Oct-2022,000008517907838,WWW.RYMAN.CO.UK,5943,Stationery,21.02,0.00,21.02
Children and Young Peoples Services,Head of Childrens Social Care,085342,16 Hickstead Rise (previously 9 Cedar Ave),Supplies and Services,324117,Provisions E324,01-Oct-2022,000008517907842,ASDA STORES,5411,Catering costs - provisions,166.41,0.00,166.41
Children and Young Peoples Services,Head of Childrens Social Care,085358,Orchard House Sacriston Solo Home,Supplies and Services,324117,Provisions E324,01-Oct-2022,000008517907864,ASDA GROCERIES ONLINE,5411,Catering costs - provisions,175.62,0.00,175.62
Children and Young Peoples Services,Head of Childrens Social Care,085358,Orchard House Sacriston Solo Home,Supplies and Services,324117,Provisions E324,01-Oct-2022,000008517907866,ASDA GROCERIES ONLINE,5411,Catering costs - provisions,-3.26,0.00,-3.26
Children and Young Peoples Services,Head of Education and Skills,071732,Dean Bank Childcare,Supplies and Services,324117,Provisions E324,01-Oct-2022,000008517907890,ASDA SUPERSTORE 4987,5411,Catering costs - provisions,26.25,0.00,26.25
Children and Young Peoples Services,Head of Childrens Social Care,085333,Coxhoe Satelite Home,Supplies and Services,308011,Furniture,01-Oct-2022,000008517907908,IKEA LTD 143 GATESHEAD,5712,Furniture repair and replacement,130.00,0.00,130.00
Neighbourhoods and Climate Change,Environmental Services,010864,Fleet - Hackworth Road Fleet,Transport,215013,Running Costs of Vehicles,01-Oct-2022,000008517908156,DVLA VEHICLE TAX,9311,Vehicle Excise Duty (VED),93.25,0.00,93.25
Children and Young Peoples Services,Head of Childrens Social Care,085347,Solo Home The Manse,Supplies and Services,324117,Provisions E324,01-Oct-2022,000008517908186,CO-OP GROUP 310016,5411,Catering costs - provisions,14.25,0.00,14.25
Children and Young Peoples Services,Head of Childrens Social Care,085347,Solo Home The Manse,Supplies and Services,324117,Provisions E324,01-Oct-2022,000008517908188,CO-OP GROUP 310016,5411,Catering costs - provisions,2.00,0.00,2.00
Children and Young Peoples Services,Head of Childrens Social Care,085341,High Etherley Satelite Home,Supplies and Services,348037,Subsistence E348,01-Oct-2022,000008517908208,SumUp Rose Balloch L,5812,Subsistence,34.20,0.00,34.20
Children and Young Peoples Services,Head of Childrens Social Care,085341,High Etherley Satelite Home,Supplies and Services,348037,Subsistence E348,01-Oct-2022,000008517908218,VMS ROADCHEF COSTA,5814,Subsistence,11.29,0.00,11.29
Children and Young Peoples Services,Head of Early Help Inclusion & Vulnerable Children.,088103,Stanley & Moorside Family Centre,Supplies and Services,304259,Equipment and Materials,01-Oct-2022,000008517908266,AMZNMKTPLACE AMAZON.CO,5999,Equipment-purchase and rental,19.99,3.33,16.66
Resources BK0010,Digital Services,065335,School Services - Implementations,Supplies and Services,304303,Equipment and Materials,01-Oct-2022,000008517908284,TOOLSTATION UK,5251,Network for resale,-29.98,0.00,-29.98
Dedicated Schools Grant BG0015,DSG Schools Block,231104,Peases West Primary 2311 - General Curriculum,Supplies and Services,304403,Equipment and Materials,01-Oct-2022,000008517908294,IKEA LTD 143 GATESHEAD,5712,Other consumables,48.50,8.08,40.42
Children and Young Peoples Services,Head of Early Help Inclusion & Vulnerable Children.,085952,Secure Education,Supplies and Services,304259,Equipment and Materials,01-Oct-2022,000008517908312,AMZNMktplace,5999,Equipment-purchase and rental,10.99,0.00,10.99
Children and Young Peoples Services,Head of Early Help Inclusion & Vulnerable Children.,085952,Secure Education,Supplies and Services,304259,Equipment and Materials,01-Oct-2022,000008517908314,AMZNMktplace,5999,Equipment-purchase and rental,56.67,9.46,47.21
Children and Young Peoples Services,Head of Early Help Inclusion & Vulnerable Children.,085965,Barnard,Supplies and Services,384302,Miscellaneous Expenses,01-Oct-2022,000008517908316,AMZNMKTPLACE AMAZON.CO,5999,Activity expenses,19.98,3.34,16.64
Children and Young Peoples Services,Head of Early Help Inclusion & Vulnerable Children.,085965,Barnard,Supplies and Services,384302,Miscellaneous Expenses,01-Oct-2022,000008517908318,SPORTSDIRECT.COM,5655,Activity expenses,60.99,0.00,60.99
Children and Young Peoples Services,Head of Early Help Inclusion & Vulnerable Children.,085956,Lumley,Supplies and Services,324117,Provisions E324,01-Oct-2022,000008517908322,TESCO STORES 6329,5411,Catering costs - provisions,214.47,0.00,214.47
Regeneration Economy and Growth,Planning & Housing,031701,Care Connect All Localities,Supplies and Services,304403,Equipment and Materials,01-Oct-2022,000008517908356,TWILIO.COM,5734,Other consumables,75.00,0.00,75.00
Regeneration Economy and Growth,Culture Sport and Tourism,054812,Gala Theatre - Catering etc,Supplies and Services,324117,Provisions E324,01-Oct-2022,000008517908456,TESCO STORES 6029,5411,Catering costs - provisions,15.55,0.00,15.55
Regeneration Economy and Growth,Culture Sport and Tourism,054812,Gala Theatre - Catering etc,Supplies and Services,324117,Provisions E324,01-Oct-2022,000008517908458,TESCO STORES,5411,Catering costs - provisions,11.90,0.00,11.90
Regeneration Economy and Growth,Culture Sport and Tourism,054233,Bishop Auckland Town Hall Library,Supplies and Services,324117,Provisions E324,01-Oct-2022,000008517908466,WM MORRISONS STORE,5411,Catering costs - provisions,35.75,0.00,35.75
Regeneration Economy and Growth,Culture Sport and Tourism,054233,Bishop Auckland Town Hall Library,Supplies and Services,324117,Provisions E324,01-Oct-2022,000008517908468,WM MORRISONS STORE,5411,Catering costs - provisions,6.36,0.00,6.36
Children and Young Peoples Services,Childrens Services Operational Support,052932,Childrens Social Care,Supplies and Services,304403,Equipment and Materials,01-Oct-2022,000008517908538,AMZNMKTPLACE AMAZON.CO,5999,Other consumables,51.84,0.00,51.84
Regeneration Economy and Growth,Communications Management,060270,Communications and Marketing,Supplies and Services,336005,Advertising E336,01-Oct-2022,000008517908558,LINKEDIN-831 0103764,7311,Advertising other than for staff,79.08,0.00,79.08
Children and Young Peoples Services,Head of Childrens Social Care,085397,Regionalisation of Adoption,Supplies and Services,336005,Advertising E336,01-Oct-2022,000008517908646,FACEBK FMT69HF5F2,7311,Advertising other than for staff,12.00,0.00,12.00
Children and Young Peoples Services,Head of Early Help Inclusion & Vulnerable Children.,088101,Bullion Lane & Brandon Family Centre,Supplies and Services,304403,Equipment and Materials,01-Oct-2022,000008517908658,AMZNMktplace,5999,Other consumables,3.32,0.56,2.76
Regeneration Economy and Growth,Business Durham CL0850,030689,Inward Investment and Aftercare,Supplies and Services,304403,Equipment and Materials,02-Oct-2022,000008517907600,ADOBE CREATIVE CLOUD,5734,Other consumables,51.98,0.00,51.98
Children and Young Peoples Services,Head of Childrens Social Care,085342,16 Hickstead Rise (previously 9 Cedar Ave),Transport,235057,Public Transport,02-Oct-2022,000008517907668,UNITED TAXIS (CONTRACT,4121,Staff travelling,16.00,0.00,16.00
Regeneration Economy and Growth,Culture Sport and Tourism,011265,Empire Theatre (Operations),Supplies and Services,304252,Equipment and Materials,02-Oct-2022,000008517907670,AMZNMktplace,5999,Equipment-repairsserviceinsurance,31.98,0.00,31.98
Regeneration Economy and Growth,Culture Sport and Tourism,011265,Empire Theatre (Operations),Supplies and Services,304252,Equipment and Materials,02-Oct-2022,000008517907672,AMZNMktplace,5999,Equipment-repairsserviceinsurance,15.24,2.54,12.70
Regeneration Economy and Growth,Culture Sport and Tourism,011265,Empire Theatre (Operations),Supplies and Services,332047,Printing Stationery and Gen Off Exps,02-Oct-2022,000008517907672 - 1,AMZNMktplace,5999,Stationery,0.04,,0.04
Regeneration Economy and Growth,Culture Sport and Tourism,011265,Empire Theatre (Operations),Supplies and Services,304252,Equipment and Materials,02-Oct-2022,000008517907674,AMZNMktplace,5999,Equipment-repairsserviceinsurance,20.80,3.47,17.33
Regeneration Economy and Growth,Culture Sport and Tourism,011265,Empire Theatre (Operations),Supplies and Services,304252,Equipment and Materials,02-Oct-2022,000008517907676,AMZNMktplace,5999,Equipment-repairsserviceinsurance,88.74,14.79,73.95
Regeneration Economy and Growth,Culture Sport and Tourism,011265,Empire Theatre (Operations),Supplies and Services,304252,Equipment and Materials,02-Oct-2022,000008517907676 - 1,AMZNMktplace,5999,Equipment-repairsserviceinsurance,0.03,,0.03
Regeneration Economy and Growth,Culture Sport and Tourism,011265,Empire Theatre (Operations),Supplies and Services,304252,Equipment and Materials,02-Oct-2022,000008517907678,AMZNMktplace,5999,Equipment-repairsserviceinsurance,63.98,10.66,53.32
Regeneration Economy and Growth,Culture Sport and Tourism,030712,VCD - Project Delivery,Supplies and Services,384199,Miscellaneous Expenses,02-Oct-2022,000008517907680,MAILCHIMP MISC,5968,Other hired and contracted services,319.20,0.00,319.20
Children and Young Peoples Services,Head of Early Help Inclusion & Vulnerable Children.,085956,Lumley,Supplies and Services,348037,Subsistence E348,02-Oct-2022,000008517907736,Just Eat,5814,Subsistence,79.80,0.00,79.80
Regeneration Economy and Growth,Corporate Property and Land,021242,Catering - County Hall,Supplies and Services,384999,Miscellaneous Expenses,02-Oct-2022,000008517907818,Amazon.co.uk M84329I25,5969,Other expenses,379.97,0.00,379.97
Regeneration Economy and Growth,Corporate Property and Land,021242,Catering - County Hall,Supplies and Services,384999,Miscellaneous Expenses,02-Oct-2022,000008517907820,Amazon.co.uk WA7VW9CE5,5969,Other expenses,379.97,0.00,379.97
Children and Young Peoples Services,Head of Childrens Social Care,085511,Emergency Duty Team,Transport,235057,Public Transport,02-Oct-2022,000008517907822,SumUp Wills taxi ser,4121,Staff travelling,38.00,0.00,38.00
Children and Young Peoples Services,Head of Childrens Social Care,085511,Emergency Duty Team,Supplies and Services,352001,Conference Expenses,02-Oct-2022,000008517907824,H52STANLEY,7011,Conferencesseminars fees etc,58.50,0.00,58.50
Children and Young Peoples Services,Head of Childrens Social Care,085342,16 Hickstead Rise (previously 9 Cedar Ave),Supplies and Services,304403,Equipment and Materials,02-Oct-2022,000008517907840,AMZNMktplace,5999,Other consumables,43.90,0.00,43.90
Adult and Health Services,Commissioning inc Supporting People,052100,Supporting the Provider Market,Vehicles Equipment Furniture and Fittings,912701,Computer equipment,02-Oct-2022,000008517907876,AMZNMktplace,5999,Computer equipment,71.98,0.00,71.98
Regeneration Economy and Growth,Culture Sport and Tourism,054813,Gala Theatre - Technical,Supplies and Services,304259,Equipment and Materials,02-Oct-2022,000008517907894,Spotify UK,5815,Equipment-purchase and rental,9.99,0.00,9.99
Neighbourhoods and Climate Change,Environmental Services,031200,North Pennines Core,Transport,235057,Public Transport,02-Oct-2022,000008517907972,LNE RAILWAY LDS SST,4112,Staff travelling,42.40,0.00,42.40
Children and Young Peoples Services,Head of Education and Skills,070169,Durham SSP,Supplies and Services,304999,Equipment and Materials,02-Oct-2022,000008517907988,Microsoft Microsoft 36,5816,Misc equipment tools and materials,7.99,1.33,6.66
Neighbourhoods and Climate Change,Environmental Services,031238,North Pennines - Tees Swale,Transport,235057,Public Transport,02-Oct-2022,000008517908002,EASYJET,3245,Staff travelling,-100.36,0.00,-100.36
Children and Young Peoples Services,Head of Childrens Social Care,085341,High Etherley Satelite Home,Transport,235057,Public Transport,02-Oct-2022,000008517908210,LNER CAR PARK DAR,4112,Staff travelling,6.25,0.00,6.25
Children and Young Peoples Services,Head of Childrens Social Care,085341,High Etherley Satelite Home,Supplies and Services,324117,Provisions E324,02-Oct-2022,000008517908212,NYA Decorum Vending Lt,5499,Catering costs - provisions,3.60,0.00,3.60
Children and Young Peoples Services,Head of Childrens Social Care,085341,High Etherley Satelite Home,Supplies and Services,348037,Subsistence E348,02-Oct-2022,000008517908214,STARBUCKS,5814,Subsistence,3.70,0.00,3.70
Children and Young Peoples Services,Head of Childrens Social Care,085341,High Etherley Satelite Home,Supplies and Services,312009,Newspapers books and periodicals E312,02-Oct-2022,000008517908216,WH SMITH,5994,Newspapers books and periodicals,11.65,0.00,11.65
Children and Young Peoples Services,Head of Childrens Social Care,085341,High Etherley Satelite Home,Supplies and Services,348037,Subsistence E348,02-Oct-2022,000008517908220,MCDONALDS,5812,Subsistence,12.20,0.00,12.20
Children and Young Peoples Services,Head of Childrens Social Care,085334,West Rainton Satelite Home,Supplies and Services,324117,Provisions E324,02-Oct-2022,000008517908252,TESCO STORES 2371,5411,Catering costs - provisions,45.59,0.00,45.59
Dedicated Schools Grant BG0015,DSG Schools Block,231104,Peases West Primary 2311 - General Curriculum,Supplies and Services,312011,Newspapers books and periodicals E312,02-Oct-2022,000008517908296,AMZNMKTPLACE AMAZON.CO,5999,Books-school library,11.98,0.00,11.98
Dedicated Schools Grant BG0015,DSG Schools Block,231101,Peases West Primary 2311 - Breakfast Club,Supplies and Services,304403,Equipment and Materials,02-Oct-2022,000008517908298,TESCO STORES 4358,5411,Other consumables,66.26,0.00,66.26
Children and Young Peoples Services,Head of Early Help Inclusion & Vulnerable Children.,085954,Walworth,Supplies and Services,384302,Miscellaneous Expenses,02-Oct-2022,000008517908324,AMZNMktplace,5999,Activity expenses,19.99,3.33,16.66
Children and Young Peoples Services,Head of Early Help Inclusion & Vulnerable Children.,085952,Secure Education,Supplies and Services,304259,Equipment and Materials,02-Oct-2022,000008517908326,AMZNMktplace,5999,Equipment-purchase and rental,29.99,5.00,24.99
Children and Young Peoples Services,Head of Early Help Inclusion & Vulnerable Children.,085952,Secure Education,Supplies and Services,304259,Equipment and Materials,02-Oct-2022,000008517908328,AMZNMktplace,5999,Equipment-purchase and rental,21.00,0.00,21.00
Children and Young Peoples Services,Head of Early Help Inclusion & Vulnerable Children.,085965,Barnard,Supplies and Services,384302,Miscellaneous Expenses,02-Oct-2022,000008517908330,AMZNMktplace,5999,Activity expenses,4.49,0.75,3.74
Children and Young Peoples Services,Head of Early Help Inclusion & Vulnerable Children.,085954,Walworth,Supplies and Services,384302,Miscellaneous Expenses,02-Oct-2022,000008517908332,AMZNMktplace,5999,Activity expenses,16.34,2.72,13.62
Children and Young Peoples Services,Head of Early Help Inclusion & Vulnerable Children.,085965,Barnard,Supplies and Services,384302,Miscellaneous Expenses,02-Oct-2022,000008517908334,AMZNMktplace,5999,Activity expenses,16.97,2.83,14.14
Children and Young Peoples Services,Head of Early Help Inclusion & Vulnerable Children.,085954,Walworth,Supplies and Services,384302,Miscellaneous Expenses,02-Oct-2022,000008517908336,AMZNMktplace,5999,Activity expenses,3.00,0.50,2.50
Children and Young Peoples Services,Head of Early Help Inclusion & Vulnerable Children.,085954,Walworth,Supplies and Services,384302,Miscellaneous Expenses,02-Oct-2022,000008517908336 - 1,AMZNMktplace,5999,Activity expenses,13.97,,13.97
Children and Young Peoples Services,Head of Early Help Inclusion & Vulnerable Children.,085952,Secure Education,Supplies and Services,304259,Equipment and Materials,02-Oct-2022,000008517908338,AMZNMktplace,5999,Equipment-purchase and rental,54.96,9.16,45.80
Children and Young Peoples Services,Head of Early Help Inclusion & Vulnerable Children.,085952,Secure Education,Supplies and Services,304259,Equipment and Materials,02-Oct-2022,000008517908338 - 1,AMZNMktplace,5999,Equipment-purchase and rental,29.89,,29.89
Children and Young Peoples Services,Head of Early Help Inclusion & Vulnerable Children.,085954,Walworth,Supplies and Services,324117,Provisions E324,02-Oct-2022,000008517908340,TESCO STORES 6329,5411,Catering costs - provisions,164.39,0.00,164.39
Children and Young Peoples Services,Head of Early Help Inclusion & Vulnerable Children.,085954,Walworth,Supplies and Services,384302,Miscellaneous Expenses,02-Oct-2022,000008517908342,AMZNMktplace,5999,Activity expenses,13.98,2.33,11.65
Children and Young Peoples Services,Head of Early Help Inclusion & Vulnerable Children.,085952,Secure Education,Supplies and Services,304259,Equipment and Materials,02-Oct-2022,000008517908344,AMZNMktplace,5999,Equipment-purchase and rental,15.99,2.67,13.32
Children and Young Peoples Services,Head of Childrens Social Care,085347,Solo Home The Manse,Supplies and Services,324117,Provisions E324,02-Oct-2022,000008517908364,TESCO STORES 2371,5411,Catering costs - provisions,119.76,0.00,119.76
Children and Young Peoples Services,Head of Childrens Social Care,085331,New Lea Childrens Home,Supplies and Services,312009,Newspapers books and periodicals E312,02-Oct-2022,000008517908478,MIDDLES SUPERSTORE,5994,Newspapers books and periodicals,5.11,0.00,5.11
Children and Young Peoples Services,Head of Childrens Social Care,085331,New Lea Childrens Home,Supplies and Services,348037,Subsistence E348,02-Oct-2022,000008517908480,BURGER KING,5812,Subsistence,17.31,0.00,17.31
Children and Young Peoples Services,Head of Childrens Social Care,085331,New Lea Childrens Home,Supplies and Services,304259,Equipment and Materials,02-Oct-2022,000008517908482,J D SPORTS PLC,5941,Equipment-purchase and rental,120.10,0.00,120.10
Children and Young Peoples Services,Head of Childrens Social Care,085331,New Lea Childrens Home,Supplies and Services,324117,Provisions E324,02-Oct-2022,000008517908484,ALDI 11 774,5411,Catering costs - provisions,15.11,0.00,15.11
Children and Young Peoples Services,Head of Childrens Social Care,085551,Short Break Services-Park Hse Sher,Supplies and Services,304999,Equipment and Materials,02-Oct-2022,000008517908594,HOME BARGAINS,5251,Misc equipment tools and materials,4.98,0.00,4.98
Children and Young Peoples Services,Head of Childrens Social Care,085551,Short Break Services-Park Hse Sher,Supplies and Services,324117,Provisions E324,02-Oct-2022,000008517908596,ICELAND,5411,Catering costs - provisions,22.85,0.00,22.85
Children and Young Peoples Services,Head of Childrens Social Care,085551,Short Break Services-Park Hse Sher,Supplies and Services,324117,Provisions E324,02-Oct-2022,000008517908598,ALDI 12 774,5411,Catering costs - provisions,24.95,0.00,24.95
Children and Young Peoples Services,Head of Childrens Social Care,085397,Regionalisation of Adoption,Supplies and Services,336005,Advertising E336,02-Oct-2022,000008517908648,FACEBK WEG7EHP5F2,7311,Advertising other than for staff,17.00,0.00,17.00
Regeneration Economy and Growth,Business Durham CL0850,030689,Inward Investment and Aftercare,Supplies and Services,342222,Computers and Communications,02-Oct-2022,000008526189856,FASTHOSTS,4816,Comp hardware purch-network servers,75.06,0.00,75.06
Regeneration Economy and Growth,Business Durham CL0850,030689,Inward Investment and Aftercare,Supplies and Services,342222,Computers and Communications,02-Oct-2022,000008526189860,FASTHOSTS,4816,Comp hardware purch-network servers,63.00,0.00,63.00
Children and Young Peoples Services,Head of Early Help Inclusion & Vulnerable Children.,085956,Lumley,Supplies and Services,304403,Equipment and Materials,02-Oct-2022,000008526190036,AMZNMKTPLACE AMAZON.CO,5999,Other consumables,18.99,0.00,18.99
Children and Young Peoples Services,Head of Early Help Inclusion & Vulnerable Children.,085955,Auckland,Supplies and Services,384302,Miscellaneous Expenses,02-Oct-2022,000008526191190,AMZNMKTPLACE AMAZON.CO,5999,Activity expenses,42.68,0.00,42.68
Dedicated Schools Grant BG0015,DSG Schools Block,231101,Peases West Primary 2311 - Breakfast Club,Supplies and Services,304403,Equipment and Materials,02-Oct-2022,000008526191218,AMZNMKTPLACE AMAZON.CO,5999,Other consumables,13.98,2.34,11.64
Dedicated Schools Grant BG0015,DSG Schools Block,231104,Peases West Primary 2311 - General Curriculum,Supplies and Services,304403,Equipment and Materials,02-Oct-2022,000008526191226,AMZNMKTPLACE AMAZON.CO,5999,Other consumables,3.39,0.57,2.82
Children and Young Peoples Services,Head of Early Help Inclusion & Vulnerable Children.,085965,Barnard,Supplies and Services,384302,Miscellaneous Expenses,02-Oct-2022,000008526191260,AMZNMKTPLACE AMAZON.CO,5999,Activity expenses,69.99,11.67,58.32
Children and Young Peoples Services,Head of Early Help Inclusion & Vulnerable Children.,085965,Barnard,Supplies and Services,384302,Miscellaneous Expenses,02-Oct-2022,000008526191274,AMZNMKTPLACE AMAZON.CO,5999,Activity expenses,8.99,1.50,7.49
Children and Young Peoples Services,Head of Early Help Inclusion & Vulnerable Children.,085965,Barnard,Supplies and Services,384302,Miscellaneous Expenses,02-Oct-2022,000008526191278,AMZNMKTPLACE AMAZON.CO,5999,Activity expenses,7.98,1.33,6.65
Neighbourhoods and Climate Change,Environmental Services,031200,North Pennines Core,Supplies and Services,348037,Subsistence E348,03-Oct-2022,000008517907974,TRATTORIA FUOR D`ACQUA,5812,Subsistence,0.48,0.00,0.48
Neighbourhoods and Climate Change,Environmental Services,031200,North Pennines Core,Transport,235057,Public Transport,03-Oct-2022,000008517907976,PALLANZA,4111,Staff travelling,0.08,0.00,0.08
Neighbourhoods and Climate Change,Environmental Services,031200,North Pennines Core,Transport,235057,Public Transport,03-Oct-2022,000008517907978,PALLANZA,4111,Staff travelling,0.08,0.00,0.08
Neighbourhoods and Climate Change,Environmental Services,031200,North Pennines Core,Supplies and Services,348037,Subsistence E348,03-Oct-2022,000008517907980,BAR I PORTICI,5813,Subsistence,0.12,0.00,0.12
Neighbourhoods and Climate Change,Environmental Services,031200,North Pennines Core,Supplies and Services,352001,Conference Expenses,03-Oct-2022,000008517907982,HOTEL AQUADOLCE,7011,Conferencesseminars fees etc,9.88,0.00,9.88
Neighbourhoods and Climate Change,Environmental Services,031200,North Pennines Core,Supplies and Services,352001,Conference Expenses,03-Oct-2022,000008517907984,HOTEL AQUADOLCE,7011,Conferencesseminars fees etc,4.35,0.00,4.35
Neighbourhoods and Climate Change,Environmental Services,031200,North Pennines Core,Transport,235057,Public Transport,03-Oct-2022,000008517907986,EASYJET,3245,Staff travelling,5.76,0.00,5.76
Children and Young Peoples Services,Head of Early Help Inclusion & Vulnerable Children.,085955,Auckland,Supplies and Services,384302,Miscellaneous Expenses,03-Oct-2022,000008517908276,Amazon.co.uk BE3FC1QR5,5969,Activity expenses,58.98,0.00,58.98
Children and Young Peoples Services,Head of Childrens Social Care,085357,LAC Bespoke Placements,Supplies and Services,304999,Equipment and Materials,03-Oct-2022,000008526189904,YPS BIRTLEYS HIDDEN GE,6513,Misc equipment tools and materials,500.00,0.00,500.00
Children and Young Peoples Services,Head of Childrens Social Care,085357,LAC Bespoke Placements,Supplies and Services,304999,Equipment and Materials,03-Oct-2022,000008526189914,YPS WASHINGTONS HIDDEN,6513,Misc equipment tools and materials,500.00,0.00,500.00
Children and Young Peoples Services,Head of Education and Skills,075035,DurhamDirections Re-engagement,Supplies and Services,364301,Grants to Voluntary Organisations,03-Oct-2022,000008526189940,TESCO ONLINE,5999,Hardship,24.99,0.00,24.99
Neighbourhoods and Climate Change,Environmental Services,010383,C&G - South Street Cleansing,Supplies and Services,304221,Equipment and Materials,03-Oct-2022,000008526189954,S&A BUILDERS MERCHANTS,5211,Direct materials,22.34,0.00,22.34
Neighbourhoods and Climate Change,Environmental Services,010383,C&G - South Street Cleansing,Supplies and Services,304221,Equipment and Materials,03-Oct-2022,000008526189960,S&A BUILDERS MERCHANTS,5211,Direct materials,5.83,0.00,5.83
Children and Young Peoples Services,Head of Childrens Social Care,085341,High Etherley Satelite Home,Supplies and Services,328041,Clothing uniforms and laundry E328,03-Oct-2022,000008526190020,POUNDLAND LTD 1554,5310,Clothing uniforms and laundry,7.00,0.00,7.00
Children and Young Peoples Services,Head of Childrens Social Care,085341,High Etherley Satelite Home,Supplies and Services,324117,Provisions E324,03-Oct-2022,000008526190024,STARBUCKS BISHOP AUCKL,5499,Catering costs - provisions,13.36,0.00,13.36
Neighbourhoods and Climate Change,Environmental Services,031233,North Pennines - Pennine Peatlife,Supplies and Services,348037,Subsistence E348,03-Oct-2022,000008526190042,TY COFFI,5812,Subsistence,27.15,0.00,27.15
Neighbourhoods and Climate Change,Environmental Services,031233,North Pennines - Pennine Peatlife,Supplies and Services,348037,Subsistence E348,03-Oct-2022,000008526190046,LITTLE ITALY,5812,Subsistence,67.65,0.00,67.65
Neighbourhoods and Climate Change,Environmental Services,031233,North Pennines - Pennine Peatlife,Supplies and Services,324117,Provisions E324,03-Oct-2022,000008526190048,TESCO STORES 4465,5411,Catering costs - provisions,3.18,0.53,2.65
Neighbourhoods and Climate Change,Environmental Services,031233,North Pennines - Pennine Peatlife,Supplies and Services,324117,Provisions E324,03-Oct-2022,000008526190048 - 1,TESCO STORES 4465,5411,Catering costs - provisions,8.87,,8.87
Neighbourhoods and Climate Change,Environmental Services,031233,North Pennines - Pennine Peatlife,Supplies and Services,348037,Subsistence E348,03-Oct-2022,000008526190052,VMS ROADCHEF COSTA,5814,Subsistence,12.73,0.00,12.73
Children and Young Peoples Services,Head of Early Help Inclusion & Vulnerable Children.,079599,Psychological-HQ,Supplies and Services,384999,Miscellaneous Expenses,03-Oct-2022,000008526190164,WWW.ACAMH.ORG,5965,Other expenses,79.00,0.00,79.00
Regeneration Economy and Growth,Economic Development Level C,030772,CLLD South,Supplies and Services,304259,Equipment and Materials,03-Oct-2022,000008526190190,SECURITY INDUSTRY AUTH,9399,Equipment-purchase and rental,190.00,0.00,190.00
Resources BK0010,Procurement Sales & Business Services,065501,Business Support - Executive Support,Supplies and Services,304403,Equipment and Materials,03-Oct-2022,000008526190238,Buyatab - Aldi,5947,Other consumables,10.00,0.00,10.00
Children and Young Peoples Services,Head of Childrens Social Care,085347,Solo Home The Manse,Supplies and Services,324117,Provisions E324,03-Oct-2022,000008526190310,SPAR 10814,5411,Catering costs - provisions,2.74,0.00,2.74
Children and Young Peoples Services,Head of Childrens Social Care,085342,16 Hickstead Rise (previously 9 Cedar Ave),Supplies and Services,304403,Equipment and Materials,03-Oct-2022,000008526190318,AMZNMktplace,5999,Other consumables,8.99,0.00,8.99
Children and Young Peoples Services,Head of Childrens Social Care,085342,16 Hickstead Rise (previously 9 Cedar Ave),Supplies and Services,324117,Provisions E324,03-Oct-2022,000008526190322,ASDA STORES,5411,Catering costs - provisions,6.60,0.00,6.60
Resources BK0010,Procurement Sales & Business Services,065503,Business Support - Spectrum,Supplies and Services,324117,Provisions E324,03-Oct-2022,000008526190326,ASDA GROCERIES ONLINE,5411,Catering costs - provisions,95.13,0.00,95.13
Resources BK0010,Procurement Sales & Business Services,065503,Business Support - Spectrum,Supplies and Services,324117,Provisions E324,03-Oct-2022,000008526190330,ASDA GROCERIES ONLINE,5411,Catering costs - provisions,-1.40,0.00,-1.40
Regeneration Economy and Growth,Planning & Housing,031576,B& B - Temp Accom,Supplies and Services,304259,Equipment and Materials,03-Oct-2022,000008526190338,WWW BELIEVEHOUSING CO,9399,Equipment-purchase and rental,500.00,0.00,500.00
Children and Young Peoples Services,Head of Childrens Social Care,085358,Orchard House Sacriston Solo Home,Supplies and Services,324117,Provisions E324,03-Oct-2022,000008526190368,ASDA GROCERIES ONLINE,5411,Catering costs - provisions,155.98,0.00,155.98
Children and Young Peoples Services,Head of Childrens Social Care,085358,Orchard House Sacriston Solo Home,Supplies and Services,324117,Provisions E324,03-Oct-2022,000008526190374,ASDA GROCERIES ONLINE,5411,Catering costs - provisions,-25.07,0.00,-25.07
Adult and Health Services,Commissioning inc Supporting People,052200,STPM Care Academy,Supplies and Services,332001,Printing Stationery and Gen Off Exps,03-Oct-2022,000008526190400,POUNDLAND,5310,General office expenses,8.00,0.00,8.00
Adult and Health Services,Commissioning inc Supporting People,052200,STPM Care Academy,Supplies and Services,384073,Miscellaneous Expenses,03-Oct-2022,000008526190402,ASDA STORES LTD 4313,5411,Catering - meetings,5.00,0.00,5.00
Adult and Health Services,Commissioning inc Supporting People,052200,STPM Care Academy,Supplies and Services,332001,Printing Stationery and Gen Off Exps,03-Oct-2022,000008526190406,"W.BOYES &amp; CO.,LIMI",5311,General office expenses,3.99,0.00,3.99
Children and Young Peoples Services,Head of Education and Skills,071732,Dean Bank Childcare,Supplies and Services,304403,Equipment and Materials,03-Oct-2022,000008526190416,AMZNMktplace,5999,Other consumables,23.99,0.00,23.99
Children and Young Peoples Services,Head of Education and Skills,071732,Dean Bank Childcare,Supplies and Services,324117,Provisions E324,03-Oct-2022,000008526190420,ASDA GROCERIES ONLINE,5411,Catering costs - provisions,31.59,0.00,31.59
Children and Young Peoples Services,Head of Education and Skills,071732,Dean Bank Childcare,Supplies and Services,324117,Provisions E324,03-Oct-2022,000008526190424,ASDA GROCERIES ONLINE,5411,Catering costs - provisions,52.25,0.00,52.25
Children and Young Peoples Services,Head of Education and Skills,071732,Dean Bank Childcare,Supplies and Services,324117,Provisions E324,03-Oct-2022,000008526190426,ASDA GROCERIES ONLINE,5411,Catering costs - provisions,-1.84,0.00,-1.84
Adult and Health Services,Head of Adults,055302,Durham Pathways,Supplies and Services,324117,Provisions E324,03-Oct-2022,000008526190432,SAINSBURYS S/MKTS,5411,Catering costs - provisions,49.30,0.00,49.30
Neighbourhoods and Climate Change,Environmental Services,026591,C&G - Hardwick Park,Supplies and Services,332047,Printing Stationery and Gen Off Exps,03-Oct-2022,000008526190454,AMZNBusiness CZ96G3BR5,5999,Stationery,6.27,1.05,5.22
Children and Young Peoples Services,Head of Education and Skills,071801,Selby Cottage Childcare Centre,Supplies and Services,324117,Provisions E324,03-Oct-2022,000008526190470,WILKO RETAIL LIMITED,5399,Catering costs - provisions,69.35,0.00,69.35
Children and Young Peoples Services,Head of Education and Skills,071801,Selby Cottage Childcare Centre,Supplies and Services,324117,Provisions E324,03-Oct-2022,000008526190474,ASDA SUPERSTORE,5411,Catering costs - provisions,22.60,0.00,22.60
Children and Young Peoples Services,Head of Education and Skills,071801,Selby Cottage Childcare Centre,Supplies and Services,324117,Provisions E324,03-Oct-2022,000008526190478,ALDI 32 774,5411,Catering costs - provisions,4.72,0.00,4.72
Children and Young Peoples Services,Head of Education and Skills,071801,Selby Cottage Childcare Centre,Supplies and Services,324117,Provisions E324,03-Oct-2022,000008526190482,WM MORRISONS STORE,5411,Catering costs - provisions,27.36,0.00,27.36
Children and Young Peoples Services,Head of Childrens Social Care,085341,High Etherley Satelite Home,Supplies and Services,324117,Provisions E324,03-Oct-2022,000008526190502,TESCO STORES 6329,5411,Catering costs - provisions,125.25,0.00,125.25
Neighbourhoods and Climate Change,Environmental Services,010301,C&G - North Grounds Maintenance,Supplies and Services,384999,Miscellaneous Expenses,03-Oct-2022,000008526190544,MURRAY MEMORIALS,7261,Other expenses,36.00,0.00,36.00
Regeneration Economy and Growth,Business Durham CL0850,030714,Salvus House,Supplies and Services,304403,Equipment and Materials,03-Oct-2022,000008526190586,AMZNMktplace,5999,Other consumables,19.80,3.30,16.50
Regeneration Economy and Growth,Business Durham CL0850,030714,Salvus House,Supplies and Services,304403,Equipment and Materials,03-Oct-2022,000008526190586 - 1,AMZNMktplace,5999,Other consumables,0.10,,0.10
Regeneration Economy and Growth,Economic Development Level C,030771,Durham Advance Flexible Fund,Supplies and Services,348037,Subsistence E348,03-Oct-2022,000008526190608,COSTA COFFEE SEAHAM,5812,Subsistence,3.75,0.00,3.75
Regeneration Economy and Growth,Economic Development Level C,030771,Durham Advance Flexible Fund,Supplies and Services,304259,Equipment and Materials,03-Oct-2022,000008526190612,LAPTOPS DIRECT,5732,Equipment-purchase and rental,105.96,0.00,105.96
Children and Young Peoples Services,Head of Education and Skills,070169,Durham SSP,Supplies and Services,304259,Equipment and Materials,03-Oct-2022,000008526190634,NEWITTS.COM,5941,Equipment-purchase and rental,146.75,24.46,122.29
Resources BK0010,HR & Employee Services,010984,Training and Development,Third Party Payments,430100,Rendered by Private Contractors,03-Oct-2022,000008526190666,WWW.IQMSLEARNING.CO.UK,7399,Payments to sub-contractors,297.00,0.00,297.00
Children and Young Peoples Services,Head of Childrens Social Care,085560,Community Short Breaks,Supplies and Services,384700,Miscellaneous Expenses,03-Oct-2022,000008526190708,SP SENSORY EDUCATION,5945,Miscellaneous grants,287.88,0.00,287.88
Children and Young Peoples Services,Head of Childrens Social Care,085332,Middlestone Moor CU,Supplies and Services,348037,Subsistence E348,03-Oct-2022,000008526190780,MCDONALDS,5814,Subsistence,6.29,0.00,6.29
Children and Young Peoples Services,Head of Childrens Social Care,085341,High Etherley Satelite Home,Supplies and Services,304403,Equipment and Materials,03-Oct-2022,000008526190858,AMZNMktplace,5999,Other consumables,19.99,3.33,16.66
Children and Young Peoples Services,Head of Childrens Social Care,085341,High Etherley Satelite Home,Supplies and Services,304403,Equipment and Materials,03-Oct-2022,000008526190864,AMZNMktplace,5999,Other consumables,23.06,3.84,19.22
Children and Young Peoples Services,Head of Childrens Social Care,085341,High Etherley Satelite Home,Supplies and Services,304403,Equipment and Materials,03-Oct-2022,000008526190870,AMZNMktplace,5999,Other consumables,22.66,3.78,18.88
Dedicated Schools Grant BG0015,DSG Schools Block,418514,Belmont Community School 004185 - Music,Supplies and Services,304403,Equipment and Materials,03-Oct-2022,000008526190882,AMZNMktplace,5999,Other consumables,12.99,2.17,10.82
Regeneration Economy and Growth,Corporate Property and Land,020079,Bldg Serv - R&M Div 79- Electrical,Supplies and Services,304221,Equipment and Materials,03-Oct-2022,000008526190984,eBay O 12-09173-06963,5311,Direct materials,214.95,0.00,214.95
Neighbourhoods and Climate Change,Environmental Services,010367,C&G - South Grounds Maintenance,Supplies and Services,304221,Equipment and Materials,03-Oct-2022,000008526191028,WWW.TUDORENVIRONMENTAL,5261,Direct materials,91.51,0.00,91.51
Children and Young Peoples Services,Head of Education and Skills,078554,Adult Skills-Main,Supplies and Services,312009,Newspapers books and periodicals E312,03-Oct-2022,000008526191034,KEDA PUBLICATIONS-KP,5192,Newspapers books and periodicals,96.00,0.00,96.00
Children and Young Peoples Services,Head of Education and Skills,071732,Dean Bank Childcare,Supplies and Services,324117,Provisions E324,03-Oct-2022,000008526191052,ASDA GROCERIES ONLINE,5411,Catering costs - provisions,47.39,0.00,47.39
Children and Young Peoples Services,Head of Education and Skills,071732,Dean Bank Childcare,Supplies and Services,324117,Provisions E324,03-Oct-2022,000008526191058,ASDA GROCERIES ONLINE,5411,Catering costs - provisions,-6.71,0.00,-6.71
Children and Young Peoples Services,Head of Childrens Social Care,085341,High Etherley Satelite Home,Transport,235057,Public Transport,03-Oct-2022,000008526191124,BISHOP AUCKLAND STN TO,4112,Staff travelling,5.10,0.00,5.10
Children and Young Peoples Services,Head of Childrens Social Care,085341,High Etherley Satelite Home,Supplies and Services,332047,Printing Stationery and Gen Off Exps,03-Oct-2022,000008526191130,EUROFFICE.CO.UK,5943,Stationery,33.09,0.00,33.09
Neighbourhoods and Climate Change,Environmental Services,031233,North Pennines - Pennine Peatlife,Supplies and Services,344110,Telephones,03-Oct-2022,000008526191142,WH SMITH,5994,Landlines installation (PSTN),4.99,0.00,4.99
Dedicated Schools Grant BG0015,DSG Schools Block,231104,Peases West Primary 2311 - General Curriculum,Supplies and Services,312011,Newspapers books and periodicals E312,03-Oct-2022,000008526191234,AMZNMKTPLACE AMAZON.CO,5999,Books-school library,11.10,0.00,11.10
Dedicated Schools Grant BG0015,DSG Schools Block,231104,Peases West Primary 2311 - General Curriculum,Supplies and Services,312011,Newspapers books and periodicals E312,03-Oct-2022,000008526191238,AMZNMKTPLACE AMAZON.CO,5999,Books-school library,11.99,0.00,11.99
Children and Young Peoples Services,Head of Early Help Inclusion & Vulnerable Children.,085965,Barnard,Supplies and Services,384302,Miscellaneous Expenses,03-Oct-2022,000008526191266,AMZNMKTPLACE AMAZON.CO,5999,Activity expenses,2.94,0.49,2.45
Children and Young Peoples Services,Head of Early Help Inclusion & Vulnerable Children.,085965,Barnard,Supplies and Services,384302,Miscellaneous Expenses,03-Oct-2022,000008526191266 - 1,AMZNMKTPLACE AMAZON.CO,5999,Activity expenses,0.03,,0.03
Children and Young Peoples Services,Head of Early Help Inclusion & Vulnerable Children.,085952,Secure Education,Supplies and Services,304259,Equipment and Materials,03-Oct-2022,000008526191280,AMZNMktplace,5999,Equipment-purchase and rental,24.99,4.17,20.82
Children and Young Peoples Services,Head of Early Help Inclusion & Vulnerable Children.,085952,Secure Education,Supplies and Services,304303,Equipment and Materials,03-Oct-2022,000008526191282,AMZNMktplace,5999,Network for resale,9.06,0.00,9.06
Children and Young Peoples Services,Head of Early Help Inclusion & Vulnerable Children.,085957,Secure Management,Supplies and Services,304259,Equipment and Materials,03-Oct-2022,000008526191286,AMZNMktplace,5999,Equipment-purchase and rental,99.90,16.65,83.25
Children and Young Peoples Services,Head of Early Help Inclusion & Vulnerable Children.,085957,Secure Management,Supplies and Services,304259,Equipment and Materials,03-Oct-2022,000008526191286 - 1,AMZNMktplace,5999,Equipment-purchase and rental,0.05,,0.05
Children and Young Peoples Services,Head of Early Help Inclusion & Vulnerable Children.,085952,Secure Education,Supplies and Services,324117,Provisions E324,03-Oct-2022,000008526191288,TESCO STORES 6329,5411,Catering costs - provisions,181.37,0.00,181.37
Children and Young Peoples Services,Head of Early Help Inclusion & Vulnerable Children.,085957,Secure Management,Supplies and Services,304405,Equipment and Materials,03-Oct-2022,000008526191290,AMZNMktplace,5999,Medical supplies,12.97,2.16,10.81
Children and Young Peoples Services,Head of Early Help Inclusion & Vulnerable Children.,085962,Aycliffe Secure - Durham,Supplies and Services,304403,Equipment and Materials,03-Oct-2022,000008526191460,AMZNMKTPLACE AMAZON.CO,5999,Other consumables,9.89,1.65,8.24
Resources BK0010,Digital Services,065481,Technical Services 065481,Supplies and Services,304221,Equipment and Materials,03-Oct-2022,000008526191524,S&A BUILDERS MERCHANTS,5211,Direct materials,31.72,0.00,31.72
Regeneration Economy and Growth,Communications Management,060270,Communications and Marketing,Supplies and Services,336005,Advertising E336,03-Oct-2022,000008526191556,LinkedIn 8315104454,7311,Advertising other than for staff,93.23,0.00,93.23
Regeneration Economy and Growth,Communications Management,060270,Communications and Marketing,Supplies and Services,336005,Advertising E336,03-Oct-2022,000008526191560,FACEBK E4H25GB4B2,7311,Advertising other than for staff,500.00,0.00,500.00
Neighbourhoods and Climate Change,Community Protection,011283,Community Action,Supplies and Services,340001,Postages E340,03-Oct-2022,000008526191562,ROYAL MAIL ONLINE SHOP,9402,Postages,237.50,0.00,237.50
Children and Young Peoples Services,Head of Early Help Inclusion & Vulnerable Children.,088113,Seaham & Laurel Avenue Family Centre,Supplies and Services,324117,Provisions E324,03-Oct-2022,000008526191716,ALDI 34 774,5411,Catering costs - provisions,24.94,0.00,24.94
Regeneration Economy and Growth,Corporate Property and Land,010525,Catering - Green Lane,Supplies and Services,324117,Provisions E324,03-Oct-2022,000008526365848,JR HOLLAND FOODSERVICE,5499,Catering costs - provisions,28.86,0.00,28.86
Regeneration Economy and Growth,Corporate Property and Land,011296,Catering - Dunes,Supplies and Services,324117,Provisions E324,03-Oct-2022,000008526365860,JR HOLLAND FOODSERVICE,5499,Catering costs - provisions,20.75,0.00,20.75
Regeneration Economy and Growth,Corporate Property and Land,030691,Catering - Durham Dales Centre,Supplies and Services,324117,Provisions E324,03-Oct-2022,000008526365870,JR HOLLAND FOODSERVICE,5499,Catering costs - provisions,-9.95,0.00,-9.95
Adult and Health Services,Head of Adults,055643,Hawthorn House LD Respite Unit,Supplies and Services,324117,Provisions E324,03-Oct-2022,000008526365882,JR HOLLAND FOODSERVICE,5499,Catering costs - provisions,24.42,0.00,24.42
Neighbourhoods and Climate Change,Environmental Services,011060,C&G - Hardwick Park Catering,Supplies and Services,324117,Provisions E324,03-Oct-2022,000008526365896,JR HOLLAND FOODSERVICE,5499,Catering costs - provisions,57.78,0.00,57.78
Regeneration Economy and Growth,Corporate Property and Land,021235,Catering - Wharton Park,Supplies and Services,324117,Provisions E324,03-Oct-2022,000008526365900,JR HOLLAND FOODSERVICE,5499,Catering costs - provisions,36.89,0.00,36.89
Regeneration Economy and Growth,Culture Sport and Tourism,054812,Gala Theatre - Catering etc,Supplies and Services,324117,Provisions E324,03-Oct-2022,000008526365910,JR HOLLAND FOODSERVICE,5499,Catering costs - provisions,27.45,0.00,27.45
Regeneration Economy and Growth,Corporate Property and Land,021242,Catering - County Hall,Supplies and Services,324117,Provisions E324,03-Oct-2022,000008526365912,JR HOLLAND FOODSERVICE,5499,Catering costs - provisions,142.71,0.00,142.71
Regeneration Economy and Growth,Corporate Property and Land,021242,Catering - County Hall,Supplies and Services,324117,Provisions E324,03-Oct-2022,000008526365916,JR HOLLAND FOODSERVICE,5499,Catering costs - provisions,32.24,0.00,32.24
Regeneration Economy and Growth,Culture Sport and Tourism,030705,Visit County Durham 030705,Supplies and Services,304259,Equipment and Materials,03-Oct-2022,000008530590234,FASTHOSTS,4816,Equipment-purchase and rental,7.54,1.26,6.28
Children and Young Peoples Services,Head of Childrens Social Care,085511,Emergency Duty Team,Supplies and Services,352001,Conference Expenses,03-Oct-2022,000008530590776,HOTEL 52,7011,Conferencesseminars fees etc,75.00,0.00,75.00
Regeneration Economy and Growth,Planning & Housing,031576,B& B - Temp Accom,Supplies and Services,364320,Grants to Voluntary Organisations,03-Oct-2022,000008530590908,HOTEL 52,7011,Accommodation assistance,110.00,0.00,110.00
Neighbourhoods and Climate Change,Environmental Services,026591,C&G - Hardwick Park,Supplies and Services,332047,Printing Stationery and Gen Off Exps,03-Oct-2022,000008530591142,AMZNMKTPLACE AMAZON.CO,5999,Stationery,5.99,1.00,4.99
Children and Young Peoples Services,Head of Early Help Inclusion & Vulnerable Children.,085956,Lumley,Supplies and Services,308011,Furniture,03-Oct-2022,000008530591474,AMZNMKTPLACE AMAZON.CO,5999,Furniture repair and replacement,23.99,0.00,23.99
Children and Young Peoples Services,Head of Childrens Social Care,085341,High Etherley Satelite Home,Supplies and Services,304403,Equipment and Materials,03-Oct-2022,000008530591796,AMZNMKTPLACE AMAZON.CO,5999,Other consumables,19.99,3.33,16.66
Neighbourhoods and Climate Change,Environmental Services,031233,North Pennines - Pennine Peatlife,Supplies and Services,348037,Subsistence E348,03-Oct-2022,000008530592102,RELAY 352567SV,5942,Subsistence,8.73,0.00,8.73
Neighbourhoods and Climate Change,Environmental Services,031233,North Pennines - Pennine Peatlife,Supplies and Services,364320,Grants to Voluntary Organisations,03-Oct-2022,000008530592114,HOTEL IBIS,3533,Accommodation assistance,53.93,0.00,53.93
Neighbourhoods and Climate Change,Environmental Services,031233,North Pennines - Pennine Peatlife,Supplies and Services,348037,Subsistence E348,03-Oct-2022,000008530592118,RELAY 373373SC,5942,Subsistence,7.71,0.00,7.71
Children and Young Peoples Services,Head of Childrens Social Care,085334,West Rainton Satelite Home,Transport,215995,Running Costs of Vehicles,03-Oct-2022,000008530593066,GULF WEST RAINTON,5541,Vehicle running expenses,3.85,0.00,3.85
Children and Young Peoples Services,Head of Childrens Social Care,085397,Regionalisation of Adoption,Supplies and Services,336005,Advertising E336,03-Oct-2022,000008530593304,OFFICEPKWMX,5094,Advertising other than for staff,44.30,7.38,36.92
Regeneration Economy and Growth,Corporate Property and Land,030691,Catering - Durham Dales Centre,Supplies and Services,324117,Provisions E324,03-Oct-2022,000008530750082,BATLEYS PERTH,5300,Catering costs - provisions,30.36,5.06,25.30
Regeneration Economy and Growth,Corporate Property and Land,030691,Catering - Durham Dales Centre,Supplies and Services,324117,Provisions E324,03-Oct-2022,000008530750082 - 1,BATLEYS PERTH,5300,Catering costs - provisions,273.47,,273.47
Regeneration Economy and Growth,Culture Sport and Tourism,054812,Gala Theatre - Catering etc,Supplies and Services,324117,Provisions E324,03-Oct-2022,000008530750108,BATLEYS PERTH,5300,Catering costs - provisions,81.18,13.53,67.65
Regeneration Economy and Growth,Culture Sport and Tourism,054812,Gala Theatre - Catering etc,Supplies and Services,324117,Provisions E324,03-Oct-2022,000008530750108 - 1,BATLEYS PERTH,5300,Catering costs - provisions,86.34,,86.34
Children and Young Peoples Services,Head of Childrens Social Care,085551,Short Break Services-Park Hse Sher,Supplies and Services,328041,Clothing uniforms and laundry E328,04-Oct-2022,000008526191662,Etsy.com - ThePictureG,5699,Clothing uniforms and laundry,54.99,0.00,54.99
Children and Young Peoples Services,Head of Education and Skills,071801,Selby Cottage Childcare Centre,Supplies and Services,324117,Provisions E324,04-Oct-2022,000008530589976,B&M 688 WASHINGTON,5399,Catering costs - provisions,72.91,0.00,72.91
Children and Young Peoples Services,Head of Education and Skills,071801,Selby Cottage Childcare Centre,Supplies and Services,324117,Provisions E324,04-Oct-2022,000008530589984,JR HOLLAND FOODSERVICE,5499,Catering costs - provisions,192.42,0.00,192.42
Children and Young Peoples Services,Head of Education and Skills,071801,Selby Cottage Childcare Centre,Supplies and Services,324117,Provisions E324,04-Oct-2022,000008530589992,TESCO STORES 2278,5411,Catering costs - provisions,60.52,0.00,60.52
Children and Young Peoples Services,Head of Education and Skills,071801,Selby Cottage Childcare Centre,Supplies and Services,304403,Equipment and Materials,04-Oct-2022,000008530590000,AMZNMKTPLACE AMAZON.CO,5999,Other consumables,9.45,0.00,9.45
Dedicated Schools Grant BG0015,DSG Schools Block,417603,Greenfield Community College 004176 - English,Supplies and Services,304403,Equipment and Materials,04-Oct-2022,000008530590042,BONACIA LTD,2741,Other consumables,60.00,0.00,60.00
Children and Young Peoples Services,Head of Childrens Social Care,085341,High Etherley Satelite Home,Supplies and Services,304999,Equipment and Materials,04-Oct-2022,000008530590110,B & Q 1120,5200,Misc equipment tools and materials,44.00,0.00,44.00
Resources BK0010,Legal & Democratic Services,069326,Practice Management,Supplies and Services,304259,Equipment and Materials,04-Oct-2022,000008530590120,GATESHEAD COUNCIL MOTO,9399,Equipment-purchase and rental,11.00,0.00,11.00
Children and Young Peoples Services,Head of Childrens Social Care,085347,Solo Home The Manse,Supplies and Services,304403,Equipment and Materials,04-Oct-2022,000008530590162,AMZNMKTPLACE AMAZON.CO,5999,Other consumables,23.99,0.00,23.99
Children and Young Peoples Services,Head of Childrens Social Care,085347,Solo Home The Manse,Supplies and Services,304403,Equipment and Materials,04-Oct-2022,000008530590168,WWW.PRINTERBASE.CO.UK,5999,Other consumables,89.76,0.00,89.76
Children and Young Peoples Services,Head of Education and Skills,078561,DurhamEnable,Supplies and Services,312009,Newspapers books and periodicals E312,04-Oct-2022,000008530590186,WWW.CPAG.ORG.UK,8398,Newspapers books and periodicals,120.14,0.00,120.14
Children and Young Peoples Services,Head of Education and Skills,075034,Youth Futures Foundation,Supplies and Services,364301,Grants to Voluntary Organisations,04-Oct-2022,000008530590194,WWW.RUSSUM.CO.UK,5399,Hardship,213.24,0.00,213.24
Regeneration Economy and Growth,Culture Sport and Tourism,054820,Gala Theatre - Overheads,Supplies and Services,304252,Equipment and Materials,04-Oct-2022,000008530590222,AMZNMktplace,5999,Equipment-repairsserviceinsurance,31.99,0.00,31.99
Regeneration Economy and Growth,Culture Sport and Tourism,030712,VCD - Project Delivery,Supplies and Services,384199,Miscellaneous Expenses,04-Oct-2022,000008530590244,FACEBK 45CLMH3RH2,7311,Other hired and contracted services,34.79,0.00,34.79
Children and Young Peoples Services,Head of Childrens Social Care,085332,Middlestone Moor CU,Supplies and Services,304999,Equipment and Materials,04-Oct-2022,000008530590308,AMZNMKTPLACE AMAZON.CO,5999,Misc equipment tools and materials,18.95,3.16,15.79
Children and Young Peoples Services,Head of Childrens Social Care,085332,Middlestone Moor CU,Supplies and Services,324117,Provisions E324,04-Oct-2022,000008530590316,TESCO STORES 2371,5411,Catering costs - provisions,158.04,0.00,158.04
Children and Young Peoples Services,Head of Childrens Social Care,085334,West Rainton Satelite Home,Supplies and Services,324117,Provisions E324,04-Oct-2022,000008530590356,TESCO STORES 2371,5411,Catering costs - provisions,147.43,0.00,147.43
Children and Young Peoples Services,Head of Education and Skills,054640,Durham Learning Resources 054640,Supplies and Services,304403,Equipment and Materials,04-Oct-2022,000008530590448,AMZNMktplace,5999,Other consumables,15.36,2.56,12.80
Children and Young Peoples Services,Head of Education and Skills,054640,Durham Learning Resources 054640,Supplies and Services,304403,Equipment and Materials,04-Oct-2022,000008530590448 - 1,AMZNMktplace,5999,Other consumables,0.04,,0.04
Children and Young Peoples Services,Head of Childrens Social Care,085331,New Lea Childrens Home,Supplies and Services,304403,Equipment and Materials,04-Oct-2022,000008530590538,PSYCHO PATH,5734,Other consumables,122.10,0.00,122.10
Children and Young Peoples Services,Head of Childrens Social Care,085365,Children Looked After Team 2,Supplies and Services,338045,Services,04-Oct-2022,000008530590576,GEN REGISTER OFFICE,9399,Legal expenses 338045,22.00,0.00,22.00
Children and Young Peoples Services,Head of Childrens Social Care,085365,Children Looked After Team 2,Supplies and Services,338045,Services,04-Oct-2022,000008530590582,GEN REGISTER OFFICE,9399,Legal expenses 338045,22.00,0.00,22.00
Children and Young Peoples Services,Head of Childrens Social Care,085366,Children Looked After Team 3,Supplies and Services,338045,Services,04-Oct-2022,000008530590584,GEN REGISTER OFFICE,9399,Legal expenses 338045,22.00,0.00,22.00
Regeneration Economy and Growth,Economic Development Level C,030772,CLLD South,Supplies and Services,304259,Equipment and Materials,04-Oct-2022,000008530590802,DURHAM COUNTY COUNCIL,9399,Equipment-purchase and rental,35.00,0.00,35.00
Resources BK0010,Procurement Sales & Business Services,065503,Business Support - Spectrum,Supplies and Services,384999,Miscellaneous Expenses,04-Oct-2022,000008530590892,PAYPAL ROSEBUDCERA,5970,Other expenses,150.00,0.00,150.00
Children and Young Peoples Services,Head of Childrens Social Care,085358,Orchard House Sacriston Solo Home,Supplies and Services,344033,Telephones,04-Oct-2022,000008530590968,giffgaff,4814,Telephones general-all costs,10.00,0.00,10.00
Children and Young Peoples Services,Head of Education and Skills,071732,Dean Bank Childcare,Third Party Payments,430100,Rendered by Private Contractors,04-Oct-2022,000008530591094,WWW.EYFS.INFO,7399,Payments to sub-contractors,134.40,0.00,134.40
Children and Young Peoples Services,Head of Education and Skills,071732,Dean Bank Childcare,Third Party Payments,430100,Rendered by Private Contractors,04-Oct-2022,000008530591098,WWW.EYFS.INFO,7399,Payments to sub-contractors,134.40,0.00,134.40
Children and Young Peoples Services,Head of Education and Skills,071732,Dean Bank Childcare,Supplies and Services,324117,Provisions E324,04-Oct-2022,000008530591104,B&M 035 - SHILDON,5399,Catering costs - provisions,75.38,0.00,75.38
Adult and Health Services,Head of Adults,055302,Durham Pathways,Supplies and Services,324117,Provisions E324,04-Oct-2022,000008530591128,ASDA SUPERSTORE 4987,5411,Catering costs - provisions,19.20,0.00,19.20
Regeneration Economy and Growth,Business Durham CL0850,030714,Salvus House,Supplies and Services,304083,Equipment and Materials,04-Oct-2022,000008530591354,AMZNMktplace,5999,Catering equipment,473.95,78.99,394.96
Regeneration Economy and Growth,Planning & Housing,031623,Rough Sleeping,Supplies and Services,324117,Provisions E324,04-Oct-2022,000008530591364,ASDA SUPERSTORE,5411,Catering costs - provisions,45.25,0.00,45.25
Regeneration Economy and Growth,Economic Development Level C,030771,Durham Advance Flexible Fund,Transport,235057,Public Transport,04-Oct-2022,000008530591408,WWW.GONORTHEAST.CO.UK,4111,Staff travelling,6.30,0.00,6.30
Regeneration Economy and Growth,Economic Development Level C,030771,Durham Advance Flexible Fund,Transport,235057,Public Transport,04-Oct-2022,000008530591420,WWW.GONORTHEAST.CO.UK,4111,Staff travelling,6.30,0.00,6.30
Children and Young Peoples Services,Head of Childrens Social Care,085364,Children Looked After Team 1,Supplies and Services,328041,Clothing uniforms and laundry E328,04-Oct-2022,000008530591438,ARGOS LTD,5310,Clothing uniforms and laundry,333.95,0.00,333.95
Children and Young Peoples Services,Head of Childrens Social Care,085364,Children Looked After Team 1,Supplies and Services,304259,Equipment and Materials,04-Oct-2022,000008530591452,HARTLEPOOL BC,9399,Equipment-purchase and rental,11.00,0.00,11.00
Children and Young Peoples Services,Head of Early Help Inclusion & Vulnerable Children.,085962,Aycliffe Secure - Durham,Transfer Payments,515002,Social Services Clients,04-Oct-2022,000008530591464,Footasylum Limited,5651,Pocket money,49.99,0.00,49.99
Children and Young Peoples Services,Head of Early Help Inclusion & Vulnerable Children.,085965,Barnard,Transfer Payments,515002,Social Services Clients,04-Oct-2022,000008530591482,FLANNELS.COM,5691,Pocket money,125.99,0.00,125.99
Children and Young Peoples Services,Head of Education and Skills,070169,Durham SSP,Supplies and Services,324117,Provisions E324,04-Oct-2022,000008530591534,Nespresso UK LIMITED,5499,Catering costs - provisions,109.13,0.00,109.13
Children and Young Peoples Services,Head of Early Help Inclusion & Vulnerable Children.,088106,Ferryhill & N. Aycliffe Intensive Family Support Team,Supplies and Services,364301,Grants to Voluntary Organisations,04-Oct-2022,000008530591630,AMZNMKTPLACE AMAZON.CO,5999,Hardship,63.98,10.66,53.32
Children and Young Peoples Services,Head of Early Help Inclusion & Vulnerable Children.,088106,Ferryhill & N. Aycliffe Intensive Family Support Team,Supplies and Services,364301,Grants to Voluntary Organisations,04-Oct-2022,000008530591638,ARGOS LTD,5310,Hardship,39.99,0.00,39.99
Regeneration Economy and Growth,Economic Development Level C,030771,Durham Advance Flexible Fund,Transport,235057,Public Transport,04-Oct-2022,000008530591736,3C_ NSL Durham WAP,7523,Staff travelling,2.50,0.42,2.08
Regeneration Economy and Growth,Economic Development Level C,030771,Durham Advance Flexible Fund,Employees,040149,Recruitment Instruction and Training,04-Oct-2022,000008530591742,iZ THE WITHAM HAL,8398,Training-all costs,5.50,0.00,5.50
Children and Young Peoples Services,Head of Childrens Social Care,085341,High Etherley Satelite Home,Supplies and Services,304403,Equipment and Materials,04-Oct-2022,000008530591788,AMZNMKTPLACE AMAZON.CO,5999,Other consumables,11.99,2.00,9.99
Dedicated Schools Grant BG0015,DSG Schools Block,418516,Belmont Community School 004185 - Marketing,Supplies and Services,304403,Equipment and Materials,04-Oct-2022,000008530591830,AMZNMktplace,5999,Other consumables,20.97,3.51,17.46
Dedicated Schools Grant BG0015,DSG Schools Block,418516,Belmont Community School 004185 - Marketing,Supplies and Services,304403,Equipment and Materials,04-Oct-2022,000008530591840,AMZNMktplace,5999,Other consumables,20.97,5.01,15.96
Dedicated Schools Grant BG0015,DSG Schools Block,418516,Belmont Community School 004185 - Marketing,Supplies and Services,304403,Equipment and Materials,04-Oct-2022,000008530591846,AMZNMktplace,5999,Other consumables,9.00,5.01,3.99
Adult and Health Services,Head of Adults,055643,Hawthorn House LD Respite Unit,Supplies and Services,324117,Provisions E324,04-Oct-2022,000008530591952,SAINSBURYS S/MKTS,5411,Catering costs - provisions,8.30,0.00,8.30
Children and Young Peoples Services,Head of Education and Skills,071802,Louisa Cent Nursery,Supplies and Services,324117,Provisions E324,04-Oct-2022,000008530591982,ALDI STORES,5411,Catering costs - provisions,2.95,0.00,2.95
Regeneration Economy and Growth,Economic Development Level C,030777,FLEX,Supplies and Services,304259,Equipment and Materials,04-Oct-2022,000008530591998,GEN REGISTER OFFICE,9399,Equipment-purchase and rental,14.00,0.00,14.00
Children and Young Peoples Services,Head of Childrens Social Care,085331,New Lea Childrens Home,Supplies and Services,324117,Provisions E324,04-Oct-2022,000008530592006,B&M 519 - CONSETT,5399,Catering costs - provisions,94.93,0.00,94.93
Children and Young Peoples Services,Head of Childrens Social Care,085331,New Lea Childrens Home,Supplies and Services,324117,Provisions E324,04-Oct-2022,000008530592016,STARBUCKS CONSETT,5499,Catering costs - provisions,11.15,0.00,11.15
Children and Young Peoples Services,Head of Childrens Social Care,085331,New Lea Childrens Home,Supplies and Services,348037,Subsistence E348,04-Oct-2022,000008530592020,MCDONALDS 1555,5814,Subsistence,7.42,0.00,7.42
Children and Young Peoples Services,Head of Childrens Social Care,085347,Solo Home The Manse,Supplies and Services,324117,Provisions E324,04-Oct-2022,000008530592026,CO-OP GROUP 310016,5411,Catering costs - provisions,15.45,0.00,15.45
Children and Young Peoples Services,Head of Childrens Social Care,085347,Solo Home The Manse,Supplies and Services,384999,Miscellaneous Expenses,04-Oct-2022,000008530592034,THE RABY ESTATES,5970,Other expenses,18.60,0.00,18.60
Children and Young Peoples Services,Head of Education and Skills,071732,Dean Bank Childcare,Supplies and Services,304403,Equipment and Materials,04-Oct-2022,000008530592060,AMZNMktplace,5999,Other consumables,7.99,0.00,7.99
Neighbourhoods and Climate Change,Environmental Services,031233,North Pennines - Pennine Peatlife,Supplies and Services,348037,Subsistence E348,04-Oct-2022,000008530592110,HALLES SOLANID,8911,Subsistence,4.02,0.00,4.02
Neighbourhoods and Climate Change,Environmental Services,031233,North Pennines - Pennine Peatlife,Transport,235057,Public Transport,04-Oct-2022,000008530592124,SumUp AEROPORT TAXI,4121,Staff travelling,25.61,0.00,25.61
Neighbourhoods and Climate Change,Environmental Services,031233,North Pennines - Pennine Peatlife,Transport,235057,Public Transport,04-Oct-2022,000008530592132,SNCF,4112,Staff travelling,26.85,0.00,26.85
Children and Young Peoples Services,Head of Early Help Inclusion & Vulnerable Children.,085801,CDYJS - Support,Employees,040149,Recruitment Instruction and Training,04-Oct-2022,000008530592164,ontopup.com,8699,Training-all costs,11.89,0.00,11.89
Children and Young Peoples Services,Head of Childrens Social Care,085331,New Lea Childrens Home,Supplies and Services,304221,Equipment and Materials,04-Oct-2022,000008530592292,HOMEBASE LTD 822,5200,Direct materials,26.00,0.00,26.00
Dedicated Schools Grant BG0015,DSG Schools Block,231104,Peases West Primary 2311 - General Curriculum,Supplies and Services,304403,Equipment and Materials,04-Oct-2022,000008530592402,OOTA/SYARD OUT OF THE,5734,Other consumables,30.90,5.15,25.75
Dedicated Schools Grant BG0015,DSG Schools Block,231104,Peases West Primary 2311 - General Curriculum,Supplies and Services,304403,Equipment and Materials,04-Oct-2022,000008530592402 - 1,OOTA/SYARD OUT OF THE,5734,Other consumables,29.95,,29.95
Regeneration Economy and Growth,Economic Development Level C,030771,Durham Advance Flexible Fund,Supplies and Services,348037,Subsistence E348,04-Oct-2022,000008530592426,CHESTER LE STREET,5814,Subsistence,3.50,0.00,3.50
Children and Young Peoples Services,Head of Early Help Inclusion & Vulnerable Children.,085954,Walworth,Supplies and Services,304259,Equipment and Materials,04-Oct-2022,000008530592452,Amazon.co.uk H481Z6DN5,5969,Equipment-purchase and rental,72.99,12.17,60.82
Children and Young Peoples Services,Head of Early Help Inclusion & Vulnerable Children.,085963,Maple House,Supplies and Services,304259,Equipment and Materials,04-Oct-2022,000008530592462,WWW.FURNITUREATWORK.CO,5712,Equipment-purchase and rental,166.44,0.00,166.44
Children and Young Peoples Services,Head of Early Help Inclusion & Vulnerable Children.,085957,Secure Management,Supplies and Services,384302,Miscellaneous Expenses,04-Oct-2022,000008530592470,MICROSOFT XBOX,5816,Activity expenses,53.99,0.00,53.99
Children and Young Peoples Services,Head of Early Help Inclusion & Vulnerable Children.,085801,CDYJS - Support,Supplies and Services,304403,Equipment and Materials,04-Oct-2022,000008530592646,AMZNMKTPLACE AMAZON.CO,5999,Other consumables,14.74,2.46,12.28
Children and Young Peoples Services,Head of Early Help Inclusion & Vulnerable Children.,085801,CDYJS - Support,Supplies and Services,304403,Equipment and Materials,04-Oct-2022,000008530592658,AMZNBusiness IN4B85NV5,5999,Other consumables,19.99,3.33,16.66
Children and Young Peoples Services,Head of Early Help Inclusion & Vulnerable Children.,088100,Durham & CLS Intensive Family Support Team,Supplies and Services,364301,Grants to Voluntary Organisations,04-Oct-2022,000008530592742,AMZNMktplace,5999,Hardship,9.50,1.58,7.92
Children and Young Peoples Services,Head of Early Help Inclusion & Vulnerable Children.,088100,Durham & CLS Intensive Family Support Team,Supplies and Services,364301,Grants to Voluntary Organisations,04-Oct-2022,000008530592750,AMZNMktplace,5999,Hardship,13.00,2.17,10.83
Children and Young Peoples Services,Head of Childrens Social Care,085347,Solo Home The Manse,Supplies and Services,348037,Subsistence E348,04-Oct-2022,000008530592768,MANAO THAI,5814,Subsistence,26.40,0.00,26.40
Children and Young Peoples Services,Head of Childrens Social Care,085347,Solo Home The Manse,Supplies and Services,348037,Subsistence E348,04-Oct-2022,000008530592780,The Food Pit,5812,Subsistence,5.20,0.00,5.20
Children and Young Peoples Services,Head of Childrens Social Care,085347,Solo Home The Manse,Supplies and Services,348037,Subsistence E348,04-Oct-2022,000008530592788,The Food Pit,5812,Subsistence,12.90,0.00,12.90
Regeneration Economy and Growth,Culture Sport and Tourism,054812,Gala Theatre - Catering etc,Supplies and Services,324117,Provisions E324,04-Oct-2022,000008530592798,TESCO STORES 6029,5411,Catering costs - provisions,4.65,0.00,4.65
Children and Young Peoples Services,Head of Childrens Social Care,085332,Middlestone Moor CU,Supplies and Services,304999,Equipment and Materials,04-Oct-2022,000008530592836,HOME BARGAINS SPENNYMO,5251,Misc equipment tools and materials,3.99,0.00,3.99
Children and Young Peoples Services,Head of Childrens Social Care,085332,Middlestone Moor CU,Supplies and Services,324117,Provisions E324,04-Oct-2022,000008530592852,ASDA SUPERSTORE 4987,5411,Catering costs - provisions,49.05,0.00,49.05
Children and Young Peoples Services,Head of Childrens Social Care,085332,Middlestone Moor CU,Supplies and Services,348037,Subsistence E348,04-Oct-2022,000008530592858,MCDONALDS,5812,Subsistence,2.58,0.00,2.58
Regeneration Economy and Growth,Culture Sport and Tourism,054233,Bishop Auckland Town Hall Library,Supplies and Services,324117,Provisions E324,04-Oct-2022,000008530592880,WM MORRISONS STORE,5411,Catering costs - provisions,132.40,0.00,132.40
Regeneration Economy and Growth,Economic Development Level C,030776,LINKCD Flexible Fund,Supplies and Services,348037,Subsistence E348,04-Oct-2022,000008530592966,43039235 COSTA COFFEE,5814,Subsistence,3.35,0.00,3.35
Resources BK0010,Legal & Democratic Services,067910,Democratic Representation 067910,Supplies and Services,304403,Equipment and Materials,04-Oct-2022,000008530593124,AMZNMktplace,5999,Other consumables,94.80,15.80,79.00
Resources BK0010,Legal & Democratic Services,067910,Democratic Representation 067910,Supplies and Services,304403,Equipment and Materials,04-Oct-2022,000008530593124 - 1,AMZNMktplace,5999,Other consumables,0.10,,0.10
Regeneration Economy and Growth,Planning & Housing,031634,LOCAL LETTINGS AGENCY,Premises,120037,Energy Costs,04-Oct-2022,000008530593174,BRITISH GAS ONLINE,4900,Other fuels,20.00,0.00,20.00
Neighbourhoods and Climate Change,Environmental Services,010367,C&G - South Grounds Maintenance,Supplies and Services,304999,Equipment and Materials,04-Oct-2022,000008530593292,OVERTON UK LTD,5251,Misc equipment tools and materials,278.34,0.00,278.34
Regeneration Economy and Growth,Planning & Housing,031581,Prevention Fund,Transport,235057,Public Transport,04-Oct-2022,000008530593356,UBER TRIP,4121,Staff travelling,27.92,0.00,27.92
Regeneration Economy and Growth,Corporate Property and Land,011275,Catering -Durham Leadership Centre,Supplies and Services,324117,Provisions E324,04-Oct-2022,000008530750064,JR HOLLAND FOODSERVICE,5499,Catering costs - provisions,66.27,0.00,66.27
Regeneration Economy and Growth,Corporate Property and Land,011275,Catering -Durham Leadership Centre,Supplies and Services,384999,Miscellaneous Expenses,04-Oct-2022,000008530750068,G M PACKAGING UK LIMIT,5046,Other expenses,49.99,0.00,49.99
Regeneration Economy and Growth,Culture Sport and Tourism,011265,Empire Theatre (Operations),Supplies and Services,324117,Provisions E324,04-Oct-2022,000008530750074,JR HOLLAND FOODSERVICE,5499,Catering costs - provisions,31.57,0.00,31.57
Regeneration Economy and Growth,Corporate Property and Land,011296,Catering - Dunes,Supplies and Services,384999,Miscellaneous Expenses,04-Oct-2022,000008530750080,G M PACKAGING UK LIMIT,5046,Other expenses,42.23,0.00,42.23
Regeneration Economy and Growth,Corporate Property and Land,021234,Catering - Locomotion,Supplies and Services,384999,Miscellaneous Expenses,04-Oct-2022,000008530750092,ON A ROLL SANDWICH COM,5199,Other expenses,147.50,0.00,147.50
Regeneration Economy and Growth,Corporate Property and Land,021234,Catering - Locomotion,Supplies and Services,384999,Miscellaneous Expenses,04-Oct-2022,000008530750096,G M PACKAGING UK LIMIT,5046,Other expenses,52.81,0.00,52.81
Regeneration Economy and Growth,Culture Sport and Tourism,011263,Louisa Centre 011263,Supplies and Services,324117,Provisions E324,04-Oct-2022,000008530750102,JR HOLLAND FOODSERVICE,5499,Catering costs - provisions,32.29,0.00,32.29
Regeneration Economy and Growth,Culture Sport and Tourism,054812,Gala Theatre - Catering etc,Supplies and Services,324117,Provisions E324,04-Oct-2022,000008530750118,JR HOLLAND FOODSERVICE,5499,Catering costs - provisions,215.52,0.00,215.52
Regeneration Economy and Growth,Corporate Property and Land,021242,Catering - County Hall,Supplies and Services,384999,Miscellaneous Expenses,04-Oct-2022,000008530750126,ON A ROLL SANDWICH COM,5199,Other expenses,238.44,0.00,238.44
Regeneration Economy and Growth,Business Durham CL0850,030689,Inward Investment and Aftercare,Supplies and Services,342222,Computers and Communications,04-Oct-2022,000008535954656,FASTHOSTS,4816,Comp hardware purch-network servers,7.54,0.00,7.54
Regeneration Economy and Growth,Planning & Housing,031623,Rough Sleeping,Transport,235073,Public Transport,04-Oct-2022,000008535954962,RYANAIR,3246,Travel-clients/students/children,43.11,0.00,43.11
Children and Young Peoples Services,Head of Early Help Inclusion & Vulnerable Children.,071569,Woodhouse Close Childrens Centre,Supplies and Services,304259,Equipment and Materials,04-Oct-2022,000008535955184,AMZNMKTPLACE AMAZON.CO,5999,Equipment-purchase and rental,8.59,1.43,7.16
Regeneration Economy and Growth,Culture Sport and Tourism,054813,Gala Theatre - Technical,Supplies and Services,304259,Equipment and Materials,04-Oct-2022,000008535955664,WWW.CEF.CO.UK,5211,Equipment-purchase and rental,15.54,0.00,15.54
Adult and Health Services,Head of Adults,055643,Hawthorn House LD Respite Unit,Supplies and Services,304403,Equipment and Materials,04-Oct-2022,000008535956484,AMZNBUSINESS Y24EN2A95,5999,Other consumables,6.99,1.17,5.82
Children and Young Peoples Services,Head of Education and Skills,071732,Dean Bank Childcare,Supplies and Services,304403,Equipment and Materials,04-Oct-2022,000008535956686,AMZNMKTPLACE AMAZON.CO,5999,Other consumables,5.47,0.00,5.47
Neighbourhoods and Climate Change,Environmental Services,031233,North Pennines - Pennine Peatlife,Supplies and Services,348037,Subsistence E348,04-Oct-2022,000008535956770,LA STRADA,5812,Subsistence,31.44,0.00,31.44
Children and Young Peoples Services,Head of Early Help Inclusion & Vulnerable Children.,085965,Barnard,Supplies and Services,384302,Miscellaneous Expenses,04-Oct-2022,000008535957070,AMZNMKTPLACE AMAZON.CO,5999,Activity expenses,21.44,0.00,21.44
Children and Young Peoples Services,Head of Childrens Social Care,085551,Short Break Services-Park Hse Sher,Supplies and Services,304403,Equipment and Materials,04-Oct-2022,000008535957736,AMZNMKTPLACE AMAZON.CO,5999,Other consumables,128.70,0.00,128.70
Regeneration Economy and Growth,Culture Sport and Tourism,054235,Bishop Auckland Town Hall Cafe,Supplies and Services,324117,Provisions E324,04-Oct-2022,000008536118620,BATLEYS PERTH,5300,Catering costs - provisions,56.76,9.46,47.30
Regeneration Economy and Growth,Culture Sport and Tourism,054235,Bishop Auckland Town Hall Cafe,Supplies and Services,324117,Provisions E324,04-Oct-2022,000008536118620 - 1,BATLEYS PERTH,5300,Catering costs - provisions,194.94,,194.94
Regeneration Economy and Growth,Corporate Property and Land,021234,Catering - Locomotion,Supplies and Services,324117,Provisions E324,04-Oct-2022,000008536118636,BATLEYS PERTH,5300,Catering costs - provisions,271.62,45.27,226.35
Regeneration Economy and Growth,Corporate Property and Land,021234,Catering - Locomotion,Supplies and Services,324117,Provisions E324,04-Oct-2022,000008536118636 - 1,BATLEYS PERTH,5300,Catering costs - provisions,58.85,,58.85
Regeneration Economy and Growth,Corporate Property and Land,021234,Catering - Locomotion,Supplies and Services,324117,Provisions E324,04-Oct-2022,000008536118646,BATLEYS PERTH,5300,Catering costs - provisions,20.52,3.42,17.10
Regeneration Economy and Growth,Corporate Property and Land,021234,Catering - Locomotion,Supplies and Services,324117,Provisions E324,04-Oct-2022,000008536118646 - 1,BATLEYS PERTH,5300,Catering costs - provisions,37.88,,37.88
Regeneration Economy and Growth,Corporate Property and Land,021242,Catering - County Hall,Supplies and Services,324117,Provisions E324,04-Oct-2022,000008536118674,BATLEYS PERTH,5300,Catering costs - provisions,959.82,159.97,799.85
Regeneration Economy and Growth,Corporate Property and Land,021242,Catering - County Hall,Supplies and Services,324117,Provisions E324,04-Oct-2022,000008536118674 - 1,BATLEYS PERTH,5300,Catering costs - provisions,105.59,,105.59
Regeneration Economy and Growth,Corporate Property and Land,021324,Catering - Meadowfield,Supplies and Services,324117,Provisions E324,04-Oct-2022,000008536118704,BATLEYS PERTH,5300,Catering costs - provisions,224.76,37.46,187.30
Regeneration Economy and Growth,Corporate Property and Land,021324,Catering - Meadowfield,Supplies and Services,324117,Provisions E324,04-Oct-2022,000008536118704 - 1,BATLEYS PERTH,5300,Catering costs - provisions,214.38,,214.38
Children and Young Peoples Services,Head of Childrens Social Care,085624,Families First Crook and Barnard Castle,Supplies and Services,364200,Grants to Voluntary Organisations,04-Oct-2022,000008541371312,CROXDALE INN,5812,No Recourse to Public Funds,260.00,0.00,260.00
Regeneration Economy and Growth,Culture Sport and Tourism,011215,Museums Heritage & Collections 011215,Supplies and Services,352001,Conference Expenses,04-Oct-2022,000008560533076,COLLECTIONS TRUST,7399,Conferencesseminars fees etc,-55.00,-9.17,-45.83
Children and Young Peoples Services,Head of Childrens Social Care,085347,Solo Home The Manse,Supplies and Services,384999,Miscellaneous Expenses,05-Oct-2022,000008530590174,Amazon.co.uk RK6PH20O5,5969,Other expenses,20.90,0.00,20.90
Neighbourhoods and Climate Change,Environmental Services,031233,North Pennines - Pennine Peatlife,Supplies and Services,348037,Subsistence E348,05-Oct-2022,000008530592142,RELAY 352567SV,5942,Subsistence,0.24,0.00,0.24
Neighbourhoods and Climate Change,Environmental Services,031200,North Pennines Core,Supplies and Services,348037,Subsistence E348,05-Oct-2022,000008530592144,HALLES SOLANID,8911,Subsistence,0.11,0.00,0.11
Neighbourhoods and Climate Change,Environmental Services,031233,North Pennines - Pennine Peatlife,Supplies and Services,364320,Grants to Voluntary Organisations,05-Oct-2022,000008530592146,HOTEL IBIS,3533,Accommodation assistance,1.48,0.00,1.48
Neighbourhoods and Climate Change,Environmental Services,031233,North Pennines - Pennine Peatlife,Supplies and Services,348037,Subsistence E348,05-Oct-2022,000008530592150,RELAY 373373SC,5942,Subsistence,0.21,0.00,0.21
Neighbourhoods and Climate Change,Environmental Services,031233,North Pennines - Pennine Peatlife,Transport,235057,Public Transport,05-Oct-2022,000008530592152,SumUp AEROPORT TAXI,4121,Staff travelling,0.70,0.00,0.70
Neighbourhoods and Climate Change,Environmental Services,031233,North Pennines - Pennine Peatlife,Transport,235057,Public Transport,05-Oct-2022,000008530592154,SNCF,4112,Staff travelling,0.74,0.00,0.74
Dedicated Schools Grant BG0015,DSG Schools Block,110020,The Woodlands 1100 - Ed Health Needs,Supplies and Services,304405,Equipment and Materials,05-Oct-2022,000008535954706,BOOTS 5617,5912,Medical supplies,92.61,0.00,92.61
Resources BK0010,Legal & Democratic Services,069326,Practice Management,Supplies and Services,304259,Equipment and Materials,05-Oct-2022,000008535954742,GEN REGISTER OFFICE,9399,Equipment-purchase and rental,11.00,0.00,11.00
Children and Young Peoples Services,Head of Education and Skills,078561,DurhamEnable,Supplies and Services,364301,Grants to Voluntary Organisations,05-Oct-2022,000008535954764,DURHAM COUNTY COUNCIL,9399,Hardship,11.00,0.00,11.00
Children and Young Peoples Services,Head of Education and Skills,075034,Youth Futures Foundation,Supplies and Services,364301,Grants to Voluntary Organisations,05-Oct-2022,000008535954770,INTELLIGENT E LEARNING,8299,Hardship,14.40,2.40,12.00
Children and Young Peoples Services,Head of Education and Skills,075033,DurhamWorks 3,Supplies and Services,364301,Grants to Voluntary Organisations,05-Oct-2022,000008535954778,SUNDERLAND CC,9399,Hardship,35.00,0.00,35.00
Regeneration Economy and Growth,Culture Sport and Tourism,054240,Crook Library 054240,Supplies and Services,332047,Printing Stationery and Gen Off Exps,05-Oct-2022,000008535954798,BAKER ROSS,5970,Stationery,206.11,0.00,206.11
Children and Young Peoples Services,Head of Childrens Social Care,085332,Middlestone Moor CU,Supplies and Services,324117,Provisions E324,05-Oct-2022,000008535954834,HOME BARGAINS SPENNYMO,5251,Catering costs - provisions,100.63,0.00,100.63
Children and Young Peoples Services,Head of Childrens Social Care,085332,Middlestone Moor CU,Supplies and Services,324117,Provisions E324,05-Oct-2022,000008535954840,ASDA SUPERSTORE 4987,5411,Catering costs - provisions,56.84,0.00,56.84
Children and Young Peoples Services,Head of Childrens Social Care,085332,Middlestone Moor CU,Supplies and Services,304999,Equipment and Materials,05-Oct-2022,000008535954846,ASDA SUPERSTORE 4987,5411,Misc equipment tools and materials,11.50,0.00,11.50
Children and Young Peoples Services,Head of Childrens Social Care,085332,Middlestone Moor CU,Supplies and Services,324117,Provisions E324,05-Oct-2022,000008535954850,ICELAND,5411,Catering costs - provisions,2.30,0.00,2.30
Children and Young Peoples Services,Head of Childrens Social Care,085332,Middlestone Moor CU,Supplies and Services,304999,Equipment and Materials,05-Oct-2022,000008535954858,AMZNMktplace,5999,Misc equipment tools and materials,4.99,0.83,4.16
Children and Young Peoples Services,Head of Childrens Social Care,085334,West Rainton Satelite Home,Supplies and Services,304403,Equipment and Materials,05-Oct-2022,000008535954898,AMZNMktplace,5999,Other consumables,119.99,0.00,119.99
Children and Young Peoples Services,Head of Childrens Social Care,085341,High Etherley Satelite Home,Supplies and Services,324117,Provisions E324,05-Oct-2022,000008535954980,TESCO STORES 6329,5411,Catering costs - provisions,7.95,0.00,7.95
Children and Young Peoples Services,Head of Early Help Inclusion & Vulnerable Children.,088104,BA/BC/Crook Intensive Family Support Team,Supplies and Services,304259,Equipment and Materials,05-Oct-2022,000008535955190,AMZNMktplace,5999,Equipment-purchase and rental,39.56,6.60,32.96
Children and Young Peoples Services,Head of Early Help Inclusion & Vulnerable Children.,088104,BA/BC/Crook Intensive Family Support Team,Supplies and Services,304259,Equipment and Materials,05-Oct-2022,000008535955196,AMZNMktplace,5999,Equipment-purchase and rental,57.50,9.60,47.90
Children and Young Peoples Services,Head of Childrens Social Care,085364,Children Looked After Team 1,Supplies and Services,338045,Services,05-Oct-2022,000008535955198,HM PASSPORT OFFICE,9399,Legal expenses 338045,49.00,0.00,49.00
Children and Young Peoples Services,Head of Childrens Social Care,085364,Children Looked After Team 1,Supplies and Services,338045,Services,05-Oct-2022,000008535955204,HM PASSPORT OFFICE,9399,Legal expenses 338045,49.00,0.00,49.00
Children and Young Peoples Services,Head of Childrens Social Care,085380,Service Manager CLA Fostering,Supplies and Services,328041,Clothing uniforms and laundry E328,05-Oct-2022,000008535955230,ARGOS LTD,5310,Clothing uniforms and laundry,78.95,0.00,78.95
Children and Young Peoples Services,Head of Early Help Inclusion & Vulnerable Children.,079599,Psychological-HQ,Employees,040149,Recruitment Instruction and Training,05-Oct-2022,000008535955316,WWW.ARTSPSYCHOTHERAPY.,8299,Training-all costs,31.00,0.00,31.00
Children and Young Peoples Services,Head of Childrens Social Care,085511,Emergency Duty Team,Transport,235057,Public Transport,05-Oct-2022,000008535955336,SumUp COUNDONS TAXI,4121,Staff travelling,17.00,0.00,17.00
Regeneration Economy and Growth,Economic Development Level C,030772,CLLD South,Supplies and Services,304259,Equipment and Materials,05-Oct-2022,000008535955390,CITY OF NEWCASTLE INTE,9399,Equipment-purchase and rental,35.00,0.00,35.00
Children and Young Peoples Services,Head of Childrens Social Care,085347,Solo Home The Manse,Supplies and Services,304999,Equipment and Materials,05-Oct-2022,000008535955472,Amazon Prime GC3EF74L5,5968,Misc equipment tools and materials,8.99,0.00,8.99
Adult and Health Services,Commissioning inc Supporting People,052200,STPM Care Academy,Supplies and Services,304649,Equipment and Materials,05-Oct-2022,000008535955570,AMZNMktplace,5999,Toys,45.52,0.00,45.52
Children and Young Peoples Services,Head of Education and Skills,071732,Dean Bank Childcare,Supplies and Services,304403,Equipment and Materials,05-Oct-2022,000008535955614,AMZNMktplace,5999,Other consumables,39.54,0.00,39.54
Children and Young Peoples Services,Head of Education and Skills,071732,Dean Bank Childcare,Supplies and Services,304403,Equipment and Materials,05-Oct-2022,000008535955624,AMZNMKTPLACE AMAZON.CO,5999,Other consumables,46.53,0.00,46.53
Adult and Health Services,Head of Adults,055302,Durham Pathways,Supplies and Services,324117,Provisions E324,05-Oct-2022,000008535955638,HERON FOODS,5411,Catering costs - provisions,1.59,0.00,1.59
Resources BK0010,Transactional & Customer Services,065190,County Durham Outreach and Support Services,Employees,040149,Recruitment Instruction and Training,05-Oct-2022,000008535955688,WWW.REGISTRY-TRUST.ORG,8999,Training-all costs,10.00,0.00,10.00
Resources BK0010,Transactional & Customer Services,065190,County Durham Outreach and Support Services,Supplies and Services,338048,Services,05-Oct-2022,000008535955696,CCBCOFFICE,9222,Court costs 338048,332.00,0.00,332.00
Regeneration Economy and Growth,Business Durham CL0850,030674,Business Services General,Employees,040149,Recruitment Instruction and Training,05-Oct-2022,000008535955708,IGPP LTD,8699,Training-all costs,238.80,0.00,238.80
Children and Young Peoples Services,Head of Childrens Social Care,085341,High Etherley Satelite Home,Supplies and Services,304999,Equipment and Materials,05-Oct-2022,000008535955730,AO RETAIL LIMITED,5722,Misc equipment tools and materials,288.99,0.00,288.99
Children and Young Peoples Services,Head of Childrens Social Care,085521,Adolescent Safeguarding and Exploitation Team - ASET,Supplies and Services,304403,Equipment and Materials,05-Oct-2022,000008535955742,AMZNMktplace,5999,Other consumables,39.38,6.56,32.82
Adult and Health Services,Head of Adults,055202,Support and Recovery,Supplies and Services,324117,Provisions E324,05-Oct-2022,000008535955836,TESCO STORES 2278,5411,Catering costs - provisions,16.00,0.00,16.00
Neighbourhoods and Climate Change,Environmental Services,010301,C&G - North Grounds Maintenance,Supplies and Services,324117,Provisions E324,05-Oct-2022,000008535955852,J VAN VLIET GATESHEAD,5399,Catering costs - provisions,235.39,0.00,235.39
Neighbourhoods and Climate Change,Environmental Services,010301,C&G - North Grounds Maintenance,Supplies and Services,304221,Equipment and Materials,05-Oct-2022,000008535955860,PLANTS DIRECT,5261,Direct materials,234.00,0.00,234.00
Regeneration Economy and Growth,Economic Development Level C,030771,Durham Advance Flexible Fund,Transport,235057,Public Transport,05-Oct-2022,000008535955932,WWW.GONORTHEAST.CO.UK,4111,Staff travelling,26.50,0.00,26.50
Children and Young Peoples Services,Head of Childrens Social Care,085364,Children Looked After Team 1,Supplies and Services,384999,Miscellaneous Expenses,05-Oct-2022,000008535955942,HOLLYWOOD BOWL,7997,Other expenses,24.35,0.00,24.35
Children and Young Peoples Services,Head of Early Help Inclusion & Vulnerable Children.,085965,Barnard,Transfer Payments,515002,Social Services Clients,05-Oct-2022,000008535955958,AMZNMktplace,5999,Pocket money,89.99,15.00,74.99
Children and Young Peoples Services,Head of Early Help Inclusion & Vulnerable Children.,085965,Barnard,Transfer Payments,515002,Social Services Clients,05-Oct-2022,000008535955966,AMZNMktplace,5999,Pocket money,6.52,1.09,5.43
Neighbourhoods and Climate Change,Environmental Services,031238,North Pennines - Tees Swale,Supplies and Services,324117,Provisions E324,05-Oct-2022,000008535956070,SCOTMID CO-OP STANHOPE,5411,Catering costs - provisions,9.50,0.00,9.50
Neighbourhoods and Climate Change,Environmental Services,011058,C&G - Wharton Park,Supplies and Services,340001,Postages E340,05-Oct-2022,000008535956086,PARCELFORCE WL,4215,Postages,11.15,0.00,11.15
Regeneration Economy and Growth,Culture Sport and Tourism,060131,County Records,Third Party Payments,430100,Rendered by Private Contractors,05-Oct-2022,000008535956170,EB ALES TRAINING EVEN,7399,Payments to sub-contractors,40.00,0.00,40.00
Neighbourhoods and Climate Change,Environmental Services,010301,C&G - North Grounds Maintenance,Supplies and Services,304999,Equipment and Materials,05-Oct-2022,000008535956178,GRALANDS WOODWORK SUPP,5251,Misc equipment tools and materials,23.98,0.00,23.98
Children and Young Peoples Services,Head of Childrens Social Care,085551,Short Break Services-Park Hse Sher,Supplies and Services,308011,Furniture,05-Oct-2022,000008535956214,SURPLUS STOCK & FACTOR,5719,Furniture repair and replacement,500.00,0.00,500.00
Children and Young Peoples Services,Head of Childrens Social Care,085551,Short Break Services-Park Hse Sher,Supplies and Services,308011,Furniture,05-Oct-2022,000008535956222,SURPLUS STOCK & FACTOR,5719,Furniture repair and replacement,405.00,0.00,405.00
Dedicated Schools Grant BG0015,DSG Schools Block,702810,Villa Real School 7028 - MFL,Supplies and Services,304403,Equipment and Materials,05-Oct-2022,000008535956330,AMZNMktplace,5999,Other consumables,7.56,1.26,6.30
Dedicated Schools Grant BG0015,DSG Schools Block,702810,Villa Real School 7028 - MFL,Supplies and Services,304403,Equipment and Materials,05-Oct-2022,000008535956330 - 1,AMZNMktplace,5999,Other consumables,9.43,,9.43
Neighbourhoods and Climate Change,Environmental Services,010367,C&G - South Grounds Maintenance,Transport,215995,Running Costs of Vehicles,05-Oct-2022,000008535956382,D WARD AUTOMOTIVE,5533,Vehicle running expenses,3.49,0.00,3.49
Children and Young Peoples Services,Head of Childrens Social Care,085342,16 Hickstead Rise (previously 9 Cedar Ave),Supplies and Services,328041,Clothing uniforms and laundry E328,05-Oct-2022,000008535956392,POUNDLAND,5310,Clothing uniforms and laundry,6.30,0.00,6.30
Children and Young Peoples Services,Head of Childrens Social Care,085342,16 Hickstead Rise (previously 9 Cedar Ave),Supplies and Services,324117,Provisions E324,05-Oct-2022,000008535956396,WILKO RETAIL LIMITED,5399,Catering costs - provisions,0.75,0.00,0.75
Children and Young Peoples Services,Head of Childrens Social Care,085342,16 Hickstead Rise (previously 9 Cedar Ave),Supplies and Services,304259,Equipment and Materials,05-Oct-2022,000008535956404,HALFORDS 0550,5940,Equipment-purchase and rental,3.10,0.00,3.10
Adult and Health Services,Head of Adults,055643,Hawthorn House LD Respite Unit,Supplies and Services,304403,Equipment and Materials,05-Oct-2022,000008535956494,AMZNMktplace,5999,Other consumables,9.89,1.65,8.24
Regeneration Economy and Growth,Economic Development Level C,030776,LINKCD Flexible Fund,Supplies and Services,324117,Provisions E324,05-Oct-2022,000008535956540,TESCO STORES 2371,5411,Catering costs - provisions,5.20,0.00,5.20
Regeneration Economy and Growth,Economic Development Level C,030776,LINKCD Flexible Fund,Supplies and Services,324117,Provisions E324,05-Oct-2022,000008535956544,TESCO STORES 2371,5411,Catering costs - provisions,30.18,0.00,30.18
Regeneration Economy and Growth,Economic Development Level C,030776,LINKCD Flexible Fund,Transport,235057,Public Transport,05-Oct-2022,000008535956554,PAYBYPHONE RE DURHAM,7523,Staff travelling,0.65,0.00,0.65
Regeneration Economy and Growth,Economic Development Level C,030776,LINKCD Flexible Fund,Transport,235057,Public Transport,05-Oct-2022,000008535956562,PAYBYPHONE RE DURHAM,7523,Staff travelling,0.40,0.00,0.40
Regeneration Economy and Growth,Economic Development Level C,030776,LINKCD Flexible Fund,Transport,235057,Public Transport,05-Oct-2022,000008535956568,PAYBYPHONE RE DURHAM,7523,Staff travelling,0.65,0.00,0.65
Regeneration Economy and Growth,Corporate Property and Land,020074,Bldg Serv - R&M Div 74 - Mechanical,Supplies and Services,304221,Equipment and Materials,05-Oct-2022,000008535956600,HVS GLOBAL,5499,Direct materials,74.62,12.44,62.18
Resources BK0010,Procurement Sales & Business Services,069800,Corporate Procurement 069800,Employees,040149,Recruitment Instruction and Training,05-Oct-2022,000008535956642,WWW.CIPS.ORG,8699,Training-all costs,141.00,0.00,141.00
Resources BK0010,Procurement Sales & Business Services,069800,Corporate Procurement 069800,Employees,040149,Recruitment Instruction and Training,05-Oct-2022,000008535956646,WWW.CIPS.ORG,8699,Training-all costs,83.50,0.00,83.50
Children and Young Peoples Services,Head of Education and Skills,071732,Dean Bank Childcare,Supplies and Services,304403,Equipment and Materials,05-Oct-2022,000008535956696,AMZNMktplace,5999,Other consumables,15.29,0.00,15.29
Children and Young Peoples Services,Head of Early Help Inclusion & Vulnerable Children.,085957,Secure Management,Supplies and Services,324117,Provisions E324,05-Oct-2022,000008535956728,TESCO STORES 6329,5411,Catering costs - provisions,120.86,0.00,120.86
Neighbourhoods and Climate Change,Environmental Services,031233,North Pennines - Pennine Peatlife,Supplies and Services,348037,Subsistence E348,05-Oct-2022,000008535956774,LA CASA DES RAILS,5813,Subsistence,2.89,0.00,2.89
Neighbourhoods and Climate Change,Environmental Services,031233,North Pennines - Pennine Peatlife,Transport,235057,Public Transport,05-Oct-2022,000008535956776,SNCF,4112,Staff travelling,32.27,0.00,32.27
Children and Young Peoples Services,Head of Childrens Social Care,085334,West Rainton Satelite Home,Supplies and Services,324117,Provisions E324,05-Oct-2022,000008535956838,B&M 681 - DURHAM,5399,Catering costs - provisions,15.00,0.00,15.00
Children and Young Peoples Services,Head of Childrens Social Care,085334,West Rainton Satelite Home,Supplies and Services,308011,Furniture,05-Oct-2022,000008535956840,DREAMS - DURHAM - B393,5712,Furniture repair and replacement,200.00,0.00,200.00
Children and Young Peoples Services,Head of Childrens Social Care,085334,West Rainton Satelite Home,Supplies and Services,308011,Furniture,05-Oct-2022,000008535956842,DREAMS - DURHAM - B393,5712,Furniture repair and replacement,429.00,0.00,429.00
Children and Young Peoples Services,Head of Early Help Inclusion & Vulnerable Children.,088102,Consett & Stanley Intensive Family Support Team,Supplies and Services,340001,Postages E340,05-Oct-2022,000008535956848,POST OFFICE COUNTER,9402,Postages,2.15,0.00,2.15
Children and Young Peoples Services,Head of Early Help Inclusion & Vulnerable Children.,088103,Stanley & Moorside Family Centre,Supplies and Services,384302,Miscellaneous Expenses,05-Oct-2022,000008535956852,AMZNMktplace,5999,Activity expenses,16.99,2.83,14.16
Children and Young Peoples Services,Head of Early Help Inclusion & Vulnerable Children.,088103,Stanley & Moorside Family Centre,Supplies and Services,384302,Miscellaneous Expenses,05-Oct-2022,000008535956854,AMZNMktplace,5999,Activity expenses,50.94,8.49,42.45
Children and Young Peoples Services,Head of Early Help Inclusion & Vulnerable Children.,088103,Stanley & Moorside Family Centre,Supplies and Services,384302,Miscellaneous Expenses,05-Oct-2022,000008535956854 - 1,AMZNMktplace,5999,Activity expenses,0.03,,0.03
Children and Young Peoples Services,Head of Early Help Inclusion & Vulnerable Children.,088103,Stanley & Moorside Family Centre,Supplies and Services,384302,Miscellaneous Expenses,05-Oct-2022,000008535956858,AMZNMktplace,5999,Activity expenses,6.88,1.15,5.73
Children and Young Peoples Services,Head of Early Help Inclusion & Vulnerable Children.,088103,Stanley & Moorside Family Centre,Supplies and Services,384302,Miscellaneous Expenses,05-Oct-2022,000008535956862,AMZNMktplace,5999,Activity expenses,27.96,4.66,23.30
Children and Young Peoples Services,Head of Early Help Inclusion & Vulnerable Children.,088103,Stanley & Moorside Family Centre,Supplies and Services,384302,Miscellaneous Expenses,05-Oct-2022,000008535956866,AMZNMktplace,5999,Activity expenses,1.95,0.33,1.62
Children and Young Peoples Services,Head of Early Help Inclusion & Vulnerable Children.,088103,Stanley & Moorside Family Centre,Supplies and Services,384302,Miscellaneous Expenses,05-Oct-2022,000008535956872,AMZNMktplace,5999,Activity expenses,8.40,1.40,7.00
Children and Young Peoples Services,Head of Early Help Inclusion & Vulnerable Children.,088103,Stanley & Moorside Family Centre,Supplies and Services,384302,Miscellaneous Expenses,05-Oct-2022,000008535956876,AMZNMktplace,5999,Activity expenses,36.01,6.00,30.01
Children and Young Peoples Services,Head of Childrens Social Care,085363,Childrens Permanence Team,Supplies and Services,338045,Services,05-Oct-2022,000008535956880,HM PASSPORT OFFICE,9399,Legal expenses 338045,244.00,0.00,244.00
Children and Young Peoples Services,Head of Early Help Inclusion & Vulnerable Children.,088103,Stanley & Moorside Family Centre,Supplies and Services,384302,Miscellaneous Expenses,05-Oct-2022,000008535956884,HOME BARGAINS,5251,Activity expenses,38.09,0.00,38.09
Children and Young Peoples Services,Head of Early Help Inclusion & Vulnerable Children.,088103,Stanley & Moorside Family Centre,Supplies and Services,384302,Miscellaneous Expenses,05-Oct-2022,000008535956892,AMZNMktplace,5999,Activity expenses,16.99,2.83,14.16
Children and Young Peoples Services,Head of Early Help Inclusion & Vulnerable Children.,088103,Stanley & Moorside Family Centre,Supplies and Services,384302,Miscellaneous Expenses,05-Oct-2022,000008535956896,AMZNMktplace,5999,Activity expenses,31.86,5.31,26.55
Children and Young Peoples Services,Head of Early Help Inclusion & Vulnerable Children.,088103,Stanley & Moorside Family Centre,Supplies and Services,384302,Miscellaneous Expenses,05-Oct-2022,000008535956896 - 1,AMZNMktplace,5999,Activity expenses,0.05,,0.05
Children and Young Peoples Services,Head of Early Help Inclusion & Vulnerable Children.,088103,Stanley & Moorside Family Centre,Supplies and Services,384302,Miscellaneous Expenses,05-Oct-2022,000008535956902,AMZNMktplace,5999,Activity expenses,19.26,3.21,16.05
Children and Young Peoples Services,Head of Early Help Inclusion & Vulnerable Children.,088103,Stanley & Moorside Family Centre,Supplies and Services,384302,Miscellaneous Expenses,05-Oct-2022,000008535956902 - 1,AMZNMktplace,5999,Activity expenses,29.69,,29.69
Children and Young Peoples Services,Head of Early Help Inclusion & Vulnerable Children.,088103,Stanley & Moorside Family Centre,Supplies and Services,384302,Miscellaneous Expenses,05-Oct-2022,000008535956914,WWW.THEWORKS.CO.UK,5310,Activity expenses,40.00,0.00,40.00
Resources BK0010,Digital Services,065335,School Services - Implementations,Supplies and Services,304639,Equipment and Materials,05-Oct-2022,000008535956956,LAPTOP-LCD-SCREEN,5732,Technicians-supplies,60.54,0.00,60.54
Dedicated Schools Grant BG0015,DSG Schools Block,231104,Peases West Primary 2311 - General Curriculum,Supplies and Services,312011,Newspapers books and periodicals E312,05-Oct-2022,000008535956966,AMZNMKTPLACE AMAZON.CO,5999,Books-school library,2.76,0.46,2.30
Dedicated Schools Grant BG0015,DSG Schools Block,231104,Peases West Primary 2311 - General Curriculum,Supplies and Services,312011,Newspapers books and periodicals E312,05-Oct-2022,000008535956966 - 1,AMZNMKTPLACE AMAZON.CO,5999,Books-school library,16.34,,16.34
Dedicated Schools Grant BG0015,DSG Schools Block,231104,Peases West Primary 2311 - General Curriculum,Supplies and Services,312011,Newspapers books and periodicals E312,05-Oct-2022,000008535956970,AMZNMKTPLACE AMAZON.CO,5999,Books-school library,0.14,0.46,-0.32
Dedicated Schools Grant BG0015,DSG Schools Block,231104,Peases West Primary 2311 - General Curriculum,Supplies and Services,312011,Newspapers books and periodicals E312,05-Oct-2022,000008535956976,AMZNMKTPLACE AMAZON.CO,5999,Books-school library,2.76,0.46,2.30
Dedicated Schools Grant BG0015,DSG Schools Block,231104,Peases West Primary 2311 - General Curriculum,Supplies and Services,312011,Newspapers books and periodicals E312,05-Oct-2022,000008535956976 - 1,AMZNMKTPLACE AMAZON.CO,5999,Books-school library,9.22,,9.22
Dedicated Schools Grant BG0015,DSG Schools Block,231104,Peases West Primary 2311 - General Curriculum,Supplies and Services,312011,Newspapers books and periodicals E312,05-Oct-2022,000008535956978,AMZNMKTPLACE AMAZON.CO,5999,Books-school library,2.76,0.46,2.30
Dedicated Schools Grant BG0015,DSG Schools Block,231104,Peases West Primary 2311 - General Curriculum,Supplies and Services,312011,Newspapers books and periodicals E312,05-Oct-2022,000008535956978 - 1,AMZNMKTPLACE AMAZON.CO,5999,Books-school library,15.91,,15.91
Dedicated Schools Grant BG0015,DSG Schools Block,231104,Peases West Primary 2311 - General Curriculum,Supplies and Services,312011,Newspapers books and periodicals E312,05-Oct-2022,000008535956982,AMZNMKTPLACE AMAZON.CO,5999,Books-school library,2.76,0.46,2.30
Dedicated Schools Grant BG0015,DSG Schools Block,231104,Peases West Primary 2311 - General Curriculum,Supplies and Services,312011,Newspapers books and periodicals E312,05-Oct-2022,000008535956982 - 1,AMZNMKTPLACE AMAZON.CO,5999,Books-school library,49.63,,49.63
Dedicated Schools Grant BG0015,DSG Schools Block,231104,Peases West Primary 2311 - General Curriculum,Supplies and Services,312011,Newspapers books and periodicals E312,05-Oct-2022,000008535956988,AMZNMKTPLACE AMAZON.CO,5999,Books-school library,2.76,0.46,2.30
Dedicated Schools Grant BG0015,DSG Schools Block,231104,Peases West Primary 2311 - General Curriculum,Supplies and Services,312011,Newspapers books and periodicals E312,05-Oct-2022,000008535956988 - 1,AMZNMKTPLACE AMAZON.CO,5999,Books-school library,34.68,,34.68
Dedicated Schools Grant BG0015,DSG Schools Block,231104,Peases West Primary 2311 - General Curriculum,Supplies and Services,312011,Newspapers books and periodicals E312,05-Oct-2022,000008535956990,AMZNMKTPLACE AMAZON.CO,5999,Books-school library,4.24,0.00,4.24
Dedicated Schools Grant BG0015,DSG Schools Block,231104,Peases West Primary 2311 - General Curriculum,Supplies and Services,312011,Newspapers books and periodicals E312,05-Oct-2022,000008535956996,AMZNMKTPLACE AMAZON.CO,5999,Books-school library,51.58,0.00,51.58
Children and Young Peoples Services,Head of Early Help Inclusion & Vulnerable Children.,085957,Secure Management,Supplies and Services,340001,Postages E340,05-Oct-2022,000008535957058,TSB Returns Ltd,4215,Postages,1.79,0.00,1.79
Children and Young Peoples Services,Head of Early Help Inclusion & Vulnerable Children.,085957,Secure Management,Supplies and Services,340001,Postages E340,05-Oct-2022,000008535957064,ZigZag Global,4215,Postages,3.99,0.00,3.99
Children and Young Peoples Services,Head of Early Help Inclusion & Vulnerable Children.,085965,Barnard,Transfer Payments,515002,Social Services Clients,05-Oct-2022,000008535957074,SPORTSDIRECT.COM,5655,Pocket money,44.98,0.00,44.98
Children and Young Peoples Services,Head of Early Help Inclusion & Vulnerable Children.,085956,Lumley,Supplies and Services,304259,Equipment and Materials,05-Oct-2022,000008535957080,Amazon.co.uk KW29F6NT5,5969,Equipment-purchase and rental,11.54,1.92,9.62
Children and Young Peoples Services,Head of Early Help Inclusion & Vulnerable Children.,085952,Secure Education,Supplies and Services,304259,Equipment and Materials,05-Oct-2022,000008535957082,AMZNMktplace,5999,Equipment-purchase and rental,16.20,2.70,13.50
Children and Young Peoples Services,Head of Early Help Inclusion & Vulnerable Children.,085965,Barnard,Transfer Payments,515002,Social Services Clients,05-Oct-2022,000008535957088,JD SPORTS INTERNET,5941,Pocket money,43.99,0.00,43.99
Regeneration Economy and Growth,Planning & Housing,031704,Care Connect - CCTV Countywide,Supplies and Services,384956,Miscellaneous Expenses,05-Oct-2022,000008535957122,WWW.OFCOM.ORG.UK,8699,Licences,50.00,0.00,50.00
Children and Young Peoples Services,Head of Childrens Social Care,085347,Solo Home The Manse,Supplies and Services,324117,Provisions E324,05-Oct-2022,000008535957164,B&M 740 SEAHAM,5399,Catering costs - provisions,21.17,0.00,21.17
Children and Young Peoples Services,Head of Childrens Social Care,085347,Solo Home The Manse,Supplies and Services,324117,Provisions E324,05-Oct-2022,000008535957168,TESCO STORES 2371,5411,Catering costs - provisions,129.79,0.00,129.79
Children and Young Peoples Services,Head of Childrens Social Care,085347,Solo Home The Manse,Supplies and Services,304403,Equipment and Materials,05-Oct-2022,000008535957172,CARD FACTORY,5947,Other consumables,2.78,0.00,2.78
Children and Young Peoples Services,Head of Early Help Inclusion & Vulnerable Children.,085801,CDYJS - Support,Supplies and Services,304403,Equipment and Materials,05-Oct-2022,000008535957186,AMZNMKTPLACE AMAZON.CO,5999,Other consumables,31.19,5.20,25.99
Children and Young Peoples Services,Head of Childrens Social Care,085633,Families First Chester-Le-Street,Supplies and Services,364340,Grants to Voluntary Organisations,05-Oct-2022,000008535957218,WWW.GONORTHEAST.CO.UK,4111,Contact expenses,26.50,0.00,26.50
Children and Young Peoples Services,Head of Early Help Inclusion & Vulnerable Children.,088100,Durham & CLS Intensive Family Support Team,Supplies and Services,364301,Grants to Voluntary Organisations,05-Oct-2022,000008535957226,AMZNMktplace,5999,Hardship,8.95,1.49,7.46
Children and Young Peoples Services,Head of Early Help Inclusion & Vulnerable Children.,088107,Wheatley Hill & N. Aycliffe Family Centre,Supplies and Services,324117,Provisions E324,05-Oct-2022,000008535957310,ASDA GROCERIES ONLINE,5411,Catering costs - provisions,42.25,0.00,42.25
Children and Young Peoples Services,Head of Early Help Inclusion & Vulnerable Children.,088107,Wheatley Hill & N. Aycliffe Family Centre,Supplies and Services,324117,Provisions E324,05-Oct-2022,000008535957316,ASDA GROCERIES ONLINE,5411,Catering costs - provisions,-1.75,0.00,-1.75
Children and Young Peoples Services,Head of Early Help Inclusion & Vulnerable Children.,085962,Aycliffe Secure - Durham,Supplies and Services,304403,Equipment and Materials,05-Oct-2022,000008535957320,AMZNBusiness X87XN9DM5,5999,Other consumables,8.95,1.49,7.46
Children and Young Peoples Services,Head of Early Help Inclusion & Vulnerable Children.,085962,Aycliffe Secure - Durham,Supplies and Services,304403,Equipment and Materials,05-Oct-2022,000008535957326,AMZNBusiness 3S4T38195,5999,Other consumables,14.42,2.40,12.02
Children and Young Peoples Services,Head of Early Help Inclusion & Vulnerable Children.,085962,Aycliffe Secure - Durham,Supplies and Services,304403,Equipment and Materials,05-Oct-2022,000008535957328,AMZNMktplace,5999,Other consumables,29.98,5.00,24.98
Children and Young Peoples Services,Head of Early Help Inclusion & Vulnerable Children.,085962,Aycliffe Secure - Durham,Supplies and Services,304403,Equipment and Materials,05-Oct-2022,000008535957334,AMZNMktplace,5999,Other consumables,13.99,2.33,11.66
Children and Young Peoples Services,Head of Early Help Inclusion & Vulnerable Children.,085962,Aycliffe Secure - Durham,Supplies and Services,304403,Equipment and Materials,05-Oct-2022,000008535957344,AMZNMktplace,5999,Other consumables,5.98,1.00,4.98
Children and Young Peoples Services,Head of Early Help Inclusion & Vulnerable Children.,085962,Aycliffe Secure - Durham,Supplies and Services,304403,Equipment and Materials,05-Oct-2022,000008535957350,AMZNMktplace,5999,Other consumables,9.85,1.64,8.21
Children and Young Peoples Services,Head of Early Help Inclusion & Vulnerable Children.,085962,Aycliffe Secure - Durham,Supplies and Services,304403,Equipment and Materials,05-Oct-2022,000008535957354,AMZNMktplace,5999,Other consumables,21.27,3.55,17.72
Children and Young Peoples Services,Head of Early Help Inclusion & Vulnerable Children.,085962,Aycliffe Secure - Durham,Supplies and Services,304403,Equipment and Materials,05-Oct-2022,000008535957358,AMZNBusiness 9E14E8OI5,5999,Other consumables,8.42,1.40,7.02
Children and Young Peoples Services,Head of Early Help Inclusion & Vulnerable Children.,085962,Aycliffe Secure - Durham,Supplies and Services,304403,Equipment and Materials,05-Oct-2022,000008535957364,AMZNMktplace,5999,Other consumables,5.99,1.00,4.99
Children and Young Peoples Services,Head of Childrens Social Care,085358,Orchard House Sacriston Solo Home,Transport,235005,Public Transport,05-Oct-2022,000008535957424,KWIK FIT,7538,Contract tickets,214.50,0.00,214.50
Regeneration Economy and Growth,Culture Sport and Tourism,011263,Louisa Centre 011263,Supplies and Services,384999,Miscellaneous Expenses,05-Oct-2022,000008535957474,AMZ Amazon.co.uk,5969,Other expenses,-30.50,0.00,-30.50
Regeneration Economy and Growth,Culture Sport and Tourism,011263,Louisa Centre 011263,Supplies and Services,384999,Miscellaneous Expenses,05-Oct-2022,000008535957480,AMZ Amazon.co.uk,5969,Other expenses,-27.49,0.00,-27.49
Children and Young Peoples Services,Head of Childrens Social Care,085332,Middlestone Moor CU,Supplies and Services,328041,Clothing uniforms and laundry E328,05-Oct-2022,000008535957482,Planet Leisure Ltd,7996,Clothing uniforms and laundry,8.00,0.00,8.00
Children and Young Peoples Services,Head of Childrens Social Care,085332,Middlestone Moor CU,Supplies and Services,328041,Clothing uniforms and laundry E328,05-Oct-2022,000008535957486,Planet Leisure Ltd,7996,Clothing uniforms and laundry,8.00,0.00,8.00
Children and Young Peoples Services,Head of Childrens Social Care,085332,Middlestone Moor CU,Supplies and Services,328041,Clothing uniforms and laundry E328,05-Oct-2022,000008535957490,Planet Leisure Ltd,7996,Clothing uniforms and laundry,2.95,0.00,2.95
Children and Young Peoples Services,Head of Childrens Social Care,085332,Middlestone Moor CU,Supplies and Services,328041,Clothing uniforms and laundry E328,05-Oct-2022,000008535957496,Planet Leisure Ltd,7996,Clothing uniforms and laundry,2.95,0.00,2.95
Resources BK0010,Digital Services,065351,Microsoft Office 365,Supplies and Services,304999,Equipment and Materials,05-Oct-2022,000008535957504,FS TechSmith,5817,Misc equipment tools and materials,34.98,0.00,34.98
Resources BK0010,Digital Services,065329,Operations - Primary Support,Supplies and Services,304999,Equipment and Materials,05-Oct-2022,000008535957508,ONEDIRECT UK,5818,Misc equipment tools and materials,136.72,0.00,136.72
Resources BK0010,Digital Services,065481,Technical Services 065481,Supplies and Services,304403,Equipment and Materials,05-Oct-2022,000008535957514,XSPLIT SPLITMEDIALABS,5734,Other consumables,62.18,0.00,62.18
Resources BK0010,Digital Services,065481,Technical Services 065481,Supplies and Services,304403,Equipment and Materials,05-Oct-2022,000008535957518,XSPLIT SPLITMEDIALABS,5734,Other consumables,62.18,0.00,62.18
Resources BK0010,Digital Services,065481,Technical Services 065481,Supplies and Services,304403,Equipment and Materials,05-Oct-2022,000008535957524,XSPLIT SPLITMEDIALABS,5734,Other consumables,62.18,0.00,62.18
Neighbourhoods and Climate Change,Environmental Services,022901,SW - Strategic Waste Contracts 022901,Supplies and Services,304403,Equipment and Materials,05-Oct-2022,000008535957528,AMZNMktplace,5999,Other consumables,17.99,0.00,17.99
Resources BK0010,Digital Services,065329,Operations - Primary Support,Supplies and Services,304403,Equipment and Materials,05-Oct-2022,000008535957534,AMZNMktplace,5999,Other consumables,19.99,3.33,16.66
Resources BK0010,Legal & Democratic Services,067910,Democratic Representation 067910,Supplies and Services,304403,Equipment and Materials,05-Oct-2022,000008535957538,AMZNMktplace,5999,Other consumables,6.98,1.16,5.82
Children and Young Peoples Services,Head of Childrens Social Care,085366,Children Looked After Team 3,Supplies and Services,304403,Equipment and Materials,05-Oct-2022,000008535957542,AMZNMktplace,5999,Other consumables,19.75,3.29,16.46
Neighbourhoods and Climate Change,Environmental Services,022901,SW - Strategic Waste Contracts 022901,Supplies and Services,304403,Equipment and Materials,05-Oct-2022,000008535957546,AMZNMktplace,5999,Other consumables,17.99,0.00,17.99
Resources BK0010,Transactional & Customer Services,065180,Collections,Supplies and Services,304403,Equipment and Materials,05-Oct-2022,000008535957550,2CO.COM YOUR-NERO.COM-,5734,Other consumables,34.95,0.00,34.95
Resources BK0010,Digital Services,065256,Nodes/Circuits,Supplies and Services,304221,Equipment and Materials,05-Oct-2022,000008535957554,WWW.SCREWFIX.COM,5211,Direct materials,257.46,0.00,257.46
Resources BK0010,Digital Services,065256,Nodes/Circuits,Supplies and Services,304403,Equipment and Materials,05-Oct-2022,000008535957562,AMZNMktplace,5999,Other consumables,29.99,5.00,24.99
Resources BK0010,Digital Services,065256,Nodes/Circuits,Supplies and Services,304403,Equipment and Materials,05-Oct-2022,000008535957566,AMZNMktplace,5999,Other consumables,43.54,7.26,36.28
Resources BK0010,Digital Services,065256,Nodes/Circuits,Supplies and Services,304403,Equipment and Materials,05-Oct-2022,000008535957572,AMZNMktplace,5999,Other consumables,9.84,1.64,8.20
Resources BK0010,Digital Services,065256,Nodes/Circuits,Supplies and Services,304403,Equipment and Materials,05-Oct-2022,000008535957572 - 1,AMZNMktplace,5999,Other consumables,0.04,,0.04
Adult and Health Services,Commissioning inc Supporting People,052106,Strat Comm Manager - Childrens,Supplies and Services,304403,Equipment and Materials,05-Oct-2022,000008535957574,AMZNMktplace,5999,Other consumables,31.99,5.33,26.66
Regeneration Economy and Growth,Communications Management,060270,Communications and Marketing,Supplies and Services,336005,Advertising E336,05-Oct-2022,000008535957640,LINKEDIN-832 3107734,7311,Advertising other than for staff,208.19,0.00,208.19
Children and Young Peoples Services,Head of Childrens Social Care,085397,Regionalisation of Adoption,Supplies and Services,336005,Advertising E336,05-Oct-2022,000008535957758,FACEBK KQA4PJX4F2,7311,Advertising other than for staff,25.00,0.00,25.00
Children and Young Peoples Services,Head of Early Help Inclusion & Vulnerable Children.,088101,Bullion Lane & Brandon Family Centre,Supplies and Services,308011,Furniture,05-Oct-2022,000008535957774,WWW.THERANGE.CO.UK,5719,Furniture repair and replacement,14.44,0.00,14.44
Regeneration Economy and Growth,Business Durham CL0850,030694,Plexus 2,Supplies and Services,344033,Telephones,05-Oct-2022,000008535957782,WEL MEDICAL LIMITED ON,8099,Telephones general-all costs,232.80,0.00,232.80
Neighbourhoods and Climate Change,Environmental Services,010301,C&G - North Grounds Maintenance,Supplies and Services,304999,Equipment and Materials,05-Oct-2022,000008535957798,GUSTHARTS,5072,Misc equipment tools and materials,249.64,0.00,249.64
Regeneration Economy and Growth,Corporate Property and Land,030691,Catering - Durham Dales Centre,Supplies and Services,324117,Provisions E324,05-Oct-2022,000008535957812,TESCO STORES 6329,5411,Catering costs - provisions,33.47,0.00,33.47
Regeneration Economy and Growth,Planning & Housing,031576,B& B - Temp Accom,Supplies and Services,364320,Grants to Voluntary Organisations,05-Oct-2022,000008535957834,HOTEL 52,7011,Accommodation assistance,235.00,0.00,235.00
Regeneration Economy and Growth,Corporate Property and Land,010525,Catering - Green Lane,Supplies and Services,324117,Provisions E324,05-Oct-2022,000008536118604,JR HOLLAND FOODSERVICE,5499,Catering costs - provisions,29.34,0.00,29.34
Regeneration Economy and Growth,Corporate Property and Land,030691,Catering - Durham Dales Centre,Supplies and Services,324117,Provisions E324,05-Oct-2022,000008536118610,JR HOLLAND FOODSERVICE,5499,Catering costs - provisions,118.30,0.00,118.30
Regeneration Economy and Growth,Corporate Property and Land,030691,Catering - Durham Dales Centre,Supplies and Services,324117,Provisions E324,05-Oct-2022,000008536118614,JR HOLLAND FOODSERVICE,5499,Catering costs - provisions,48.95,0.00,48.95
Regeneration Economy and Growth,Culture Sport and Tourism,054235,Bishop Auckland Town Hall Cafe,Supplies and Services,324117,Provisions E324,05-Oct-2022,000008536118626,JR HOLLAND FOODSERVICE,5499,Catering costs - provisions,416.01,0.00,416.01
Adult and Health Services,Head of Adults,055643,Hawthorn House LD Respite Unit,Supplies and Services,324117,Provisions E324,05-Oct-2022,000008536118630,JR HOLLAND FOODSERVICE,5499,Catering costs - provisions,15.39,0.00,15.39
Regeneration Economy and Growth,Corporate Property and Land,021234,Catering - Locomotion,Supplies and Services,384999,Miscellaneous Expenses,05-Oct-2022,000008536118650,ON A ROLL SANDWICH COM,5199,Other expenses,"1,449.26",0.00,1449.26
Regeneration Economy and Growth,Corporate Property and Land,021234,Catering - Locomotion,Supplies and Services,324117,Provisions E324,05-Oct-2022,000008536118652,JR HOLLAND FOODSERVICE,5499,Catering costs - provisions,29.52,0.00,29.52
Regeneration Economy and Growth,Corporate Property and Land,021235,Catering - Wharton Park,Supplies and Services,384999,Miscellaneous Expenses,05-Oct-2022,000008536118654,ON A ROLL SANDWICH COM,5199,Other expenses,350.65,0.00,350.65
Regeneration Economy and Growth,Corporate Property and Land,021235,Catering - Wharton Park,Supplies and Services,324117,Provisions E324,05-Oct-2022,000008536118658,JR HOLLAND FOODSERVICE,5499,Catering costs - provisions,34.07,0.00,34.07
Regeneration Economy and Growth,Culture Sport and Tourism,011263,Louisa Centre 011263,Supplies and Services,324117,Provisions E324,05-Oct-2022,000008536118664,JR HOLLAND FOODSERVICE,5499,Catering costs - provisions,21.11,0.00,21.11
Regeneration Economy and Growth,Culture Sport and Tourism,054812,Gala Theatre - Catering etc,Supplies and Services,324117,Provisions E324,05-Oct-2022,000008536118670,JR HOLLAND FOODSERVICE,5499,Catering costs - provisions,-112.70,0.00,-112.70
Regeneration Economy and Growth,Corporate Property and Land,021242,Catering - County Hall,Supplies and Services,384999,Miscellaneous Expenses,05-Oct-2022,000008536118684,ON A ROLL SANDWICH COM,5199,Other expenses,"1,085.23",0.00,1085.23
Regeneration Economy and Growth,Corporate Property and Land,021242,Catering - County Hall,Supplies and Services,324117,Provisions E324,05-Oct-2022,000008536118688,JR HOLLAND FOODSERVICE,5499,Catering costs - provisions,115.58,0.00,115.58
Regeneration Economy and Growth,Corporate Property and Land,021242,Catering - County Hall,Supplies and Services,324117,Provisions E324,05-Oct-2022,000008536118692,JR HOLLAND FOODSERVICE,5499,Catering costs - provisions,59.70,0.00,59.70
Regeneration Economy and Growth,Corporate Property and Land,021242,Catering - County Hall,Supplies and Services,324117,Provisions E324,05-Oct-2022,000008536118696,JR HOLLAND FOODSERVICE,5499,Catering costs - provisions,24.74,0.00,24.74
Regeneration Economy and Growth,Corporate Property and Land,021242,Catering - County Hall,Supplies and Services,324117,Provisions E324,05-Oct-2022,000008536118700,JR HOLLAND FOODSERVICE,5499,Catering costs - provisions,5.20,0.00,5.20
Regeneration Economy and Growth,Corporate Property and Land,021324,Catering - Meadowfield,Supplies and Services,324117,Provisions E324,05-Oct-2022,000008536118714,JR HOLLAND FOODSERVICE,5499,Catering costs - provisions,93.81,0.00,93.81
Children and Young Peoples Services,Head of Early Help Inclusion & Vulnerable Children.,088105,W/Close and Willington Family Centre,Supplies and Services,304259,Equipment and Materials,05-Oct-2022,000008541371310,AMZNMKTPLACE AMAZON.CO,5999,Equipment-purchase and rental,6.58,1.10,5.48
Children and Young Peoples Services,Head of Childrens Social Care,085511,Emergency Duty Team,Supplies and Services,348037,Subsistence E348,05-Oct-2022,000008541371366,CROXDALE INN,5812,Subsistence,50.00,0.00,50.00
Regeneration Economy and Growth,Business Durham CL0850,030714,Salvus House,Supplies and Services,304403,Equipment and Materials,05-Oct-2022,000008541371494,AMZNMKTPLACE AMAZON.CO,5999,Other consumables,8.48,1.41,7.07
Dedicated Schools Grant BG0015,DSG Schools Block,231104,Peases West Primary 2311 - General Curriculum,Supplies and Services,312011,Newspapers books and periodicals E312,05-Oct-2022,000008541371954,AMZNMKTPLACE AMAZON.CO,5999,Books-school library,6.39,0.00,6.39
Dedicated Schools Grant BG0015,DSG Schools Block,231104,Peases West Primary 2311 - General Curriculum,Supplies and Services,312011,Newspapers books and periodicals E312,05-Oct-2022,000008541371956,AMZNMKTPLACE AMAZON.CO,5999,Books-school library,23.66,0.00,23.66
Dedicated Schools Grant BG0015,DSG Schools Block,231104,Peases West Primary 2311 - General Curriculum,Supplies and Services,312011,Newspapers books and periodicals E312,05-Oct-2022,000008541371960,AMZNMKTPLACE AMAZON.CO,5999,Books-school library,20.94,0.00,20.94
Dedicated Schools Grant BG0015,DSG Schools Block,231104,Peases West Primary 2311 - General Curriculum,Supplies and Services,312011,Newspapers books and periodicals E312,05-Oct-2022,000008541371962,AMZNMKTPLACE AMAZON.CO,5999,Books-school library,14.12,0.00,14.12
Children and Young Peoples Services,Head of Childrens Social Care,085358,Orchard House Sacriston Solo Home,Supplies and Services,304403,Equipment and Materials,05-Oct-2022,000008541372106,AMZNMKTPLACE AMAZON.CO,5999,Other consumables,18.98,3.16,15.82
Resources BK0010,Digital Services,065256,Nodes/Circuits,Supplies and Services,304403,Equipment and Materials,05-Oct-2022,000008541372130,RS COMPONENTS,5065,Other consumables,336.14,0.00,336.14
Children and Young Peoples Services,Head of Early Help Inclusion & Vulnerable Children.,088101,Bullion Lane & Brandon Family Centre,Supplies and Services,328041,Clothing uniforms and laundry E328,05-Oct-2022,000008541372240,ARGOS LTD,5310,Clothing uniforms and laundry,186.55,31.09,155.46
Children and Young Peoples Services,Head of Early Help Inclusion & Vulnerable Children.,088101,Bullion Lane & Brandon Family Centre,Supplies and Services,328041,Clothing uniforms and laundry E328,05-Oct-2022,000008541372242,ARGOS LTD,5310,Clothing uniforms and laundry,110.95,0.00,110.95
Children and Young Peoples Services,Head of Childrens Social Care,085652,PAUSE Durham Team,Supplies and Services,384999,Miscellaneous Expenses,05-Oct-2022,000008541372272,SUNDERLAND AFC LTD,7997,Other expenses,70.00,0.00,70.00
Regeneration Economy and Growth,Corporate Property and Land,021234,Catering - Locomotion,Supplies and Services,324117,Provisions E324,05-Oct-2022,000008541461514,BATLEYS PERTH,5300,Catering costs - provisions,-4.18,0.00,-4.18
Resources BK0010,Legal & Democratic Services,069326,Practice Management,Supplies and Services,304259,Equipment and Materials,05-Oct-2022,000010304240271,GEN REGISTER OFFICE,9399,Equipment-purchase and rental,-11.00,0.00,-11.00
Regeneration Economy and Growth,Culture Sport and Tourism,011215,Museums Heritage & Collections 011215,Supplies and Services,304259,Equipment and Materials,06-Oct-2022,000008535954804,AMZNMktplace,5999,Equipment-purchase and rental,11.99,2.00,9.99
Children and Young Peoples Services,Head of Early Help Inclusion & Vulnerable Children.,085952,Secure Education,Supplies and Services,332047,Printing Stationery and Gen Off Exps,06-Oct-2022,000008535955972,AMZNMktplace,5999,Stationery,8.52,0.00,8.52
Neighbourhoods and Climate Change,Environmental Services,031233,North Pennines - Pennine Peatlife,Transport,235057,Public Transport,06-Oct-2022,000008535956780,SumUp AEROPORT TAXI,4121,Staff travelling,0.86,0.00,0.86
Neighbourhoods and Climate Change,Environmental Services,031233,North Pennines - Pennine Peatlife,Supplies and Services,348037,Subsistence E348,06-Oct-2022,000008535956782,LA CASA DES RAILS,5813,Subsistence,0.08,0.00,0.08
Neighbourhoods and Climate Change,Environmental Services,031233,North Pennines - Pennine Peatlife,Transport,235057,Public Transport,06-Oct-2022,000008535956786,SNCF,4112,Staff travelling,0.89,0.00,0.89
Children and Young Peoples Services,Head of Early Help Inclusion & Vulnerable Children.,088103,Stanley & Moorside Family Centre,Supplies and Services,384302,Miscellaneous Expenses,06-Oct-2022,000008535956908,AMZNMktplace,5999,Activity expenses,15.29,2.55,12.74
Resources BK0010,Digital Services,065481,Technical Services 065481,Supplies and Services,304403,Equipment and Materials,06-Oct-2022,000008535957582,XSPLIT SPLITMEDIALABS,5734,Other consumables,1.71,0.00,1.71
Resources BK0010,Digital Services,065481,Technical Services 065481,Supplies and Services,304403,Equipment and Materials,06-Oct-2022,000008535957586,XSPLIT SPLITMEDIALABS,5734,Other consumables,1.71,0.00,1.71
Resources BK0010,Digital Services,065481,Technical Services 065481,Supplies and Services,304403,Equipment and Materials,06-Oct-2022,000008535957588,XSPLIT SPLITMEDIALABS,5734,Other consumables,1.71,0.00,1.71
Regeneration Economy and Growth,Business Durham CL0850,030689,Inward Investment and Aftercare,Supplies and Services,342033,Computers and Communications,06-Oct-2022,000008541371192,STK Shutterstock,7333,Computer hardware,19.00,0.00,19.00
Children and Young Peoples Services,Head of Childrens Social Care,085342,16 Hickstead Rise (previously 9 Cedar Ave),Supplies and Services,324117,Provisions E324,06-Oct-2022,000008541371230,ASDA SUPERSTORE 4987,5411,Catering costs - provisions,50.89,0.00,50.89
Children and Young Peoples Services,Head of Childrens Social Care,085357,LAC Bespoke Placements,Supplies and Services,352001,Conference Expenses,06-Oct-2022,000008541371232,HARROWGATE HILL LODGE,7011,Conferencesseminars fees etc,"1,869.00",0.00,1869.00
Children and Young Peoples Services,Head of Childrens Social Care,085357,LAC Bespoke Placements,Supplies and Services,304999,Equipment and Materials,06-Oct-2022,000008541371234,YPS WASHINGTONS HIDDEN,6513,Misc equipment tools and materials,"8,000.00",0.00,8000.00
Children and Young Peoples Services,Head of Childrens Social Care,085357,LAC Bespoke Placements,Supplies and Services,304999,Equipment and Materials,06-Oct-2022,000008541371236,YPS WASHINGTONS HIDDEN,6513,Misc equipment tools and materials,"5,230.00",0.00,5230.00
Children and Young Peoples Services,Head of Childrens Social Care,085347,Solo Home The Manse,Supplies and Services,352001,Conference Expenses,06-Oct-2022,000008541371238,SYKES COTTAGES,7011,Conferencesseminars fees etc,500.00,0.00,500.00
Children and Young Peoples Services,Head of Childrens Social Care,085347,Solo Home The Manse,Supplies and Services,352001,Conference Expenses,06-Oct-2022,000008541371242,SYKES COTTAGES,7011,Conferencesseminars fees etc,500.00,0.00,500.00
Regeneration Economy and Growth,Culture Sport and Tourism,011265,Empire Theatre (Operations),Supplies and Services,304252,Equipment and Materials,06-Oct-2022,000008541371244,AMZNMktplace,5999,Equipment-repairsserviceinsurance,20.99,3.50,17.49
Regeneration Economy and Growth,Culture Sport and Tourism,011265,Empire Theatre (Operations),Supplies and Services,304252,Equipment and Materials,06-Oct-2022,000008541371246,AMZNMktplace,5999,Equipment-repairsserviceinsurance,9.99,0.00,9.99
Children and Young Peoples Services,Head of Childrens Social Care,085332,Middlestone Moor CU,Supplies and Services,304999,Equipment and Materials,06-Oct-2022,000008541371260,W BOYES & CO LTD NEWTO,5310,Misc equipment tools and materials,30.92,0.00,30.92
Children and Young Peoples Services,Head of Early Help Inclusion & Vulnerable Children.,085956,Lumley,Supplies and Services,304403,Equipment and Materials,06-Oct-2022,000008541371278,AMZNMktplace,5999,Other consumables,51.97,0.00,51.97
Neighbourhoods and Climate Change,Environmental Services,031233,North Pennines - Pennine Peatlife,Supplies and Services,348037,Subsistence E348,06-Oct-2022,000008541371280,BURTON BK,5812,Subsistence,17.23,2.87,14.36
Neighbourhoods and Climate Change,Environmental Services,010367,C&G - South Grounds Maintenance,Supplies and Services,304221,Equipment and Materials,06-Oct-2022,000008541371306,WWW.SCREWFIX.COM,5211,Direct materials,149.95,0.00,149.95
Children and Young Peoples Services,Head of Early Help Inclusion & Vulnerable Children.,088104,BA/BC/Crook Intensive Family Support Team,Supplies and Services,304259,Equipment and Materials,06-Oct-2022,000008541371308,AMZNMktplace,5999,Equipment-purchase and rental,9.99,1.67,8.32
Children and Young Peoples Services,Head of Early Help Inclusion & Vulnerable Children.,088105,W/Close and Willington Family Centre,Supplies and Services,304259,Equipment and Materials,06-Oct-2022,000008541371314,AMZNMktplace,5999,Equipment-purchase and rental,3.32,0.56,2.76
Regeneration Economy and Growth,Economic Development Level C,030771,Durham Advance Flexible Fund,Supplies and Services,384999,Miscellaneous Expenses,06-Oct-2022,000008541371320,BAKER ROSS,5970,Other expenses,155.90,0.00,155.90
Regeneration Economy and Growth,Economic Development Level C,030771,Durham Advance Flexible Fund,Supplies and Services,304403,Equipment and Materials,06-Oct-2022,000008541371322,AMZNMktplace,5999,Other consumables,19.92,3.32,16.60
Regeneration Economy and Growth,Economic Development Level C,030771,Durham Advance Flexible Fund,Supplies and Services,304403,Equipment and Materials,06-Oct-2022,000008541371322 - 1,AMZNMktplace,5999,Other consumables,0.04,,0.04
Regeneration Economy and Growth,Economic Development Level C,030771,Durham Advance Flexible Fund,Supplies and Services,304403,Equipment and Materials,06-Oct-2022,000008541371324,AMZNMktplace,5999,Other consumables,21.50,3.58,17.92
Neighbourhoods and Climate Change,Environmental Services,010367,C&G - South Grounds Maintenance,Supplies and Services,304999,Equipment and Materials,06-Oct-2022,000008541371362,Harelaw sawmill delive,5251,Misc equipment tools and materials,88.68,0.00,88.68
Children and Young Peoples Services,Head of Childrens Social Care,085511,Emergency Duty Team,Supplies and Services,352001,Conference Expenses,06-Oct-2022,000008541371372,HARROWGATE HILL LODGE,7011,Conferencesseminars fees etc,48.00,0.00,48.00
Children and Young Peoples Services,Head of Childrens Social Care,085347,Solo Home The Manse,Supplies and Services,324117,Provisions E324,06-Oct-2022,000008541371378,SAINSBURYS LOCAL,5411,Catering costs - provisions,5.15,0.00,5.15
Resources BK0010,Procurement Sales & Business Services,065503,Business Support - Spectrum,Supplies and Services,304403,Equipment and Materials,06-Oct-2022,000008541371386,AMZNMktplace,5999,Other consumables,10.99,0.00,10.99
Neighbourhoods and Climate Change,Environmental Services,010367,C&G - South Grounds Maintenance,Supplies and Services,304221,Equipment and Materials,06-Oct-2022,000008541371394,SCREWFIX DIR LTD,5211,Direct materials,48.98,8.16,40.82
Neighbourhoods and Climate Change,Environmental Services,010367,C&G - South Grounds Maintenance,Supplies and Services,304221,Equipment and Materials,06-Oct-2022,000008541371398,TOOLSTATION LIMITED,5211,Direct materials,5.98,1.00,4.98
Adult and Health Services,Head of Adults,055302,Durham Pathways,Supplies and Services,324117,Provisions E324,06-Oct-2022,000008541371442,WILKO RETAIL LIMITED,5399,Catering costs - provisions,13.00,0.00,13.00
Neighbourhoods and Climate Change,Environmental Services,011060,C&G - Hardwick Park Catering,Supplies and Services,324117,Provisions E324,06-Oct-2022,000008541371448,HOME CHOCOLATE FACTORY,5046,Catering costs - provisions,138.23,0.00,138.23
Neighbourhoods and Climate Change,Environmental Services,026591,C&G - Hardwick Park,Supplies and Services,332047,Printing Stationery and Gen Off Exps,06-Oct-2022,000008541371452,YORKSHIRE PURCHASING O,5111,Stationery,211.54,0.00,211.54
Regeneration Economy and Growth,Planning & Housing,031623,Rough Sleeping,Supplies and Services,348037,Subsistence E348,06-Oct-2022,000008541371502,GREGGS,5812,Subsistence,12.35,0.00,12.35
Children and Young Peoples Services,Head of Childrens Social Care,085364,Children Looked After Team 1,Supplies and Services,328041,Clothing uniforms and laundry E328,06-Oct-2022,000008541371534,InfiniteAir,7996,Clothing uniforms and laundry,14.31,0.00,14.31
Children and Young Peoples Services,Head of Childrens Social Care,085364,Children Looked After Team 1,Supplies and Services,304259,Equipment and Materials,06-Oct-2022,000008541371536,CURRYS ONLINE,5732,Equipment-purchase and rental,299.98,0.00,299.98
Children and Young Peoples Services,Head of Childrens Social Care,085364,Children Looked After Team 1,Supplies and Services,332047,Printing Stationery and Gen Off Exps,06-Oct-2022,000008541371540,NCS TRUST,8641,Stationery,10.00,0.00,10.00
Children and Young Peoples Services,Head of Early Help Inclusion & Vulnerable Children.,085955,Auckland,Transfer Payments,515002,Social Services Clients,06-Oct-2022,000008541371548,FLANNELS.COM,5691,Pocket money,41.99,0.00,41.99
Children and Young Peoples Services,Head of Early Help Inclusion & Vulnerable Children.,085952,Secure Education,Supplies and Services,332047,Printing Stationery and Gen Off Exps,06-Oct-2022,000008541371554,AMZNMktplace,5999,Stationery,18.22,3.04,15.18
Children and Young Peoples Services,Head of Early Help Inclusion & Vulnerable Children.,085965,Barnard,Transfer Payments,515002,Social Services Clients,06-Oct-2022,000008541371556,AMZNMktplace,5999,Pocket money,21.99,0.00,21.99
Children and Young Peoples Services,Head of Early Help Inclusion & Vulnerable Children.,085965,Barnard,Transfer Payments,515002,Social Services Clients,06-Oct-2022,000008541371558,AMZNMktplace,5999,Pocket money,8.52,1.42,7.10
Resources BK0010,HR & Employee Services,010984,Training and Development,Employees,040149,Recruitment Instruction and Training,06-Oct-2022,000008541371580,NCS VUE WAMITAB TEST,8299,Training-all costs,154.00,0.00,154.00
Neighbourhoods and Climate Change,Environmental Services,031238,North Pennines - Tees Swale,Supplies and Services,304259,Equipment and Materials,06-Oct-2022,000008541371584,CARRS BILLINGTON HAWES,5599,Equipment-purchase and rental,77.93,0.00,77.93
Regeneration Economy and Growth,Economic Development Level C,030554,International Relations 030554,Transport,235057,Public Transport,06-Oct-2022,000008541371652,3C_ NSL Durham WAP,7523,Staff travelling,3.20,0.00,3.20
Neighbourhoods and Climate Change,Environmental Services,010367,C&G - South Grounds Maintenance,Supplies and Services,304999,Equipment and Materials,06-Oct-2022,000008541371690,R DEFTY,5251,Misc equipment tools and materials,21.45,0.00,21.45
Adult and Health Services,Head of Adults,055643,Hawthorn House LD Respite Unit,Supplies and Services,324117,Provisions E324,06-Oct-2022,000008541371758,SAINSBURYS S/MKTS,5411,Catering costs - provisions,10.60,0.00,10.60
Children and Young Peoples Services,Head of Education and Skills,071802,Louisa Cent Nursery,Supplies and Services,324117,Provisions E324,06-Oct-2022,000008541371780,ALDI STORES,5411,Catering costs - provisions,11.99,0.00,11.99
Regeneration Economy and Growth,Corporate Property and Land,020074,Bldg Serv - R&M Div 74 - Mechanical,Supplies and Services,304221,Equipment and Materials,06-Oct-2022,000008541371788,PLUMBNATION LTD,5072,Direct materials,134.00,22.33,111.67
Regeneration Economy and Growth,Culture Sport and Tourism,011286,Wolsingham School Leisure Centre,Supplies and Services,304259,Equipment and Materials,06-Oct-2022,000008541371834,SP RLSS UK SHOP,5691,Equipment-purchase and rental,50.45,0.00,50.45
Regeneration Economy and Growth,Culture Sport and Tourism,011291,Peterlee Leisure Centre,Supplies and Services,304259,Equipment and Materials,06-Oct-2022,000008541371838,AMZNMktplace,5999,Equipment-purchase and rental,59.90,10.00,49.90
Children and Young Peoples Services,Head of Childrens Social Care,085334,West Rainton Satelite Home,Supplies and Services,304403,Equipment and Materials,06-Oct-2022,000008541371874,AMZNMktplace,5999,Other consumables,34.99,5.83,29.16
Children and Young Peoples Services,Head of Childrens Social Care,085331,New Lea Childrens Home,Supplies and Services,324117,Provisions E324,06-Oct-2022,000008541371880,LIDL GB BSHP AUCKLAND,5411,Catering costs - provisions,29.54,0.00,29.54
Children and Young Peoples Services,Head of Early Help Inclusion & Vulnerable Children.,088103,Stanley & Moorside Family Centre,Supplies and Services,384302,Miscellaneous Expenses,06-Oct-2022,000008541371906,AMZNMktplace,5999,Activity expenses,4.92,0.82,4.10
Children and Young Peoples Services,Head of Early Help Inclusion & Vulnerable Children.,088103,Stanley & Moorside Family Centre,Supplies and Services,384302,Miscellaneous Expenses,06-Oct-2022,000008541371910,AMZNMktplace,5999,Activity expenses,3.99,0.67,3.32
Children and Young Peoples Services,Head of Early Help Inclusion & Vulnerable Children.,088103,Stanley & Moorside Family Centre,Supplies and Services,384302,Miscellaneous Expenses,06-Oct-2022,000008541371914,AMZNMktplace,5999,Activity expenses,9.98,1.66,8.32
Children and Young Peoples Services,Head of Early Help Inclusion & Vulnerable Children.,088103,Stanley & Moorside Family Centre,Supplies and Services,384302,Miscellaneous Expenses,06-Oct-2022,000008541371916,AMZNMktplace,5999,Activity expenses,1.59,0.27,1.32
Children and Young Peoples Services,Head of Early Help Inclusion & Vulnerable Children.,088103,Stanley & Moorside Family Centre,Supplies and Services,304259,Equipment and Materials,06-Oct-2022,000008541371918,AMZNMKTPLACE AMAZON.CO,5999,Equipment-purchase and rental,40.99,6.83,34.16
Children and Young Peoples Services,Head of Early Help Inclusion & Vulnerable Children.,088103,Stanley & Moorside Family Centre,Supplies and Services,384302,Miscellaneous Expenses,06-Oct-2022,000008541371920,AMZNMktplace,5999,Activity expenses,7.94,1.32,6.62
Children and Young Peoples Services,Head of Early Help Inclusion & Vulnerable Children.,088103,Stanley & Moorside Family Centre,Supplies and Services,384302,Miscellaneous Expenses,06-Oct-2022,000008541371924,AMZNMktplace,5999,Activity expenses,13.78,2.31,11.47
Children and Young Peoples Services,Head of Childrens Social Care,085363,Childrens Permanence Team,Supplies and Services,338045,Services,06-Oct-2022,000008541371926,DURHAM COUNTY COUNCIL,9399,Legal expenses 338045,11.00,0.00,11.00
Children and Young Peoples Services,Head of Early Help Inclusion & Vulnerable Children.,088102,Consett & Stanley Intensive Family Support Team,Supplies and Services,364301,Grants to Voluntary Organisations,06-Oct-2022,000008541371928,ASDA GROCERIES ONLINE,5411,Hardship,499.23,0.00,499.23
Children and Young Peoples Services,Head of Early Help Inclusion & Vulnerable Children.,088103,Stanley & Moorside Family Centre,Supplies and Services,384302,Miscellaneous Expenses,06-Oct-2022,000008541371930,AMZNMktplace,5999,Activity expenses,16.99,2.83,14.16
Children and Young Peoples Services,Head of Early Help Inclusion & Vulnerable Children.,088103,Stanley & Moorside Family Centre,Supplies and Services,384302,Miscellaneous Expenses,06-Oct-2022,000008541371932,AMZNMktplace,5999,Activity expenses,9.99,1.67,8.32
Children and Young Peoples Services,Head of Early Help Inclusion & Vulnerable Children.,088103,Stanley & Moorside Family Centre,Supplies and Services,384302,Miscellaneous Expenses,06-Oct-2022,000008541371934,AMZNMktplace,5999,Activity expenses,8.29,1.38,6.91
Children and Young Peoples Services,Head of Early Help Inclusion & Vulnerable Children.,088103,Stanley & Moorside Family Centre,Supplies and Services,364301,Grants to Voluntary Organisations,06-Oct-2022,000008541371936,ASDA GROCERIES ONLINE,5411,Hardship,-87.08,0.00,-87.08
Resources BK0010,Digital Services,065335,School Services - Implementations,Supplies and Services,304639,Equipment and Materials,06-Oct-2022,000008541371948,REPLACEBASE,5732,Technicians-supplies,145.28,0.00,145.28
Children and Young Peoples Services,Head of Early Help Inclusion & Vulnerable Children.,085956,Lumley,Supplies and Services,304259,Equipment and Materials,06-Oct-2022,000008541371986,AMZNMktplace,5999,Equipment-purchase and rental,13.90,2.32,11.58
Children and Young Peoples Services,Head of Early Help Inclusion & Vulnerable Children.,085957,Secure Management,Premises,108099,Service Repairs and Maintenance,06-Oct-2022,000008541371994,T.B.S. POLYCARBONATES,1740,General repairs 108099,283.42,0.00,283.42
Children and Young Peoples Services,Head of Early Help Inclusion & Vulnerable Children.,085965,Barnard,Premises,108251,Service Repairs and Maintenance,06-Oct-2022,000008541371998,FAST KEY SERVICES LIMI,7399,Alarm and security maintenance,5.04,0.00,5.04
Children and Young Peoples Services,Head of Early Help Inclusion & Vulnerable Children.,085955,Auckland,Supplies and Services,324117,Provisions E324,06-Oct-2022,000008541372000,TESCO STORES 6329,5411,Catering costs - provisions,63.82,0.00,63.82
Children and Young Peoples Services,Head of Early Help Inclusion & Vulnerable Children.,085956,Lumley,Supplies and Services,384302,Miscellaneous Expenses,06-Oct-2022,000008541372002,AMZNMktplace,5999,Activity expenses,18.96,3.34,15.62
Children and Young Peoples Services,Head of Early Help Inclusion & Vulnerable Children.,085956,Lumley,Supplies and Services,304259,Equipment and Materials,06-Oct-2022,000008541372006,AMZNMKTPLACE AMAZON.CO,5999,Equipment-purchase and rental,-13.98,-2.33,-11.65
Children and Young Peoples Services,Head of Early Help Inclusion & Vulnerable Children.,085956,Lumley,Supplies and Services,304259,Equipment and Materials,06-Oct-2022,000008541372006 - 1,AMZNMKTPLACE AMAZON.CO,5999,Equipment-purchase and rental,1.98,,1.98
Children and Young Peoples Services,Head of Childrens Social Care,085357,LAC Bespoke Placements,Third Party Payments,430100,Rendered by Private Contractors,06-Oct-2022,000008541372016,SQ ST JAMES APARTMENT,1520,Payments to sub-contractors,"4,488.00",0.00,4488.00
Children and Young Peoples Services,Head of Childrens Social Care,085347,Solo Home The Manse,Supplies and Services,352001,Conference Expenses,06-Oct-2022,000008541372022,SYKES COTTAGES,7011,Conferencesseminars fees etc,500.00,0.00,500.00
Children and Young Peoples Services,Head of Childrens Social Care,085347,Solo Home The Manse,Supplies and Services,352001,Conference Expenses,06-Oct-2022,000008541372024,SYKES COTTAGES,7011,Conferencesseminars fees etc,500.00,0.00,500.00
Children and Young Peoples Services,Head of Childrens Social Care,085347,Solo Home The Manse,Supplies and Services,352001,Conference Expenses,06-Oct-2022,000008541372028,SYKES COTTAGES,7011,Conferencesseminars fees etc,182.00,0.00,182.00
Neighbourhoods and Climate Change,Community Protection,010809,Community Protection Management,Supplies and Services,304403,Equipment and Materials,06-Oct-2022,000008541372032,AMZNMKTPLACE AMAZON.CO,5999,Other consumables,51.96,8.68,43.28
Children and Young Peoples Services,Head of Education and Skills,071802,Louisa Cent Nursery,Supplies and Services,324117,Provisions E324,06-Oct-2022,000008541372062,ASDA SUPERSTORE,5411,Catering costs - provisions,4.50,0.00,4.50
Children and Young Peoples Services,Head of Childrens Social Care,085332,Middlestone Moor CU,Supplies and Services,304403,Equipment and Materials,06-Oct-2022,000008541372078,MAX SPIELMANN LTD,5999,Other consumables,9.00,0.00,9.00
Children and Young Peoples Services,Head of Childrens Social Care,085332,Middlestone Moor CU,Supplies and Services,304999,Equipment and Materials,06-Oct-2022,000008541372080,HOME BARGAINS SPENNYMO,5251,Misc equipment tools and materials,16.32,0.00,16.32
Children and Young Peoples Services,Head of Childrens Social Care,085332,Middlestone Moor CU,Supplies and Services,324117,Provisions E324,06-Oct-2022,000008541372082,ASDA SUPERSTORE 4987,5411,Catering costs - provisions,14.10,0.00,14.10
Children and Young Peoples Services,Head of Childrens Social Care,085332,Middlestone Moor CU,Supplies and Services,348037,Subsistence E348,06-Oct-2022,000008541372084,THE GRAND ELECTRIC,5812,Subsistence,18.50,0.00,18.50
Children and Young Peoples Services,Head of Childrens Social Care,085331,New Lea Childrens Home,Supplies and Services,304999,Equipment and Materials,06-Oct-2022,000008541372094,HOME BARGAINS,5251,Misc equipment tools and materials,37.15,0.00,37.15
Children and Young Peoples Services,Head of Childrens Social Care,085331,New Lea Childrens Home,Supplies and Services,324117,Provisions E324,06-Oct-2022,000008541372098,ASDA SUPERSTORE,5411,Catering costs - provisions,56.65,0.00,56.65
Children and Young Peoples Services,Head of Childrens Social Care,085331,New Lea Childrens Home,Supplies and Services,304403,Equipment and Materials,06-Oct-2022,000008541372100,PSYCHO PATH,5734,Other consumables,44.00,0.00,44.00
Children and Young Peoples Services,Head of Childrens Social Care,085358,Orchard House Sacriston Solo Home,Supplies and Services,304403,Equipment and Materials,06-Oct-2022,000008541372110,AMZNMktplace,5999,Other consumables,39.80,6.64,33.16
Regeneration Economy and Growth,Economic Development Level C,030776,LINKCD Flexible Fund,Supplies and Services,324117,Provisions E324,06-Oct-2022,000008541372128,TESCO STORES 2371,5411,Catering costs - provisions,8.50,0.00,8.50
Adult and Health Services,Public Health CC0450,057500,Sexual/Domestic Violence,Supplies and Services,304403,Equipment and Materials,06-Oct-2022,000008541372132,AMZNMKTPLACE AMAZON.CO,5999,Other consumables,22.09,0.00,22.09
Neighbourhoods and Climate Change,Environmental Services,010367,C&G - South Grounds Maintenance,Supplies and Services,304221,Equipment and Materials,06-Oct-2022,000008541372148,S&A BUILDERS MERCHANTS,5211,Direct materials,40.28,0.00,40.28
Resources BK0010,Internal Audit and Insurance,065103,Insurance and Risk,Employees,040149,Recruitment Instruction and Training,06-Oct-2022,000008541372168,Chartered Insurance In,8299,Training-all costs,84.00,0.00,84.00
Regeneration Economy and Growth,Communications Management,060270,Communications and Marketing,Supplies and Services,336005,Advertising E336,06-Oct-2022,000008541372172,FACEBK P2Z37FF4B2,7311,Advertising other than for staff,500.00,0.00,500.00
Regeneration Economy and Growth,Communications Management,060270,Communications and Marketing,Supplies and Services,332047,Printing Stationery and Gen Off Exps,06-Oct-2022,000008541372174,PAYPAL TEESDALEMER,5943,Stationery,31.20,0.00,31.20
Resources BK0010,Legal & Democratic Services,067801,Registrars,Supplies and Services,372009,Subscriptions E372,06-Oct-2022,000008541372178,WWW.ICO.ORG.UK,9399,Subscriptions 372009,40.00,0.00,40.00
Regeneration Economy and Growth,Planning & Housing,031634,LOCAL LETTINGS AGENCY,Premises,120037,Energy Costs,06-Oct-2022,000008541372196,PPOINT_ ELDON LANE CON,5499,Other fuels,50.50,0.00,50.50
Regeneration Economy and Growth,Planning & Housing,031634,LOCAL LETTINGS AGENCY,Premises,120037,Energy Costs,06-Oct-2022,000008541372198,CO-OP GROUP 310015,5411,Other fuels,30.00,0.00,30.00
Regeneration Economy and Growth,Planning & Housing,031634,LOCAL LETTINGS AGENCY,Supplies and Services,304999,Equipment and Materials,06-Oct-2022,000008541372204,R DEFTY,5251,Misc equipment tools and materials,27.85,0.00,27.85
Neighbourhoods and Climate Change,Environmental Services,010367,C&G - South Grounds Maintenance,Supplies and Services,304221,Equipment and Materials,06-Oct-2022,000008541372224,CARRS BILLINGTON SPENN,5599,Direct materials,83.34,0.00,83.34
Regeneration Economy and Growth,Planning & Housing,031581,Prevention Fund,Transport,235057,Public Transport,06-Oct-2022,000008541372266,UBER TRIP,4121,Staff travelling,29.58,0.00,29.58
Regeneration Economy and Growth,Planning & Housing,031576,B& B - Temp Accom,Supplies and Services,364320,Grants to Voluntary Organisations,06-Oct-2022,000008541372268,Roadchef Durham,7011,Accommodation assistance,228.00,0.00,228.00
Regeneration Economy and Growth,Corporate Property and Land,011296,Catering - Dunes,Supplies and Services,324117,Provisions E324,06-Oct-2022,000008541461510,JR HOLLAND FOODSERVICE,5499,Catering costs - provisions,52.67,0.00,52.67
Neighbourhoods and Climate Change,Environmental Services,011060,C&G - Hardwick Park Catering,Supplies and Services,324117,Provisions E324,06-Oct-2022,000008541461512,JR HOLLAND FOODSERVICE,5499,Catering costs - provisions,118.28,0.00,118.28
Regeneration Economy and Growth,Corporate Property and Land,021242,Catering - County Hall,Supplies and Services,324117,Provisions E324,06-Oct-2022,000008541461516,JR HOLLAND FOODSERVICE,5499,Catering costs - provisions,239.59,0.00,239.59
Children and Young Peoples Services,Head of Childrens Social Care,085624,Families First Crook and Barnard Castle,Supplies and Services,364200,Grants to Voluntary Organisations,06-Oct-2022,000008548326402,CROXDALE INN,5812,No Recourse to Public Funds,370.00,0.00,370.00
Children and Young Peoples Services,Head of Childrens Social Care,085624,Families First Crook and Barnard Castle,Supplies and Services,364200,Grants to Voluntary Organisations,06-Oct-2022,000008548326408,CROXDALE INN,5812,No Recourse to Public Funds,480.00,0.00,480.00
Children and Young Peoples Services,Head of Childrens Social Care,085334,West Rainton Satelite Home,Supplies and Services,304999,Equipment and Materials,06-Oct-2022,000008548327642,SNAPFISH UK,7395,Misc equipment tools and materials,2.57,0.00,2.57
Children and Young Peoples Services,Head of Early Help Inclusion & Vulnerable Children.,085955,Auckland,Supplies and Services,384302,Miscellaneous Expenses,06-Oct-2022,000008548327694,AMZNMKTPLACE AMAZON.CO,5999,Activity expenses,104.58,0.00,104.58
Children and Young Peoples Services,Head of Early Help Inclusion & Vulnerable Children.,085956,Lumley,Supplies and Services,384302,Miscellaneous Expenses,06-Oct-2022,000008548327780,AMZNMKTPLACE AMAZON.CO,5999,Activity expenses,8.48,1.41,7.07
Children and Young Peoples Services,Head of Early Help Inclusion & Vulnerable Children.,085956,Lumley,Supplies and Services,384302,Miscellaneous Expenses,06-Oct-2022,000008548327786,AMZNMKTPLACE AMAZON.CO,5999,Activity expenses,6.98,1.16,5.82
Neighbourhoods and Climate Change,Environmental Services,011060,C&G - Hardwick Park Catering,Supplies and Services,324117,Provisions E324,06-Oct-2022,000008548417954,BATLEYS PERTH,5300,Catering costs - provisions,135.42,22.57,112.85
Neighbourhoods and Climate Change,Environmental Services,011060,C&G - Hardwick Park Catering,Supplies and Services,324117,Provisions E324,06-Oct-2022,000008548417954 - 1,BATLEYS PERTH,5300,Catering costs - provisions,226.89,,226.89
Regeneration Economy and Growth,Corporate Property and Land,021242,Catering - County Hall,Supplies and Services,324117,Provisions E324,06-Oct-2022,000008548417968,BATLEYS PERTH,5300,Catering costs - provisions,387.37,0.00,387.37
Children and Young Peoples Services,Head of Childrens Social Care,085358,Orchard House Sacriston Solo Home,Supplies and Services,372009,Subscriptions E372,07-Oct-2022,000008541371408,NETFLIX.COM,4899,Subscriptions 372009,15.99,0.00,15.99
Adult and Health Services,Commissioning inc Supporting People,052200,STPM Care Academy,Supplies and Services,304403,Equipment and Materials,07-Oct-2022,000008541371438,AMZNMktplace,5999,Other consumables,7.38,0.00,7.38
Children and Young Peoples Services,Head of Early Help Inclusion & Vulnerable Children.,085962,Aycliffe Secure - Durham,Supplies and Services,304403,Equipment and Materials,07-Oct-2022,000008541371460,AMZNMktplace,5999,Other consumables,54.95,9.16,45.79
Children and Young Peoples Services,Head of Early Help Inclusion & Vulnerable Children.,085965,Barnard,Transfer Payments,515002,Social Services Clients,07-Oct-2022,000008541371560,AMZNMktplace,5999,Pocket money,3.99,0.67,3.32
Regeneration Economy and Growth,Business Durham CL0850,030689,Inward Investment and Aftercare,Supplies and Services,342222,Computers and Communications,07-Oct-2022,000008548325964,FASTHOSTS,4816,Comp hardware purch-network servers,6.34,0.00,6.34
Children and Young Peoples Services,Head of Education and Skills,071801,Selby Cottage Childcare Centre,Supplies and Services,324117,Provisions E324,07-Oct-2022,000008548325986,WM MORRISONS STORE,5411,Catering costs - provisions,42.07,0.00,42.07
Children and Young Peoples Services,Head of Childrens Social Care,085342,16 Hickstead Rise (previously 9 Cedar Ave),Third Party Payments,430100,Rendered by Private Contractors,07-Oct-2022,000008548326026,DIGGECARD RIVERISLAND,7399,Payments to sub-contractors,20.00,0.00,20.00
Children and Young Peoples Services,Head of Childrens Social Care,085342,16 Hickstead Rise (previously 9 Cedar Ave),Transport,235057,Public Transport,07-Oct-2022,000008548326028,ARRIVA UK BUS,4131,Staff travelling,7.60,0.00,7.60
Children and Young Peoples Services,Head of Childrens Social Care,085342,16 Hickstead Rise (previously 9 Cedar Ave),Supplies and Services,324117,Provisions E324,07-Oct-2022,000008548326032,WILKO RETAIL LIMITED,5399,Catering costs - provisions,3.25,0.00,3.25
Children and Young Peoples Services,Head of Childrens Social Care,085342,16 Hickstead Rise (previously 9 Cedar Ave),Supplies and Services,324117,Provisions E324,07-Oct-2022,000008548326040,TESCO STORES 2916,5411,Catering costs - provisions,22.89,0.00,22.89
Resources BK0010,Legal & Democratic Services,069326,Practice Management,Supplies and Services,304259,Equipment and Materials,07-Oct-2022,000008548326082,GEN REGISTER OFFICE,9399,Equipment-purchase and rental,11.00,0.00,11.00
Children and Young Peoples Services,Head of Education and Skills,075034,Youth Futures Foundation,Supplies and Services,364301,Grants to Voluntary Organisations,07-Oct-2022,000008548326088,AMZNMktplace,5999,Hardship,21.97,0.00,21.97
Children and Young Peoples Services,Head of Education and Skills,075035,DurhamDirections Re-engagement,Supplies and Services,364301,Grants to Voluntary Organisations,07-Oct-2022,000008548326090,WWW.GONORTHEAST.CO.UK,4111,Hardship,16.00,0.00,16.00
Children and Young Peoples Services,Head of Education and Skills,075024,Durham Directions,Supplies and Services,364301,Grants to Voluntary Organisations,07-Oct-2022,000008548326096,DURHAM COUNTY COUNCIL,9399,Hardship,11.00,0.00,11.00
Children and Young Peoples Services,Head of Education and Skills,075034,Youth Futures Foundation,Supplies and Services,364301,Grants to Voluntary Organisations,07-Oct-2022,000008548326100,HARTLEPOOL BC,9399,Hardship,11.00,0.00,11.00
Children and Young Peoples Services,Head of Education and Skills,075034,Youth Futures Foundation,Supplies and Services,364301,Grants to Voluntary Organisations,07-Oct-2022,000008548326104,AMZNMKTPLACE AMAZON.CO,5999,Hardship,35.89,5.98,29.91
Regeneration Economy and Growth,Culture Sport and Tourism,030705,Visit County Durham 030705,Supplies and Services,304259,Equipment and Materials,07-Oct-2022,000008548326128,FASTHOSTS,4816,Equipment-purchase and rental,6.34,1.06,5.28
Children and Young Peoples Services,Head of Childrens Social Care,085332,Middlestone Moor CU,Supplies and Services,324117,Provisions E324,07-Oct-2022,000008548326218,TESCO STORES 2371,5411,Catering costs - provisions,143.05,0.00,143.05
Children and Young Peoples Services,Head of Childrens Social Care,085334,West Rainton Satelite Home,Supplies and Services,348037,Subsistence E348,07-Oct-2022,000008548326264,43038640 COSTA COFFEE,5814,Subsistence,11.00,0.00,11.00
Children and Young Peoples Services,Head of Childrens Social Care,085334,West Rainton Satelite Home,Supplies and Services,324117,Provisions E324,07-Oct-2022,000008548326266,SAINSBURYS S/MKTS,5411,Catering costs - provisions,9.00,0.00,9.00
Regeneration Economy and Growth,Planning & Housing,031623,Rough Sleeping,Transport,235073,Public Transport,07-Oct-2022,000008548326314,ARGOS LTD,5310,Travel-clients/students/children,45.00,0.00,45.00
Children and Young Peoples Services,Head of Childrens Social Care,085364,Children Looked After Team 1,Supplies and Services,340001,Postages E340,07-Oct-2022,000008548326398,POST OFFICE COUNTER,9402,Postages,4.16,0.00,4.16
Regeneration Economy and Growth,Economic Development Level C,030772,CLLD South,Supplies and Services,304403,Equipment and Materials,07-Oct-2022,000008548326510,AMZNMktplace,5999,Other consumables,18.49,0.00,18.49
Regeneration Economy and Growth,Economic Development Level C,030772,CLLD South,Supplies and Services,304403,Equipment and Materials,07-Oct-2022,000008548326512,AMZNMktplace,5999,Other consumables,34.57,0.00,34.57
Regeneration Economy and Growth,Economic Development Level C,030772,CLLD South,Supplies and Services,304259,Equipment and Materials,07-Oct-2022,000008548326516,DISCLOSURE AND BARRING,9399,Equipment-purchase and rental,18.00,0.00,18.00
Regeneration Economy and Growth,Economic Development Level C,030772,CLLD South,Employees,040149,Recruitment Instruction and Training,07-Oct-2022,000008548326524,Cre8ive Graphics Limit,8999,Training-all costs,40.75,6.79,33.96
Children and Young Peoples Services,Head of Childrens Social Care,085347,Solo Home The Manse,Supplies and Services,324117,Provisions E324,07-Oct-2022,000008548326574,CO-OP GROUP 310016,5411,Catering costs - provisions,10.00,0.00,10.00
Children and Young Peoples Services,Head of Childrens Social Care,085347,Solo Home The Manse,Supplies and Services,308011,Furniture,07-Oct-2022,000008548326576,THE RANGE,5719,Furniture repair and replacement,39.45,0.00,39.45
Children and Young Peoples Services,Head of Childrens Social Care,085347,Solo Home The Manse,Supplies and Services,324117,Provisions E324,07-Oct-2022,000008548326580,B&M 481 - HS PORTRACK,5399,Catering costs - provisions,43.55,0.00,43.55
Resources BK0010,Procurement Sales & Business Services,065503,Business Support - Spectrum,Supplies and Services,324117,Provisions E324,07-Oct-2022,000008548326588,ASDA GROCERIES ONLINE,5411,Catering costs - provisions,270.17,0.00,270.17
Resources BK0010,Procurement Sales & Business Services,065503,Business Support - Spectrum,Supplies and Services,324117,Provisions E324,07-Oct-2022,000008548326594,ASDA GROCERIES ONLINE,5411,Catering costs - provisions,-0.70,0.00,-0.70
Children and Young Peoples Services,Head of Childrens Social Care,085358,Orchard House Sacriston Solo Home,Supplies and Services,324117,Provisions E324,07-Oct-2022,000008548326630,ASDA GROCERIES ONLINE,5411,Catering costs - provisions,168.76,0.00,168.76
Children and Young Peoples Services,Head of Childrens Social Care,085358,Orchard House Sacriston Solo Home,Supplies and Services,324117,Provisions E324,07-Oct-2022,000008548326636,ASDA GROCERIES ONLINE,5411,Catering costs - provisions,-4.05,0.00,-4.05
Neighbourhoods and Climate Change,Environmental Services,010900,Fleet - Meadowfield Fleet,Transport,215013,Running Costs of Vehicles,07-Oct-2022,000008548326642,DVLA VEHICLE TAX,9311,Vehicle Excise Duty (VED),292.50,0.00,292.50
Neighbourhoods and Climate Change,Environmental Services,010900,Fleet - Meadowfield Fleet,Transport,215013,Running Costs of Vehicles,07-Oct-2022,000008548326648,DVLA VEHICLE TAX,9311,Vehicle Excise Duty (VED),292.50,0.00,292.50
Neighbourhoods and Climate Change,Environmental Services,010900,Fleet - Meadowfield Fleet,Transport,215013,Running Costs of Vehicles,07-Oct-2022,000008548326652,DVLA VEHICLE TAX,9311,Vehicle Excise Duty (VED),292.50,0.00,292.50
Neighbourhoods and Climate Change,Environmental Services,010900,Fleet - Meadowfield Fleet,Transport,215013,Running Costs of Vehicles,07-Oct-2022,000008548326656,DVLA VEHICLE TAX,9311,Vehicle Excise Duty (VED),292.50,0.00,292.50
Neighbourhoods and Climate Change,Environmental Services,010551,Fleet - Chilton Fleet,Transport,215013,Running Costs of Vehicles,07-Oct-2022,000008548326660,DVLA VEHICLE TAX,9311,Vehicle Excise Duty (VED),292.50,0.00,292.50
Neighbourhoods and Climate Change,Environmental Services,010900,Fleet - Meadowfield Fleet,Transport,215013,Running Costs of Vehicles,07-Oct-2022,000008548326666,DVLA VEHICLE TAX,9311,Vehicle Excise Duty (VED),167.50,0.00,167.50
Neighbourhoods and Climate Change,Environmental Services,010561,Fleet - Morrison Busty Fleet,Transport,215013,Running Costs of Vehicles,07-Oct-2022,000008548326668,DVLA VEHICLE TAX,9311,Vehicle Excise Duty (VED),167.50,0.00,167.50
Neighbourhoods and Climate Change,Environmental Services,010900,Fleet - Meadowfield Fleet,Transport,215013,Running Costs of Vehicles,07-Oct-2022,000008548326674,DVLA VEHICLE TAX,9311,Vehicle Excise Duty (VED),292.50,0.00,292.50
Neighbourhoods and Climate Change,Environmental Services,010561,Fleet - Morrison Busty Fleet,Transport,215013,Running Costs of Vehicles,07-Oct-2022,000008548326678,DVLA VEHICLE TAX,9311,Vehicle Excise Duty (VED),292.50,0.00,292.50
Neighbourhoods and Climate Change,Environmental Services,010864,Fleet - Hackworth Road Fleet,Transport,215013,Running Costs of Vehicles,07-Oct-2022,000008548326680,DVLA VEHICLE TAX,9311,Vehicle Excise Duty (VED),167.50,0.00,167.50
Neighbourhoods and Climate Change,Environmental Services,010900,Fleet - Meadowfield Fleet,Transport,215013,Running Costs of Vehicles,07-Oct-2022,000008548326682,DVLA VEHICLE TAX,9311,Vehicle Excise Duty (VED),292.50,0.00,292.50
Neighbourhoods and Climate Change,Environmental Services,010561,Fleet - Morrison Busty Fleet,Transport,215013,Running Costs of Vehicles,07-Oct-2022,000008548326684,DVLA VEHICLE TAX,9311,Vehicle Excise Duty (VED),292.50,0.00,292.50
Regeneration Economy and Growth,Culture Sport and Tourism,054813,Gala Theatre - Technical,Supplies and Services,304259,Equipment and Materials,07-Oct-2022,000008548326728,AMZNMKTPLACE AMAZON.CO,5999,Equipment-purchase and rental,276.00,46.00,230.00
Children and Young Peoples Services,Head of Early Help Inclusion & Vulnerable Children.,085962,Aycliffe Secure - Durham,Supplies and Services,304403,Equipment and Materials,07-Oct-2022,000008548326786,AMZNMktplace,5999,Other consumables,42.95,7.16,35.79
Children and Young Peoples Services,Head of Early Help Inclusion & Vulnerable Children.,085962,Aycliffe Secure - Durham,Supplies and Services,304403,Equipment and Materials,07-Oct-2022,000008548326790,AMZNMktplace,5999,Other consumables,27.14,4.52,22.62
Regeneration Economy and Growth,Business Durham CL0850,030690,Durham Dales Centre - Tourist Information Centre,Supplies and Services,304403,Equipment and Materials,07-Oct-2022,000008548326798,GREETINGS C BY NT LTD,5947,Other consumables,367.00,0.00,367.00
Regeneration Economy and Growth,Business Durham CL0850,030690,Durham Dales Centre - Tourist Information Centre,Supplies and Services,328041,Clothing uniforms and laundry E328,07-Oct-2022,000008548326800,GOOSE ISLAND,7296,Clothing uniforms and laundry,446.82,0.00,446.82
Regeneration Economy and Growth,Business Durham CL0850,030690,Durham Dales Centre - Tourist Information Centre,Supplies and Services,324117,Provisions E324,07-Oct-2022,000008548326804,Joe Davies (Manchester,5300,Catering costs - provisions,750.91,0.00,750.91
Children and Young Peoples Services,Head of Childrens Social Care,085341,High Etherley Satelite Home,Supplies and Services,324117,Provisions E324,07-Oct-2022,000008548326808,774 026,5411,Catering costs - provisions,55.40,0.00,55.40
Adult and Health Services,Head of Adults,055202,Support and Recovery,Supplies and Services,304403,Equipment and Materials,07-Oct-2022,000008548326872,AMZNMktplace,5999,Other consumables,5.99,1.00,4.99
Adult and Health Services,Head of Adults,055202,Support and Recovery,Supplies and Services,304403,Equipment and Materials,07-Oct-2022,000008548326878,AMZNMktplace,5999,Other consumables,8.99,1.50,7.49
Children and Young Peoples Services,Head of Early Help Inclusion & Vulnerable Children.,085956,Lumley,Transfer Payments,515002,Social Services Clients,07-Oct-2022,000008548326942,Footasylum Limited,5651,Pocket money,67.99,0.00,67.99
Children and Young Peoples Services,Head of Early Help Inclusion & Vulnerable Children.,085965,Barnard,Transfer Payments,515002,Social Services Clients,07-Oct-2022,000008548326948,AMZNMktplace,5999,Pocket money,6.99,1.17,5.82
Children and Young Peoples Services,Head of Early Help Inclusion & Vulnerable Children.,085965,Barnard,Transfer Payments,515002,Social Services Clients,07-Oct-2022,000008548326952,AMZNMktplace,5999,Pocket money,9.28,0.00,9.28
Children and Young Peoples Services,Head of Childrens Social Care,085342,16 Hickstead Rise (previously 9 Cedar Ave),Transport,235073,Public Transport,07-Oct-2022,000008548326992,WWW.GONORTHEAST.CO.UK,4111,Travel-clients/students/children,5.70,0.00,5.70
Children and Young Peoples Services,Head of Childrens Social Care,085342,16 Hickstead Rise (previously 9 Cedar Ave),Transport,235073,Public Transport,07-Oct-2022,000008548326996,WWW.GONORTHEAST.CO.UK,4111,Travel-clients/students/children,10.90,0.00,10.90
Children and Young Peoples Services,Head of Childrens Social Care,085342,16 Hickstead Rise (previously 9 Cedar Ave),Transport,235073,Public Transport,07-Oct-2022,000008548327002,WWW.GONORTHEAST.CO.UK,4111,Travel-clients/students/children,-5.70,0.00,-5.70
Children and Young Peoples Services,Head of Childrens Social Care,085551,Short Break Services-Park Hse Sher,Supplies and Services,324117,Provisions E324,07-Oct-2022,000008548327044,ASDA STORES,5411,Catering costs - provisions,8.50,0.00,8.50
Dedicated Schools Grant BG0015,DSG Schools Block,418517,Belmont Community School 004185 - Pupil Premium,Supplies and Services,364301,Grants to Voluntary Organisations,07-Oct-2022,000008548327144,B&M 681 - DURHAM,5399,Hardship,9.00,0.00,9.00
Dedicated Schools Grant BG0015,DSG Schools Block,418517,Belmont Community School 004185 - Pupil Premium,Supplies and Services,364301,Grants to Voluntary Organisations,07-Oct-2022,000008548327146,ARGOS LTD,5310,Hardship,50.00,8.33,41.67
Adult and Health Services,Head of Adults,055302,Durham Pathways,Supplies and Services,324117,Provisions E324,07-Oct-2022,000008548327150,SAINSBURYS S/MKTS,5411,Catering costs - provisions,6.00,0.00,6.00
Dedicated Schools Grant BG0015,DSG Schools Block,702810,Villa Real School 7028 - MFL,Supplies and Services,304403,Equipment and Materials,07-Oct-2022,000008548327160,AMZNMktplace,5999,Other consumables,22.70,3.78,18.92
Regeneration Economy and Growth,Corporate Property and Land,020041,Bldg Serv - Business Development - General,Supplies and Services,304259,Equipment and Materials,07-Oct-2022,000008548327456,MIDDLESBROUGH COUNCIL,9399,Equipment-purchase and rental,0.30,0.05,0.25
Regeneration Economy and Growth,Corporate Property and Land,020041,Bldg Serv - Business Development - General,Supplies and Services,304259,Equipment and Materials,07-Oct-2022,000008548327456 - 1,MIDDLESBROUGH COUNCIL,9399,Equipment-purchase and rental,3.30,,3.30
Children and Young Peoples Services,Head of Education and Skills,078554,Adult Skills-Main,Third Party Payments,430100,Rendered by Private Contractors,07-Oct-2022,000008548327494,HTTPS //SOLVENDIS.CO.U,7399,Payments to sub-contractors,60.00,0.00,60.00
Regeneration Economy and Growth,Culture Sport and Tourism,011230,Operations Locality 2,Supplies and Services,304259,Equipment and Materials,07-Oct-2022,000008548327514,AMZNMKTPLACE AMAZON.CO,5999,Equipment-purchase and rental,46.99,7.83,39.16
Children and Young Peoples Services,Head of Early Help Inclusion & Vulnerable Children.,088115,Young Parents Programme 088115,Supplies and Services,384302,Miscellaneous Expenses,07-Oct-2022,000008548327652,HOME BARGAINS,5251,Activity expenses,33.66,0.00,33.66
Children and Young Peoples Services,Head of Early Help Inclusion & Vulnerable Children.,088103,Stanley & Moorside Family Centre,Supplies and Services,384302,Miscellaneous Expenses,07-Oct-2022,000008548327656,ASDA SUPERSTORE,5411,Activity expenses,9.25,0.00,9.25
Resources BK0010,Digital Services,065335,School Services - Implementations,Supplies and Services,304639,Equipment and Materials,07-Oct-2022,000008548327726,AMZNMktplace,5999,Technicians-supplies,412.86,68.81,344.05
Resources BK0010,Digital Services,065335,School Services - Implementations,Supplies and Services,304639,Equipment and Materials,07-Oct-2022,000008548327726 - 1,AMZNMktplace,5999,Technicians-supplies,0.55,,0.55
Resources BK0010,Digital Services,065335,School Services - Implementations,Supplies and Services,304639,Equipment and Materials,07-Oct-2022,000008548327728,LAPTOP-LCD-SCREEN,5732,Technicians-supplies,168.42,0.00,168.42
Resources BK0010,Digital Services,065335,School Services - Implementations,Supplies and Services,304303,Equipment and Materials,07-Oct-2022,000008548327732,TOOLSTATION UK,5251,Network for resale,209.88,0.00,209.88
Resources BK0010,Digital Services,065335,School Services - Implementations,Supplies and Services,304639,Equipment and Materials,07-Oct-2022,000008548327738,REPLACEBASE,5732,Technicians-supplies,18.76,0.00,18.76
Children and Young Peoples Services,Head of Early Help Inclusion & Vulnerable Children.,085965,Barnard,Supplies and Services,324117,Provisions E324,07-Oct-2022,000008548327792,TESCO STORES 6329,5411,Catering costs - provisions,121.98,0.00,121.98
Children and Young Peoples Services,Head of Education and Skills,071802,Louisa Cent Nursery,Supplies and Services,324117,Provisions E324,07-Oct-2022,000008548327970,ASDA GROCERIES ONLINE,5411,Catering costs - provisions,192.88,0.00,192.88
Children and Young Peoples Services,Head of Education and Skills,071802,Louisa Cent Nursery,Supplies and Services,324117,Provisions E324,07-Oct-2022,000008548327976,ASDA GROCERIES ONLINE,5411,Catering costs - provisions,-6.34,0.00,-6.34
Regeneration Economy and Growth,Economic Development Level C,030772,CLLD South,Transport,235057,Public Transport,07-Oct-2022,000008548328056,WALKERGATE CAR PAR,7523,Staff travelling,2.00,0.00,2.00
Children and Young Peoples Services,Head of Childrens Social Care,085334,West Rainton Satelite Home,Supplies and Services,328041,Clothing uniforms and laundry E328,07-Oct-2022,000008548328230,SUPERTRAMP SUNDERLAND,7996,Clothing uniforms and laundry,12.00,0.00,12.00
Resources BK0010,Legal & Democratic Services,066564,Lord Lieutenancy 066564,Supplies and Services,332047,Printing Stationery and Gen Off Exps,07-Oct-2022,000008548328288,AMZNMktplace,5999,Stationery,31.75,5.30,26.45
Resources BK0010,Digital Services,065432,Web Development Group,Supplies and Services,342033,Computers and Communications,07-Oct-2022,000008548328292,WPMU DEV INCSUBFEE.COM,7372,Computer hardware,17.03,0.00,17.03
Regeneration Economy and Growth,Communications Management,060270,Communications and Marketing,Supplies and Services,336005,Advertising E336,07-Oct-2022,000008548328298,LINKEDIN-833 0733844,7311,Advertising other than for staff,257.95,0.00,257.95
Neighbourhoods and Climate Change,Partnerships & Community Engagement Div.,060700,Civil Contingencies Unit 060700,Supplies and Services,332047,Printing Stationery and Gen Off Exps,07-Oct-2022,000008548328304,AMZNMKTPLACE AMAZON.CO,5999,Stationery,105.84,17.64,88.20
Regeneration Economy and Growth,Planning & Housing,031581,Prevention Fund,Transport,235057,Public Transport,07-Oct-2022,000008548328544,UBER TRIP,4121,Staff travelling,10.97,0.00,10.97
Regeneration Economy and Growth,Planning & Housing,031576,B& B - Temp Accom,Supplies and Services,364320,Grants to Voluntary Organisations,07-Oct-2022,000008548328550,PREMIER INN,3811,Accommodation assistance,473.50,0.00,473.50
Regeneration Economy and Growth,Planning & Housing,031576,B& B - Temp Accom,Supplies and Services,364320,Grants to Voluntary Organisations,07-Oct-2022,000008548328558,PREMIER INN,3811,Accommodation assistance,229.10,0.00,229.10
Regeneration Economy and Growth,Planning & Housing,031576,B& B - Temp Accom,Supplies and Services,364320,Grants to Voluntary Organisations,07-Oct-2022,000008548328560,HOTEL 52,7011,Accommodation assistance,200.00,0.00,200.00
Regeneration Economy and Growth,Corporate Property and Land,010525,Catering - Green Lane,Supplies and Services,324117,Provisions E324,07-Oct-2022,000008548417938,FREEMAN CATERING BUTCH,5422,Catering costs - provisions,34.19,0.00,34.19
Regeneration Economy and Growth,Corporate Property and Land,011275,Catering -Durham Leadership Centre,Supplies and Services,324117,Provisions E324,07-Oct-2022,000008548417940,FREEMAN CATERING BUTCH,5422,Catering costs - provisions,62.61,0.00,62.61
Regeneration Economy and Growth,Corporate Property and Land,011275,Catering -Durham Leadership Centre,Supplies and Services,324117,Provisions E324,07-Oct-2022,000008548417942,FREEMAN CATERING BUTCH,5422,Catering costs - provisions,9.58,0.00,9.58
Regeneration Economy and Growth,Corporate Property and Land,011296,Catering - Dunes,Supplies and Services,324117,Provisions E324,07-Oct-2022,000008548417944,JR HOLLAND FOODSERVICE,5499,Catering costs - provisions,13.68,0.00,13.68
Regeneration Economy and Growth,Corporate Property and Land,030691,Catering - Durham Dales Centre,Supplies and Services,324117,Provisions E324,07-Oct-2022,000008548417946,FREEMAN CATERING BUTCH,5422,Catering costs - provisions,80.26,0.00,80.26
Regeneration Economy and Growth,Corporate Property and Land,030691,Catering - Durham Dales Centre,Supplies and Services,324117,Provisions E324,07-Oct-2022,000008548417948,JR HOLLAND FOODSERVICE,5499,Catering costs - provisions,32.50,0.00,32.50
Adult and Health Services,Head of Adults,055643,Hawthorn House LD Respite Unit,Supplies and Services,324117,Provisions E324,07-Oct-2022,000008548417950,FREEMAN CATERING BUTCH,5422,Catering costs - provisions,28.73,0.00,28.73
Adult and Health Services,Head of Adults,055643,Hawthorn House LD Respite Unit,Supplies and Services,324117,Provisions E324,07-Oct-2022,000008548417952,FREEMAN CATERING BUTCH,5422,Catering costs - provisions,21.70,0.00,21.70
Regeneration Economy and Growth,Corporate Property and Land,021234,Catering - Locomotion,Supplies and Services,324117,Provisions E324,07-Oct-2022,000008548417956,FREEMAN CATERING BUTCH,5422,Catering costs - provisions,76.04,0.00,76.04
Regeneration Economy and Growth,Corporate Property and Land,021234,Catering - Locomotion,Supplies and Services,324117,Provisions E324,07-Oct-2022,000008548417958,JR HOLLAND FOODSERVICE,5499,Catering costs - provisions,7.75,0.00,7.75
Regeneration Economy and Growth,Corporate Property and Land,021234,Catering - Locomotion,Supplies and Services,324117,Provisions E324,07-Oct-2022,000008548417960,JR HOLLAND FOODSERVICE,5499,Catering costs - provisions,143.00,0.00,143.00
Regeneration Economy and Growth,Corporate Property and Land,021234,Catering - Locomotion,Supplies and Services,324117,Provisions E324,07-Oct-2022,000008548417962,JR HOLLAND FOODSERVICE,5499,Catering costs - provisions,9.25,0.00,9.25
Regeneration Economy and Growth,Culture Sport and Tourism,011263,Louisa Centre 011263,Supplies and Services,324117,Provisions E324,07-Oct-2022,000008548417964,JR HOLLAND FOODSERVICE,5499,Catering costs - provisions,85.64,0.00,85.64
Regeneration Economy and Growth,Culture Sport and Tourism,054812,Gala Theatre - Catering etc,Supplies and Services,324117,Provisions E324,07-Oct-2022,000008548417966,FREEMAN CATERING BUTCH,5422,Catering costs - provisions,19.16,0.00,19.16
Regeneration Economy and Growth,Corporate Property and Land,021242,Catering - County Hall,Supplies and Services,384999,Miscellaneous Expenses,07-Oct-2022,000008548417970,G M PACKAGING UK LIMIT,5046,Other expenses,555.16,0.00,555.16
Regeneration Economy and Growth,Corporate Property and Land,011275,Catering -Durham Leadership Centre,Supplies and Services,324117,Provisions E324,07-Oct-2022,000008560193714,BATLEYS PERTH,5300,Catering costs - provisions,33.06,5.51,27.55
Regeneration Economy and Growth,Corporate Property and Land,011275,Catering -Durham Leadership Centre,Supplies and Services,324117,Provisions E324,07-Oct-2022,000008560193714 - 1,BATLEYS PERTH,5300,Catering costs - provisions,175.44,,175.44
Adult and Health Services,Head of Adults,055643,Hawthorn House LD Respite Unit,Supplies and Services,324117,Provisions E324,07-Oct-2022,000008560193734,BATLEYS PERTH,5300,Catering costs - provisions,7.62,1.27,6.35
Adult and Health Services,Head of Adults,055643,Hawthorn House LD Respite Unit,Supplies and Services,324117,Provisions E324,07-Oct-2022,000008560193734 - 1,BATLEYS PERTH,5300,Catering costs - provisions,130.52,,130.52
Neighbourhoods and Climate Change,Environmental Services,011060,C&G - Hardwick Park Catering,Supplies and Services,324117,Provisions E324,07-Oct-2022,000008560193744,BATLEYS PERTH,5300,Catering costs - provisions,90.60,15.10,75.50
Neighbourhoods and Climate Change,Environmental Services,011060,C&G - Hardwick Park Catering,Supplies and Services,324117,Provisions E324,07-Oct-2022,000008560193744 - 1,BATLEYS PERTH,5300,Catering costs - provisions,202.22,,202.22
Resources BK0010,Legal & Democratic Services,069326,Practice Management,Supplies and Services,304259,Equipment and Materials,07-Oct-2022,000010310891407,GEN REGISTER OFFICE,9399,Equipment-purchase and rental,-11.00,0.00,-11.00
Regeneration Economy and Growth,Business Durham CL0850,030689,Inward Investment and Aftercare,Supplies and Services,336005,Advertising E336,08-Oct-2022,000008548325968,LINKEDIN-833 5150414,7311,Advertising other than for staff,24.55,0.00,24.55
Children and Young Peoples Services,Head of Education and Skills,071801,Selby Cottage Childcare Centre,Supplies and Services,304999,Equipment and Materials,08-Oct-2022,000008548325988,Amazon Prime IT97G5XW5,5968,Misc equipment tools and materials,8.99,0.00,8.99
Dedicated Schools Grant BG0015,DSG Schools Block,417611,Greenfield Community College 004176 - Technology,Supplies and Services,304403,Equipment and Materials,08-Oct-2022,000008548326002,AMZNMktplace,5999,Other consumables,37.08,6.24,30.84
Children and Young Peoples Services,Head of Childrens Social Care,085341,High Etherley Satelite Home,Supplies and Services,304999,Equipment and Materials,08-Oct-2022,000008548326046,VISION EXPRESS UK LTD,8043,Misc equipment tools and materials,20.00,0.00,20.00
Children and Young Peoples Services,Head of Childrens Social Care,085341,High Etherley Satelite Home,Supplies and Services,324117,Provisions E324,08-Oct-2022,000008548326054,TESCO STORES 6329,5411,Catering costs - provisions,3.70,0.00,3.70
Children and Young Peoples Services,Head of Childrens Social Care,085341,High Etherley Satelite Home,Supplies and Services,348037,Subsistence E348,08-Oct-2022,000008548326060,MCDONALD`S,5812,Subsistence,12.47,0.00,12.47
Regeneration Economy and Growth,Culture Sport and Tourism,030712,VCD - Project Delivery,Supplies and Services,384199,Miscellaneous Expenses,08-Oct-2022,000008548326144,PAYPAL WEBALON,5817,Other hired and contracted services,7.07,0.00,7.07
Children and Young Peoples Services,Head of Childrens Social Care,085342,16 Hickstead Rise (previously 9 Cedar Ave),Supplies and Services,324117,Provisions E324,08-Oct-2022,000008548326172,ASDA SUPERSTORE 4987,5411,Catering costs - provisions,11.00,0.00,11.00
Children and Young Peoples Services,Head of Childrens Social Care,085342,16 Hickstead Rise (previously 9 Cedar Ave),Supplies and Services,324117,Provisions E324,08-Oct-2022,000008548326176,ASDA SUPERSTORE 4987,5411,Catering costs - provisions,79.88,0.00,79.88
Children and Young Peoples Services,Head of Childrens Social Care,085342,16 Hickstead Rise (previously 9 Cedar Ave),Supplies and Services,324117,Provisions E324,08-Oct-2022,000008548326182,TESCO STORES 2916,5411,Catering costs - provisions,20.00,0.00,20.00
Children and Young Peoples Services,Head of Childrens Social Care,085342,16 Hickstead Rise (previously 9 Cedar Ave),Supplies and Services,324117,Provisions E324,08-Oct-2022,000008548326188,STARBUCKS THINFORD,5499,Catering costs - provisions,12.64,0.00,12.64
Children and Young Peoples Services,Head of Early Help Inclusion & Vulnerable Children.,085956,Lumley,Supplies and Services,304999,Equipment and Materials,08-Oct-2022,000008548326356,Amazon Prime GI6IF0QR5,5968,Misc equipment tools and materials,8.99,0.00,8.99
Regeneration Economy and Growth,Culture Sport and Tourism,054233,Bishop Auckland Town Hall Library,Supplies and Services,324117,Provisions E324,08-Oct-2022,000008548326446,HERON FOODS,5411,Catering costs - provisions,3.29,0.00,3.29
Regeneration Economy and Growth,Economic Development Level C,030772,CLLD South,Supplies and Services,304403,Equipment and Materials,08-Oct-2022,000008548326532,AMZNMktplace,5999,Other consumables,21.99,0.00,21.99
Neighbourhoods and Climate Change,Environmental Services,026591,C&G - Hardwick Park,Supplies and Services,304337,Equipment and Materials,08-Oct-2022,000008548326746,UKSM_AngelWholesale,5999,Consumables/items for resale,205.74,0.00,205.74
Children and Young Peoples Services,Head of Early Help Inclusion & Vulnerable Children.,085956,Lumley,Supplies and Services,384302,Miscellaneous Expenses,08-Oct-2022,000008548326956,AMZNMKTPLACE AMAZON.CO,5999,Activity expenses,-8.46,-1.41,-7.05
Children and Young Peoples Services,Head of Early Help Inclusion & Vulnerable Children.,085956,Lumley,Supplies and Services,384302,Miscellaneous Expenses,08-Oct-2022,000008548326956 - 1,AMZNMKTPLACE AMAZON.CO,5999,Activity expenses,0.67,,0.67
Children and Young Peoples Services,Head of Early Help Inclusion & Vulnerable Children.,085956,Lumley,Supplies and Services,384302,Miscellaneous Expenses,08-Oct-2022,000008548326960,AMZNMKTPLACE AMAZON.CO,5999,Activity expenses,-7.02,-1.17,-5.85
Children and Young Peoples Services,Head of Early Help Inclusion & Vulnerable Children.,085956,Lumley,Supplies and Services,384302,Miscellaneous Expenses,08-Oct-2022,000008548326960 - 1,AMZNMKTPLACE AMAZON.CO,5999,Activity expenses,0.70,,0.70
Children and Young Peoples Services,Head of Early Help Inclusion & Vulnerable Children.,085956,Lumley,Supplies and Services,384302,Miscellaneous Expenses,08-Oct-2022,000008548326964,AMZNMKTPLACE AMAZON.CO,5999,Activity expenses,-26.14,-4.36,-21.78
Children and Young Peoples Services,Head of Childrens Social Care,085551,Short Break Services-Park Hse Sher,Transport,235057,Public Transport,08-Oct-2022,000008548327048,ARRIVA DURHAM COUNTY L,4131,Staff travelling,12.40,0.00,12.40
Children and Young Peoples Services,Head of Childrens Social Care,085551,Short Break Services-Park Hse Sher,Supplies and Services,348037,Subsistence E348,08-Oct-2022,000008548327052,GREGGS PLC,5812,Subsistence,15.45,0.00,15.45
Children and Young Peoples Services,Head of Childrens Social Care,085342,16 Hickstead Rise (previously 9 Cedar Ave),Transport,215995,Running Costs of Vehicles,08-Oct-2022,000008548327254,WOODHAM SERVICES,5541,Vehicle running expenses,30.08,0.00,30.08
Children and Young Peoples Services,Head of Childrens Social Care,085342,16 Hickstead Rise (previously 9 Cedar Ave),Supplies and Services,324117,Provisions E324,08-Oct-2022,000008548327260,B&M 206 - NORTHGATE,5399,Catering costs - provisions,46.67,0.00,46.67
Children and Young Peoples Services,Head of Childrens Social Care,085342,16 Hickstead Rise (previously 9 Cedar Ave),Supplies and Services,348037,Subsistence E348,08-Oct-2022,000008548327268,MCDONALDS,5814,Subsistence,20.37,0.00,20.37
Children and Young Peoples Services,Head of Childrens Social Care,085347,Solo Home The Manse,Supplies and Services,324117,Provisions E324,08-Oct-2022,000008548327490,MAKRO SELF SERVICE WAS,5300,Catering costs - provisions,143.36,0.00,143.36
Neighbourhoods and Climate Change,Environmental Services,031233,North Pennines - Pennine Peatlife,Transport,235057,Public Transport,08-Oct-2022,000008548327588,GROSVENOR & ARROW CARS,4121,Staff travelling,88.00,0.00,88.00
Neighbourhoods and Climate Change,Environmental Services,031233,North Pennines - Pennine Peatlife,Supplies and Services,348037,Subsistence E348,08-Oct-2022,000008548327592,WH SMITH,5994,Subsistence,8.11,0.00,8.11
Neighbourhoods and Climate Change,Environmental Services,031233,North Pennines - Pennine Peatlife,Supplies and Services,348037,Subsistence E348,08-Oct-2022,000008548327600,SIVOM TRANS EN COMMUN,9399,Subsistence,7.94,0.00,7.94
Neighbourhoods and Climate Change,Environmental Services,031233,North Pennines - Pennine Peatlife,Supplies and Services,348037,Subsistence E348,08-Oct-2022,000008548327602,MT FOOD,5812,Subsistence,7.06,0.00,7.06
Children and Young Peoples Services,Head of Education and Skills,078100,Curric and Professional Development 078100,Supplies and Services,342033,Computers and Communications,08-Oct-2022,000008548327632,STK Shutterstock,7333,Computer hardware,22.80,0.00,22.80
Children and Young Peoples Services,Head of Education and Skills,078550,Discretionary Learning Support,Supplies and Services,304259,Equipment and Materials,08-Oct-2022,000008548327668,SMARTY CO UK,4814,Equipment-purchase and rental,6.00,0.00,6.00
Children and Young Peoples Services,Head of Early Help Inclusion & Vulnerable Children.,085956,Lumley,Supplies and Services,324117,Provisions E324,08-Oct-2022,000008548327794,TESCO STORES 6329,5411,Catering costs - provisions,98.64,0.00,98.64
Children and Young Peoples Services,Head of Childrens Social Care,085347,Solo Home The Manse,Supplies and Services,348037,Subsistence E348,08-Oct-2022,000008548327878,Rosa Gelato,5812,Subsistence,15.40,0.00,15.40
Children and Young Peoples Services,Head of Childrens Social Care,085332,Middlestone Moor CU,Supplies and Services,304403,Equipment and Materials,08-Oct-2022,000008548328068,AMZNMktplace,5999,Other consumables,3.50,0.58,2.92
Children and Young Peoples Services,Head of Childrens Social Care,085332,Middlestone Moor CU,Supplies and Services,304403,Equipment and Materials,08-Oct-2022,000008548328074,AMZNMktplace,5999,Other consumables,29.60,4.94,24.66
Children and Young Peoples Services,Head of Childrens Social Care,085332,Middlestone Moor CU,Supplies and Services,304403,Equipment and Materials,08-Oct-2022,000008548328076,AMZNMktplace,5999,Other consumables,10.40,1.73,8.67
Children and Young Peoples Services,Head of Early Help Inclusion & Vulnerable Children.,085962,Aycliffe Secure - Durham,Supplies and Services,304403,Equipment and Materials,08-Oct-2022,000008548328088,AMZNBusiness AW1IZ9Q95,5999,Other consumables,14.99,2.50,12.49
Children and Young Peoples Services,Head of Childrens Social Care,085332,Middlestone Moor CU,Supplies and Services,328041,Clothing uniforms and laundry E328,08-Oct-2022,000008548328202,POUNDLAND LTD 1554,5310,Clothing uniforms and laundry,14.75,0.00,14.75
Children and Young Peoples Services,Head of Childrens Social Care,085332,Middlestone Moor CU,Supplies and Services,324117,Provisions E324,08-Oct-2022,000008548328208,ASDA SUPERSTORE 4987,5411,Catering costs - provisions,34.50,0.00,34.50
Children and Young Peoples Services,Head of Childrens Social Care,085332,Middlestone Moor CU,Supplies and Services,328041,Clothing uniforms and laundry E328,08-Oct-2022,000008548328210,NEXT RETAIL LTD,5651,Clothing uniforms and laundry,45.10,0.00,45.10
Children and Young Peoples Services,Head of Childrens Social Care,085332,Middlestone Moor CU,Supplies and Services,348037,Subsistence E348,08-Oct-2022,000008548328218,HIMALAYA RESTAURANT,5812,Subsistence,49.30,0.00,49.30
Resources BK0010,Resources Management CK0450,069000,Resources Management 069000,Supplies and Services,344033,Telephones,08-Oct-2022,000008548328312,APPLE.COM/BILL,5735,Telephones general-all costs,0.79,0.00,0.79
Resources BK0010,Legal & Democratic Services,066564,Lord Lieutenancy 066564,Supplies and Services,332047,Printing Stationery and Gen Off Exps,08-Oct-2022,000008548328318,AMZNMktplace,5999,Stationery,59.48,9.91,49.57
Regeneration Economy and Growth,Communications Management,060270,Communications and Marketing,Supplies and Services,336005,Advertising E336,08-Oct-2022,000008548328324,LINKEDIN-833 4793244,7311,Advertising other than for staff,125.40,0.00,125.40
Regeneration Economy and Growth,Business Durham CL0850,030689,Inward Investment and Aftercare,Supplies and Services,304999,Equipment and Materials,09-Oct-2022,000008548325972,MAILCHIMP MISC,5968,Misc equipment tools and materials,119.03,0.00,119.03
Dedicated Schools Grant BG0015,DSG Schools Block,417611,Greenfield Community College 004176 - Technology,Supplies and Services,304403,Equipment and Materials,09-Oct-2022,000008548326006,AMZNMktplace,5999,Other consumables,6.00,1.00,5.00
Dedicated Schools Grant BG0015,DSG Schools Block,417611,Greenfield Community College 004176 - Technology,Supplies and Services,304403,Equipment and Materials,09-Oct-2022,000008548326006 - 1,AMZNMktplace,5999,Other consumables,9.20,,9.20
Children and Young Peoples Services,Head of Childrens Social Care,085341,High Etherley Satelite Home,Supplies and Services,384999,Miscellaneous Expenses,09-Oct-2022,000008548326332,HEADQUARTERS,7230,Other expenses,20.00,0.00,20.00
Children and Young Peoples Services,Head of Childrens Social Care,085511,Emergency Duty Team,Supplies and Services,352001,Conference Expenses,09-Oct-2022,000008548326492,HARROWGATE HILL LODGE,7011,Conferencesseminars fees etc,48.00,0.00,48.00
Children and Young Peoples Services,Head of Education and Skills,071732,Dean Bank Childcare,Supplies and Services,324117,Provisions E324,09-Oct-2022,000008548326718,CO-OP GROUP 010503,5411,Catering costs - provisions,14.68,0.00,14.68
Children and Young Peoples Services,Head of Childrens Social Care,085342,16 Hickstead Rise (previously 9 Cedar Ave),Supplies and Services,372009,Subscriptions E372,09-Oct-2022,000008548327460,NETFLIX.COM,4899,Subscriptions 372009,15.99,0.00,15.99
Children and Young Peoples Services,Head of Early Help Inclusion & Vulnerable Children.,088115,Young Parents Programme 088115,Supplies and Services,384302,Miscellaneous Expenses,09-Oct-2022,000008548327662,AMZNMktplace,5999,Activity expenses,92.10,15.35,76.75
Children and Young Peoples Services,Head of Early Help Inclusion & Vulnerable Children.,088115,Young Parents Programme 088115,Supplies and Services,384302,Miscellaneous Expenses,09-Oct-2022,000008548327674,AMZNMktplace,5999,Activity expenses,168.87,28.21,140.66
Resources BK0010,Digital Services,065335,School Services - Implementations,Supplies and Services,304303,Equipment and Materials,09-Oct-2022,000008548327740,AMZNBusiness ZI9QM1MG5,5999,Network for resale,24.90,4.15,20.75
Resources BK0010,Digital Services,065335,School Services - Implementations,Supplies and Services,304303,Equipment and Materials,09-Oct-2022,000008548327740 - 1,AMZNBusiness ZI9QM1MG5,5999,Network for resale,0.05,,0.05
Dedicated Schools Grant BG0015,DSG Schools Block,231104,Peases West Primary 2311 - General Curriculum,Supplies and Services,312011,Newspapers books and periodicals E312,09-Oct-2022,000008548327756,Amazon.co.uk U79FG2GS5,5969,Books-school library,13.13,0.00,13.13
Dedicated Schools Grant BG0015,DSG Schools Block,231101,Peases West Primary 2311 - Breakfast Club,Supplies and Services,304403,Equipment and Materials,09-Oct-2022,000008548327762,TESCO STORES 4358,5411,Other consumables,48.57,0.00,48.57
Dedicated Schools Grant BG0015,DSG Schools Block,231104,Peases West Primary 2311 - General Curriculum,Supplies and Services,312011,Newspapers books and periodicals E312,09-Oct-2022,000008548327766,Amazon.co.uk U391E1Y65,5969,Books-school library,6.79,0.00,6.79
Children and Young Peoples Services,Head of Early Help Inclusion & Vulnerable Children.,085957,Secure Management,Supplies and Services,384302,Miscellaneous Expenses,09-Oct-2022,000008548327798,MICROSOFT ULTIMATE 1 M,5816,Activity expenses,10.99,0.00,10.99
Children and Young Peoples Services,Head of Early Help Inclusion & Vulnerable Children.,085954,Walworth,Supplies and Services,324117,Provisions E324,09-Oct-2022,000008548327802,TESCO STORES 6329,5411,Catering costs - provisions,148.65,0.00,148.65
Children and Young Peoples Services,Head of Early Help Inclusion & Vulnerable Children.,085956,Lumley,Supplies and Services,384302,Miscellaneous Expenses,09-Oct-2022,000008548327804,AMZNMktplace,5999,Activity expenses,7.99,1.33,6.66
Children and Young Peoples Services,Head of Early Help Inclusion & Vulnerable Children.,085956,Lumley,Supplies and Services,384302,Miscellaneous Expenses,09-Oct-2022,000008548327806,AMZNMktplace,5999,Activity expenses,1.85,0.31,1.54
Children and Young Peoples Services,Head of Early Help Inclusion & Vulnerable Children.,085954,Walworth,Supplies and Services,324117,Provisions E324,09-Oct-2022,000008548327810,TESCO STORES 6329,5411,Catering costs - provisions,-6.60,0.00,-6.60
Children and Young Peoples Services,Head of Childrens Social Care,085347,Solo Home The Manse,Supplies and Services,324117,Provisions E324,09-Oct-2022,000008548328048,SPAR 11081,5411,Catering costs - provisions,3.83,0.00,3.83
Children and Young Peoples Services,Head of Childrens Social Care,085334,West Rainton Satelite Home,Supplies and Services,352001,Conference Expenses,09-Oct-2022,000008548328234,TOBY CARVERY WASH,7011,Conferencesseminars fees etc,60.69,0.00,60.69
Resources BK0010,Digital Services,065432,Web Development Group,Supplies and Services,342033,Computers and Communications,09-Oct-2022,000008548328238,SHUTTERSTOCK IRELAND L,7333,Computer hardware,90.00,0.00,90.00
Resources BK0010,Legal & Democratic Services,066564,Lord Lieutenancy 066564,Supplies and Services,332047,Printing Stationery and Gen Off Exps,09-Oct-2022,000008548328328,AMZNMktplace,5999,Stationery,41.99,7.00,34.99
Children and Young Peoples Services,Head of Childrens Social Care,085341,High Etherley Satelite Home,Supplies and Services,324117,Provisions E324,09-Oct-2022,000008548328366,SAINSBURYS S/MKTS,5411,Catering costs - provisions,19.65,0.00,19.65
Children and Young Peoples Services,Head of Childrens Social Care,085341,High Etherley Satelite Home,Supplies and Services,348037,Subsistence E348,09-Oct-2022,000008548328374,MARCH HARE,5813,Subsistence,67.20,0.00,67.20
Children and Young Peoples Services,Head of Childrens Social Care,085397,Regionalisation of Adoption,Supplies and Services,336005,Advertising E336,09-Oct-2022,000008548328516,FACEBK LBRLSJX4F2,7311,Advertising other than for staff,40.00,0.00,40.00
Children and Young Peoples Services,Head of Childrens Social Care,085397,Regionalisation of Adoption,Supplies and Services,336005,Advertising E336,09-Oct-2022,000008548328518,THE RANGE,5719,Advertising other than for staff,12.96,0.00,12.96
Children and Young Peoples Services,Head of Early Help Inclusion & Vulnerable Children.,085956,Lumley,Supplies and Services,384302,Miscellaneous Expenses,09-Oct-2022,000008560136988,AMZNMKTPLACE AMAZON.CO,5999,Activity expenses,8.99,1.50,7.49
Children and Young Peoples Services,Head of Early Help Inclusion & Vulnerable Children.,088112,Seaham & Central Durham Intensive Family Support Team,Supplies and Services,304403,Equipment and Materials,09-Oct-2022,000008560137216,AMZNMKTPLACE AMAZON.CO,5999,Other consumables,57.83,0.00,57.83
Regeneration Economy and Growth,Business Durham CL0850,030689,Inward Investment and Aftercare,Supplies and Services,336005,Advertising E336,10-Oct-2022,000008548325974,LINKEDIN-833 5150414,7311,Advertising other than for staff,0.68,0.00,0.68
Regeneration Economy and Growth,Business Durham CL0850,030689,Inward Investment and Aftercare,Supplies and Services,304999,Equipment and Materials,10-Oct-2022,000008548325976,MAILCHIMP MISC,5968,Misc equipment tools and materials,3.27,0.00,3.27
Regeneration Economy and Growth,Culture Sport and Tourism,054813,Gala Theatre - Technical,Supplies and Services,304259,Equipment and Materials,10-Oct-2022,000008548326734,SPROUTVIDEO LLC,7399,Equipment-purchase and rental,217.43,0.00,217.43
Regeneration Economy and Growth,Culture Sport and Tourism,054813,Gala Theatre - Technical,Supplies and Services,304259,Equipment and Materials,10-Oct-2022,000008548326742,SPROUTVIDEO LLC,7399,Equipment-purchase and rental,5.98,0.00,5.98
Neighbourhoods and Climate Change,Environmental Services,031233,North Pennines - Pennine Peatlife,Supplies and Services,312009,Newspapers books and periodicals E312,10-Oct-2022,000008548327608,WH SMITH,5994,Newspapers books and periodicals,0.22,0.00,0.22
Neighbourhoods and Climate Change,Environmental Services,031233,North Pennines - Pennine Peatlife,Transport,235057,Public Transport,10-Oct-2022,000008548327612,SIVOM TRANS EN COMMUN,9399,Staff travelling,0.22,0.00,0.22
Neighbourhoods and Climate Change,Environmental Services,031233,North Pennines - Pennine Peatlife,Supplies and Services,348037,Subsistence E348,10-Oct-2022,000008548327614,MT FOOD,5812,Subsistence,0.19,0.00,0.19
Regeneration Economy and Growth,Communications Management,060270,Communications and Marketing,Supplies and Services,336005,Advertising E336,10-Oct-2022,000008548328330,LinkedIn 8339240724,7311,Advertising other than for staff,137.64,0.00,137.64
Resources BK0010,Digital Services,065432,Web Development Group,Supplies and Services,342033,Computers and Communications,10-Oct-2022,000008548328334,WPMU DEV INCSUBFEE.COM,7372,Computer hardware,0.47,0.00,0.47
Regeneration Economy and Growth,Business Durham CL0850,030689,Inward Investment and Aftercare,Supplies and Services,342033,Computers and Communications,10-Oct-2022,000008560136540,BLS MONDAY.COM12017784,7372,Computer hardware,148.80,0.00,148.80
Children and Young Peoples Services,Head of Education and Skills,071801,Selby Cottage Childcare Centre,Supplies and Services,304403,Equipment and Materials,10-Oct-2022,000008560136546,AMZNMKTPLACE AMAZON.CO,5999,Other consumables,18.76,3.13,15.63
Children and Young Peoples Services,Head of Education and Skills,071801,Selby Cottage Childcare Centre,Supplies and Services,304403,Equipment and Materials,10-Oct-2022,000008560136548,AMZNMKTPLACE AMAZON.CO,5999,Other consumables,10.64,1.77,8.87
Children and Young Peoples Services,Head of Education and Skills,071801,Selby Cottage Childcare Centre,Supplies and Services,324117,Provisions E324,10-Oct-2022,000008560136550,TESCO STORES 2278,5411,Catering costs - provisions,19.45,0.00,19.45
Dedicated Schools Grant BG0015,DSG Schools Block,417606,Greenfield Community College 004176 - Visual Arts,Supplies and Services,304403,Equipment and Materials,10-Oct-2022,000008560136554,AMZNMktplace,5999,Other consumables,11.99,2.00,9.99
Dedicated Schools Grant BG0015,DSG Schools Block,417606,Greenfield Community College 004176 - Visual Arts,Supplies and Services,304403,Equipment and Materials,10-Oct-2022,000008560136556,AMZNMktplace,5999,Other consumables,12.48,2.08,10.40
Children and Young Peoples Services,Head of Childrens Social Care,085342,16 Hickstead Rise (previously 9 Cedar Ave),Transport,235057,Public Transport,10-Oct-2022,000008560136560,ARRIVA UK BUS,4131,Staff travelling,-7.60,0.00,-7.60
Children and Young Peoples Services,Head of Childrens Social Care,085341,High Etherley Satelite Home,Supplies and Services,384237,Miscellaneous Expenses,10-Oct-2022,000008560136562,Holmside Park,7999,Recreational exps outings parties,42.00,0.00,42.00
Resources BK0010,Legal & Democratic Services,069326,Practice Management,Supplies and Services,304259,Equipment and Materials,10-Oct-2022,000008560136564,STOCKTON BOROUGH COUNC,9399,Equipment-purchase and rental,11.00,0.00,11.00
Children and Young Peoples Services,Head of Education and Skills,075034,Youth Futures Foundation,Supplies and Services,364301,Grants to Voluntary Organisations,10-Oct-2022,000008560136568,AMZNMktplace,5999,Hardship,18.98,0.00,18.98
Children and Young Peoples Services,Head of Education and Skills,075034,Youth Futures Foundation,Supplies and Services,364301,Grants to Voluntary Organisations,10-Oct-2022,000008560136570,DURHAM COUNTY COUNCIL,9399,Hardship,11.00,0.00,11.00
Neighbourhoods and Climate Change,Environmental Services,010383,C&G - South Street Cleansing,Supplies and Services,304403,Equipment and Materials,10-Oct-2022,000008560136572,SumUp T Junction,5999,Other consumables,80.00,0.00,80.00
Neighbourhoods and Climate Change,Environmental Services,010383,C&G - South Street Cleansing,Supplies and Services,304221,Equipment and Materials,10-Oct-2022,000008560136574,CARRS BILLINGTON SPENN,5599,Direct materials,52.02,0.00,52.02
Regeneration Economy and Growth,Culture Sport and Tourism,030705,Visit County Durham 030705,Employees,040149,Recruitment Instruction and Training,10-Oct-2022,000008560136576,REVOLUTION LEARNING,8299,Training-all costs,234.00,39.00,195.00
Children and Young Peoples Services,Head of Childrens Social Care,085341,High Etherley Satelite Home,Supplies and Services,348037,Subsistence E348,10-Oct-2022,000008560136586,43038640 COSTA COFFEE,5814,Subsistence,7.75,0.00,7.75
Children and Young Peoples Services,Head of Childrens Social Care,085334,West Rainton Satelite Home,Supplies and Services,304403,Equipment and Materials,10-Oct-2022,000008560136588,AMZNMKTPLACE AMAZON.CO,5999,Other consumables,59.95,0.00,59.95
Adult and Health Services,Head of Adults,055302,Durham Pathways,Supplies and Services,304259,Equipment and Materials,10-Oct-2022,000008560136590,Amazon Music DV89J99P5,5735,Equipment-purchase and rental,14.99,0.00,14.99
Regeneration Economy and Growth,Planning & Housing,031576,B& B - Temp Accom,Supplies and Services,352001,Conference Expenses,10-Oct-2022,000008560136648,Roadchef Durham,7011,Conferencesseminars fees etc,208.00,34.67,173.33
Neighbourhoods and Climate Change,Environmental Services,010900,Fleet - Meadowfield Fleet,Transport,215013,Running Costs of Vehicles,10-Oct-2022,000008560136668,DVLA VEHICLE TAX,9311,Vehicle Excise Duty (VED),292.50,0.00,292.50
Neighbourhoods and Climate Change,Environmental Services,010900,Fleet - Meadowfield Fleet,Transport,215013,Running Costs of Vehicles,10-Oct-2022,000008560136670,DVLA VEHICLE TAX,9311,Vehicle Excise Duty (VED),292.50,0.00,292.50
Neighbourhoods and Climate Change,Environmental Services,010900,Fleet - Meadowfield Fleet,Transport,215013,Running Costs of Vehicles,10-Oct-2022,000008560136672,DVLA VEHICLE TAX,9311,Vehicle Excise Duty (VED),292.50,0.00,292.50
